Workbook

Sheet Response Guidelines
A2: Guidelines to complete the Technical Evaluation Questionaire for The PSST and PSMT Replacement
A3: 1 | B3: Gatekeepers
B4: On the Evaluation Summary worksheet, there is a section pertaining to Gatekeepers. Complete the criteria questionsfirst to determine whether to continue with the remainder of the evaluation requirements.
B5: When answering YES , provide a motivation for the answer and list document(s), section(s), page(s), paragraph(s) etc. that provides evidence of the YES answer.
A6: 2 | B6: Complete ALL the Sheets/Tabs at the bottom of the book. There are Eighteen (18) Tabs including:
B7: Functional (PSST-System Requirements )
B8: Functional (PSST-Power System Analysis)
B9: Functional (PSST-Network Modelling & Representation)
B10: Functional (PSST-Results and Reporting)
B11: Functional (PSST-Information Exchange)
B12: Functional (PSST-Self-help and Technical References )
B13: Functional (PSST- Protection Functions & Analysis)
B14: Functional (PSST- Power Quality and Harmonic Analysis)
B15: Functional (PSST-Additional Power Systems Analysis Functionality )
B16: Functional PSST- Reliability Analysis Functions)
B17: Functional (PSST-Optimal Power Flow)
B18: Functional (PSST-Stability Analysis Functions)
B19: Functional (PSST-Scripting, Automation and External Interfaces Functionality)
B20: Functional (Protection Settings Management Tool (PSMT))
B21: Non-Functional
B22: Technical
B23: Security
B24: Demo Tab: This tab indicates the requirements that the selected vendors need to demo. Applicable to Vendors who pass the RFP Threshold.
B25: a. All tenderers that pass the RFP threshold, shall do a product demo of the proposed product to Eskom. This is mandatory.
B26: b. Refer to the Evaluation Summary worksheet for details on the threshold determining a qualified tenderer.
B27: c. Eskom Evaluators will complete the Demonstration worksheet during the demo session conducted by the qualified tenderer.
A28: 3 | B28: Please read the details in the Criterion, Functional Requirement, Requirement and Evaluation Criterion Question Description colum headings to determine what is required
A29: 4 | B29: Then complete the following 2 columns:
B30: 1. Vendor Compliance: Select the most appropriate response from the drop down list, as indicated below:
B31: 5 - Compliant 4 - Compliant with Associated Qualifications 2 - None Compliant 0 - Non- Responsive
B32: 2. Vendor Response: Vendor to indicate any applicable response feedback based on Compliance selected
B33: Please ensure that you complete ALL the requirements per Sheet
A34: 5 | B34: Reference Information
B35: a. Provides a description on the priority ratings used in the Evaluation workbook.
B36: b. Provides information on the definitions and abbreviations used in the Evaluation workbook.

Sheet Summary
A1: PSST and PSMT
A2: =Technical!A2 -> CORP xxxx Tender
A3: =Technical!A3 -> Tenderer:
A4: =Technical!$A$4 -> Evaluated by:
H5: Notes regarding Table Below
A6: Important Notes: | H6: The total for the RFP (Paper Exercise) evaluation is 100%. | The threshold for the RFP is: | N6: 0.8
A7: 1. Please indicate location of answers to the criteria and where required answer yes or no. To be included in Comments tab per sheet. | H7: The Demo will count 100%. | The threshold for the Demo is: | N7: 0.8
A8: 2. The qualified solution service provider shall do a product demo of the proposed product to be presented to Eskom. This is mandatory. | H8: Weighting for Final score: 50% of the RFP will be added to 50% of the final demo(PSST & PSMT) to get the final score
A9: 3. "Tenderer(s) to take note of the following key instructions - Please follow the structure of the technical evaluation sheet provided when responding to this enquiry. | H9: The threshold for the Final score (RFP + Demo) is : | N9: 0.8
A10: 4. DO NOT just give YES/NO kind of response to the questions which require more details and information. Vendor to indicate how the capability is achieved with solution. Provide evidence to support i.e. supporting documents, page, section etc.(This should be the general requirement/response guidelines). To be indicated in the comments section per tab
A11: 5. Provide full information to your answer(s) in line with the details of the question(s) in point."
A12: 6. If any of these criteria in the Gatekeepers are not met, the tenderer will be disqualified. | H12: Stage | I12: Weighting | K12: Total | L12: Total RFP Threshold = 80% | M12: Final Score RFP + Demo
I13: Functional (PSST-System Requirements ) | J13: 0.05 | K13: =J13*B29 -> 0 | L13: =SUM(K13:K29) -> 0 | M13: 50% RFP
A14: Evaluation on Elimination Criteria | I14: Functional (PSST-Power System Analysis) | J14: 0.05 | K14: 0 | M14: =L13*0.5 -> 0
A15: If any of these criteria are not met, the tenderer will be disqualified. | I15: Functional (PSST-Network Modelling & Representation) | J15: 0.05 | K15: 0
A16: Criteria (Gate Keepers) | E16: Criteria Met? Select from drop-down list | F16: Motivate YES answers AND list supporting document(s), section(s), page(s), paragraph(s) CV's, Certificates, Reference letters etc. | I16: Functional (PSST-Results and Reporting) | J16: 0.05 | K16: 0
A17: Does the vendor have an off-the-shelf system? Tenderer or via joint venture partner does have prior or past experience in implementation of a Solution to enable Eskom to create , simulate to maintain the Eskom electrical system( as per Electricity Regulation Act) for huge and complex organisations such as enterprises, holding companies and utilities. The vendor must have experience in implementing this proposed product at '3' or more organisations. Evidence required: Provide name(s) of the registered companies, together with contact persons & details, where the solution was implemented. Three "3" or more references | I17: Functional (PSST-Information Exchange) | J17: 0.05 | K17: 0
I18: Functional (PSST-Self-help and Technical References ) | J18: 0.05 | K18: 0 | M18: 50% Demo
I19: Functional (PSST- Protection Functions & Analysis) | J19: 0.05 | K19: 0 | M19: =K33*0.5 -> 0
I20: Functional ( PSST-Power Quality and Harmonic Analysis) | J20: 0.05 | K20: 0
I21: Functional (PSST-Additional Power Systems Analysis Functionality ) | J21: 0.05 | K21: 0
I22: Functional (PSST- Reliability Analysis Functions) | J22: 0.05 | K22: 0
I23: Functional ( Optimal Power Flow) | J23: 0.05 | K23: 0
I24: Functional (PSST- Stability Analysis Functions) | J24: 0.05 | K24: 0
I25: Functional ( Scripting, Automation and External Interfaces Functionality) | J25: 0.05 | K25: 0
I26: Functional (Protection Settings Management Tool (PSMT)) | J26: 0.15 | K26: 0
I27: Non-Functional | J27: 0.05 | K27: 0
I28: Technical | J28: 0.1 | K28: 0
A29: Functional (PSST-System Requirements ) | B29: ='PSST-System Requirements'!N19 -> 0 | I29: Security | J29: 0.05 | K29: 0
A30: Functional (PSST-Power System Analysis) | B30: ='PSST-Power System Analysis'!N63 -> 0 | H30: Total Weighting (RFP) | J30: =SUM(J13:J29) -> 1 | M30: Final Score RFP + Demo
A31: Functional (PSST-Network Modelling & Representation) | B31: ='PSST -Network Modelling & Repre'!N81 -> 0 | H31: PSST-Demo Score | K31: =B46 -> 0 | L31: =K31*0.5 -> 0 | M31: =M14+M19 -> 0
A32: Functional (PSST-Results and Reporting) | B32: ='PSST-Results and Reporting'!N20 -> 0 | H32: PSMT-Demo Score | K32: =B47 -> 0 | L32: =K32*0.5 -> 0
A33: Functional (PSST-Information Exchange) | B33: ='PSST-Information Exchange'!N20 -> 0 | H33: Final Demo Score | I33: FINAL DEMO | K33: =L31+L32 -> 0
A34: Functional (PSST-Self-help and Technical References) | B34: ='PSST-Self help &Technical Ref'!N13 -> 0
A35: Functional ( Protection Functions & Analysis) | B35: ='PSST-Protection Functions & Ana'!N41 -> 0
A36: Functional ( PSST-Power Quality and Harmonic Analysis) | B36: ='PSST-Power Quality& Harmonic An'!N30 -> 0
A37: Functional (PSST-Additional Power Systems Analysis Functionality) | B37: ='PSST-Additional Power Systems A'!N54 -> 0
A38: Functional ( PSST-Reliability Analysis Functions) | B38: ='PSST-Reliability Analysis Funct'!N28 -> 0
A39: Functional ( PSST-Optimal Power Flow) | B39: ='PSST-Optimal Power Flow'!N15 -> 0
A40: Functional (PSST- Stability Analysis Functions) | B40: ='PSST-Stability Analysis Func'!N73 -> 0
A41: Functional ( PSST-Scripting, Automation and External Interfaces Functionality) | B41: ='PSST-Scripting, Automation& Ext'!N22 -> 0
A42: Functional ( Protection Settings Management Tool (PSMT)) | B42: =PSMT!N75 -> 0
A43: Non-Functional | B43: ='Non-Functional'!M27 -> 0
A44: Technical | B44: =Technical!M41 -> 0
A45: Security | B45: =Security!M23 -> 0
A46: PSST-Demo | B46: ='PSST-Demo '!N31 -> 0
A47: PSMT-Demo | B47: ='PSMT-Demo'!N31 -> 0
B51: 0
B52: 0.5
B53: 1

Sheet PSST-System Requirements
A1: Power System Simulation Tool Functional: PSST-System Requirements BRS1.1
A2: CORP xxxx Tender | M2: Scoring (Sliding scale)
A3: Tenderer: | M3: 100% - Fully compliant
A4: Evaluated by: | M4: 50%-Partially compliant
M5: 0%-Non compliance
A6: Evaluation Criteria
G7: Tenderer Compliance Tenderer to select compliance to requirement from the drop-down list provided. | H7: Vendor to indicate any applicable comments based on Compliance | I7: Priority Requirement priority as determined by Eskom | J7: Weight (agreed by evaluation team members) | L7: Score (determined by each evaluation team member during evaluation. Will be averaged for final scores) | M7: Score | O7: Comments (Internal) for scorer
A8: ID | B8: Type | C8: Criterion | D8: Functional Requirement | E8: Requirement description | F8: Evaluation Criterion / Question | G8: Vendor Compliance | H8: Comments | I8: Priority Description | J8: Priority | K8: Weighted Question | L8: Scoring | M8: Answer (0,50,100%) | N8: Weighted Answer
A9: 1 | B9: Meeting the Scope of Work Required | C9: How well has the Tenderer described how scope requirements will be met? Do they understand what needs to be done? List concerns in Comments. | D9: System | E9: The solution should be able to do Data write-ups with current Business systems. | F9: Indicate if the solution : - Is an Out-of-the-box functionality - Requires configuration? - Requires customisation? | I9: Show stopper | J9: =IF(I9='Priority Ratings'!$C$21,'Priority Ratings'!$B$21, IF(I9='Priority Ratings'!$C$22,'Priority Ratings'!$B$22,IF(I9='Priority Ratings'!$C$23,'Priority Ratings'!$B$23,IF(I9='Priority Ratings'!$C$24,'Priority Ratings'!$B$24,IF(I9='Priority Ratings'!$C$25,'Priority Ratings'!$B$25,IF(I9='Priority Ratings'!$C$26,'Priority Ratings'!$B$26,IF(I9='Priority Ratings'!$C$27,'Priority Ratings'!$B$27,"No Rating"))))))) -> 6 | K9: =J9/J$19 -> 0.1304347826 | L9: 100%: Fully comply with requirement (Out of the box function with minor re-configuration) 50%: Partially comply, will require major configuration. 0%: No compliance/require development and/or customisation. | M9: 0 | N9: =K9*M9 -> 0
A10: 2 | B10: Meeting the Scope of Work Required | C10: How well has the Tenderer described how scope requirements will be met? Do they understand what needs to be done? List concerns in Comments. | D10: System | E10: The system should also have the functionality to allow users to perform backups of their entire database, and the ability to restore these backups as and when required. | F10: Indicate if the solution : - Is an Out-of-the-box functionality - Requires configuration? - Requires customisation? | I10: Show stopper | J10: =IF(I10='Priority Ratings'!$C$21,'Priority Ratings'!$B$21, IF(I10='Priority Ratings'!$C$22,'Priority Ratings'!$B$22,IF(I10='Priority Ratings'!$C$23,'Priority Ratings'!$B$23,IF(I10='Priority Ratings'!$C$24,'Priority Ratings'!$B$24,IF(I10='Priority Ratings'!$C$25,'Priority Ratings'!$B$25,IF(I10='Priority Ratings'!$C$26,'Priority Ratings'!$B$26,IF(I10='Priority Ratings'!$C$27,'Priority Ratings'!$B$27,"No Rating"))))))) -> 6 | K10: 0.1304347826 | L10: 100%: Fully comply with requirement (Out of the box function with minor re-configuration) 50%: Partially comply, will require major configuration. 0%: No compliance/require development and/or customisation. | M10: 0 | N10: =K10*M10 -> 0
A11: 3 | B11: Meeting the Scope of Work Required | C11: How well has the Tenderer described how scope requirements will be met? Do they understand what needs to be done? List concerns in Comments. | D11: System | E11: The system needs to ensure that all modelling, network changes etc., are recorded and stored as and when they are done and should not be lost if the operating system or software crashes while one is working on a model. | F11: Indicate if the solution : - Is an Out-of-the-box functionality - Requires configuration? - Requires customisation? | I11: Critical | J11: =IF(I11='Priority Ratings'!$C$21,'Priority Ratings'!$B$21, IF(I11='Priority Ratings'!$C$22,'Priority Ratings'!$B$22,IF(I11='Priority Ratings'!$C$23,'Priority Ratings'!$B$23,IF(I11='Priority Ratings'!$C$24,'Priority Ratings'!$B$24,IF(I11='Priority Ratings'!$C$25,'Priority Ratings'!$B$25,IF(I11='Priority Ratings'!$C$26,'Priority Ratings'!$B$26,IF(I11='Priority Ratings'!$C$27,'Priority Ratings'!$B$27,"No Rating"))))))) -> 5 | K11: 0.1086956522 | L11: 100%: Fully comply with requirement (Out of the box function with minor re-configuration) 50%: Partially comply, will require major configuration. 0%: No compliance/require development and/or customisation. | M11: 0 | N11: 0
A12: 4 | B12: Meeting the Scope of Work Required | C12: How well has the Tenderer described how scope requirements will be met? Do they understand what needs to be done? List concerns in Comments. | D12: System | E12: Strict user access control to the system and its associated data. | F12: Indicate if the solution : - Is an Out-of-the-box functionality - Requires configuration? - Requires customisation? | I12: Critical | J12: =IF(I12='Priority Ratings'!$C$21,'Priority Ratings'!$B$21, IF(I12='Priority Ratings'!$C$22,'Priority Ratings'!$B$22,IF(I12='Priority Ratings'!$C$23,'Priority Ratings'!$B$23,IF(I12='Priority Ratings'!$C$24,'Priority Ratings'!$B$24,IF(I12='Priority Ratings'!$C$25,'Priority Ratings'!$B$25,IF(I12='Priority Ratings'!$C$26,'Priority Ratings'!$B$26,IF(I12='Priority Ratings'!$C$27,'Priority Ratings'!$B$27,"No Rating"))))))) -> 5 | K12: 0.1086956522 | L12: 100%: Fully comply with requirement (Out of the box function with minor re-configuration) 50%: Partially comply, will require major configuration. 0%: No compliance/require development and/or customisation. | M12: 0 | N12: 0
A13: 5 | B13: Meeting the Scope of Work Required | C13: How well has the Tenderer described how scope requirements will be met? Do they understand what needs to be done? List concerns in Comments. | D13: System | E13: The system must be fully accessible via Web services. | F13: Indicate if the solution : - Is an Out-of-the-box functionality - Requires configuration? - Requires customisation? | I13: Very important | J13: =IF(I13='Priority Ratings'!$C$21,'Priority Ratings'!$B$21, IF(I13='Priority Ratings'!$C$22,'Priority Ratings'!$B$22,IF(I13='Priority Ratings'!$C$23,'Priority Ratings'!$B$23,IF(I13='Priority Ratings'!$C$24,'Priority Ratings'!$B$24,IF(I13='Priority Ratings'!$C$25,'Priority Ratings'!$B$25,IF(I13='Priority Ratings'!$C$26,'Priority Ratings'!$B$26,IF(I13='Priority Ratings'!$C$27,'Priority Ratings'!$B$27,"No Rating"))))))) -> 4 | K13: 0.08695652174 | L13: 100%: Fully comply with requirement (Out of the box function with minor re-configuration) 50%: Partially comply, will require major configuration. 0%: No compliance/require development and/or customisation. | M13: 0 | N13: 0
A14: 6 | B14: Meeting the Scope of Work Required | C14: How well has the Tenderer described how scope requirements will be met? Do they understand what needs to be done? List concerns in Comments. | D14: System | E14: Capability to provide Enterprise licence and allow Group IT System Administrator to release and re assign licences as per business requirements and application usage. | F14: Indicate if the solution : - Is an Out-of-the-box functionality - Requires configuration? - Requires customisation? | I14: Show stopper | J14: =IF(I14='Priority Ratings'!$C$21,'Priority Ratings'!$B$21, IF(I14='Priority Ratings'!$C$22,'Priority Ratings'!$B$22,IF(I14='Priority Ratings'!$C$23,'Priority Ratings'!$B$23,IF(I14='Priority Ratings'!$C$24,'Priority Ratings'!$B$24,IF(I14='Priority Ratings'!$C$25,'Priority Ratings'!$B$25,IF(I14='Priority Ratings'!$C$26,'Priority Ratings'!$B$26,IF(I14='Priority Ratings'!$C$27,'Priority Ratings'!$B$27,"No Rating"))))))) -> 6 | K14: 0.1304347826 | L14: 100%: Fully comply with requirement (Out of the box function with minor re-configuration) 50%: Partially comply, will require major configuration. 0%: No compliance/require development and/or customisation. | M14: 0 | N14: 0
A15: 7 | B15: Meeting the Scope of Work Required | C15: How well has the Tenderer described how scope requirements will be met? Do they understand what needs to be done? List concerns in Comments. | D15: System | E15: In general, the system and all algorithms should support multi-thread parallel computing to resolve complex assessments efficiently. | F15: Indicate if the solution : - Is an Out-of-the-box functionality - Requires configuration? - Requires customisation? | I15: Critical | J15: =IF(I15='Priority Ratings'!$C$21,'Priority Ratings'!$B$21, IF(I15='Priority Ratings'!$C$22,'Priority Ratings'!$B$22,IF(I15='Priority Ratings'!$C$23,'Priority Ratings'!$B$23,IF(I15='Priority Ratings'!$C$24,'Priority Ratings'!$B$24,IF(I15='Priority Ratings'!$C$25,'Priority Ratings'!$B$25,IF(I15='Priority Ratings'!$C$26,'Priority Ratings'!$B$26,IF(I15='Priority Ratings'!$C$27,'Priority Ratings'!$B$27,"No Rating"))))))) -> 5 | K15: 0.1086956522 | L15: 100%: Fully comply with requirement (Out of the box function with minor re-configuration) 50%: Partially comply, will require major configuration. 0%: No compliance/require development and/or customisation. | M15: 0 | N15: 0
A16: 8 | B16: Meeting the Scope of Work Required | C16: How well has the Tenderer described how scope requirements will be met? Do they understand what needs to be done? List concerns in Comments. | D16: System | E16: User profiles with customisable toolbars, dialogs, and context menus | F16: Indicate if the solution : - Is an Out-of-the-box functionality - Requires configuration? - Requires customisation? | I16: Very important | J16: =IF(I16='Priority Ratings'!$C$21,'Priority Ratings'!$B$21, IF(I16='Priority Ratings'!$C$22,'Priority Ratings'!$B$22,IF(I16='Priority Ratings'!$C$23,'Priority Ratings'!$B$23,IF(I16='Priority Ratings'!$C$24,'Priority Ratings'!$B$24,IF(I16='Priority Ratings'!$C$25,'Priority Ratings'!$B$25,IF(I16='Priority Ratings'!$C$26,'Priority Ratings'!$B$26,IF(I16='Priority Ratings'!$C$27,'Priority Ratings'!$B$27,"No Rating"))))))) -> 4 | K16: 0.08695652174 | L16: 100%: Fully comply with requirement (Out of the box function with minor re-configuration) 50%: Partially comply, will require major configuration. 0%: No compliance/require development and/or customisation. | M16: 0 | N16: 0
A17: 9 | B17: Meeting the Scope of Work Required | C17: How well has the Tenderer described how scope requirements will be met? Do they understand what needs to be done? List concerns in Comments. | D17: System | E17: Fully compatible with other 32-bit applications run in a Windows 64-bit environments | F17: Indicate if the solution : - Is an Out-of-the-box functionality - Requires configuration? - Requires customisation? | I17: Critical | J17: =IF(I17='Priority Ratings'!$C$21,'Priority Ratings'!$B$21, IF(I17='Priority Ratings'!$C$22,'Priority Ratings'!$B$22,IF(I17='Priority Ratings'!$C$23,'Priority Ratings'!$B$23,IF(I17='Priority Ratings'!$C$24,'Priority Ratings'!$B$24,IF(I17='Priority Ratings'!$C$25,'Priority Ratings'!$B$25,IF(I17='Priority Ratings'!$C$26,'Priority Ratings'!$B$26,IF(I17='Priority Ratings'!$C$27,'Priority Ratings'!$B$27,"No Rating"))))))) -> 5 | K17: 0.1086956522 | L17: 100%: Fully comply with requirement (Out of the box function with minor re-configuration) 50%: Partially comply, will require major configuration. 0%: No compliance/require development and/or customisation. | M17: 0 | N17: 0
H19: Totals | J19: =SUM(J9:J17) -> 46 | K19: =SUM(K9:K17) -> 1 | N19: =SUM(N9:N17) -> 0
B36: Y
B37: P
B38: N

Sheet PSST-Power System Analysis
A1: Power System Simulation Tool Functional: PSST-Power System Analysis BRS2.1 BRS 3.1 BRS4.1 BRS12.1 BRS13.1
A2: CORP xxxx Tender | M2: Scoring (Sliding scale)
A3: Tenderer: | M3: 100% - Fully compliant
A4: Evaluated by: | M4: 50%-Partially compliant
M5: 0%-Non compliance
A6: Evaluation Criteria
G7: Vendor Compliance Full Compliance - Y Partial Compliance - P Non Compliance - N | H7: Vendor to indicate any applicable comments based on Compliance | I7: Priority Requirement priority as determined by Eskom | J7: Weight (agreed by evaluation team members) | L7: Score (determined by each evaluation team member during evaluation. Will be averaged for final scores) | M7: Score | O7: Comments (Internal) for scorer
A8: ID | B8: Type | C8: Criterion | D8: Functional Requirement | E8: Requirement description | F8: Evaluation Criterion / Question | G8: Vendor Compliance | H8: Comments | I8: Priority Description | J8: Priority | K8: Weighted Question | L8: Scoring | M8: Answer (0,50,100%) | N8: Weighted Answer
A9: 1 | B9: Meeting the Scope of Work Required | C9: How well has the Tenderer described how scope requirements will be met? Do they understand what needs to be done? List concerns in Comments. | D9: Load Flow Analysis | E9: Balanced and unbalanced load flow for coupled AC and DC grids | F9: Indicate if the solution : - Is an Out-of-the-box functionality - Requires configuration? - Requires customisation? | I9: Show stopper | J9: =IF(I9='Priority Ratings'!$C$21,'Priority Ratings'!$B$21, IF(I9='Priority Ratings'!$C$22,'Priority Ratings'!$B$22,IF(I9='Priority Ratings'!$C$23,'Priority Ratings'!$B$23,IF(I9='Priority Ratings'!$C$24,'Priority Ratings'!$B$24,IF(I9='Priority Ratings'!$C$25,'Priority Ratings'!$B$25,IF(I9='Priority Ratings'!$C$26,'Priority Ratings'!$B$26,IF(I9='Priority Ratings'!$C$27,'Priority Ratings'!$B$27,"No Rating"))))))) -> 6 | K9: =J9/J$63 -> 0.02197802198 | L9: 100%: Fully comply with requirement (Out of the box function with minor re-configuration) 50%: Partially comply, will require major configuration. 0%: No compliance/require development and/or customisation. | M9: 0 | N9: =K9*M9 -> 0
A10: 2 | B10: Meeting the Scope of Work Required | C10: How well has the Tenderer described how scope requirements will be met? Do they understand what needs to be done? List concerns in Comments. | D10: Load Flow Analysis | E10: Active/reactive power and voltage regulation options, such as SVC, phase shifting transformers and tap controllers. | F10: Indicate if the solution : - Is an Out-of-the-box functionality - Requires configuration? - Requires customisation? | I10: Show stopper | J10: =IF(I10='Priority Ratings'!$C$21,'Priority Ratings'!$B$21, IF(I10='Priority Ratings'!$C$22,'Priority Ratings'!$B$22,IF(I10='Priority Ratings'!$C$23,'Priority Ratings'!$B$23,IF(I10='Priority Ratings'!$C$24,'Priority Ratings'!$B$24,IF(I10='Priority Ratings'!$C$25,'Priority Ratings'!$B$25,IF(I10='Priority Ratings'!$C$26,'Priority Ratings'!$B$26,IF(I10='Priority Ratings'!$C$27,'Priority Ratings'!$B$27,"No Rating"))))))) -> 6 | K10: 0.02197802198 | L10: 100%: Fully comply with requirement (Out of the box function with minor re-configuration) 50%: Partially comply, will require major configuration. 0%: No compliance/require development and/or customisation. | M10: 0 | N10: =K10*M10 -> 0
A11: 3 | B11: Meeting the Scope of Work Required | C11: How well has the Tenderer described how scope requirements will be met? Do they understand what needs to be done? List concerns in Comments. | D11: Load Flow Analysis | E11: Should be able to modify number of iterations allowed and max number of tap and shunt steps allowed per iteration. | F11: Indicate if the solution : - Is an Out-of-the-box functionality - Requires configuration? - Requires customisation? | I11: Very important | J11: =IF(I11='Priority Ratings'!$C$21,'Priority Ratings'!$B$21, IF(I11='Priority Ratings'!$C$22,'Priority Ratings'!$B$22,IF(I11='Priority Ratings'!$C$23,'Priority Ratings'!$B$23,IF(I11='Priority Ratings'!$C$24,'Priority Ratings'!$B$24,IF(I11='Priority Ratings'!$C$25,'Priority Ratings'!$B$25,IF(I11='Priority Ratings'!$C$26,'Priority Ratings'!$B$26,IF(I11='Priority Ratings'!$C$27,'Priority Ratings'!$B$27,"No Rating"))))))) -> 4 | K11: 0.01465201465 | L11: 100%: Fully comply with requirement (Out of the box function with minor re-configuration) 50%: Partially comply, will require major configuration. 0%: No compliance/require development and/or customisation. | M11: 0 | N11: 0
A12: 4 | B12: Meeting the Scope of Work Required | C12: How well has the Tenderer described how scope requirements will be met? Do they understand what needs to be done? List concerns in Comments. | D12: Load Flow Analysis | E12: Have the ability to modify the load flow settings and se tup "Study Cases" where these settings are remembered and can easily be restored. | F12: Indicate if the solution : - Is an Out-of-the-box functionality - Requires configuration? - Requires customisation? | I12: Show stopper | J12: =IF(I12='Priority Ratings'!$C$21,'Priority Ratings'!$B$21, IF(I12='Priority Ratings'!$C$22,'Priority Ratings'!$B$22,IF(I12='Priority Ratings'!$C$23,'Priority Ratings'!$B$23,IF(I12='Priority Ratings'!$C$24,'Priority Ratings'!$B$24,IF(I12='Priority Ratings'!$C$25,'Priority Ratings'!$B$25,IF(I12='Priority Ratings'!$C$26,'Priority Ratings'!$B$26,IF(I12='Priority Ratings'!$C$27,'Priority Ratings'!$B$27,"No Rating"))))))) -> 6 | K12: 0.02197802198 | L12: 100%: Fully comply with requirement (Out of the box function with minor re-configuration) 50%: Partially comply, will require major configuration. 0%: No compliance/require development and/or customisation. | M12: 0 | N12: 0
A13: 5 | B13: Meeting the Scope of Work Required | C13: How well has the Tenderer described how scope requirements will be met? Do they understand what needs to be done? List concerns in Comments. | D13: Load Flow Analysis | E13: Have the ability to switch between current equations and power equations for Newton-Raphson analysis | F13: Indicate if the solution : - Is an Out-of-the-box functionality - Requires configuration? - Requires customisation? | I13: Critical | J13: =IF(I13='Priority Ratings'!$C$21,'Priority Ratings'!$B$21, IF(I13='Priority Ratings'!$C$22,'Priority Ratings'!$B$22,IF(I13='Priority Ratings'!$C$23,'Priority Ratings'!$B$23,IF(I13='Priority Ratings'!$C$24,'Priority Ratings'!$B$24,IF(I13='Priority Ratings'!$C$25,'Priority Ratings'!$B$25,IF(I13='Priority Ratings'!$C$26,'Priority Ratings'!$B$26,IF(I13='Priority Ratings'!$C$27,'Priority Ratings'!$B$27,"No Rating"))))))) -> 5 | K13: 0.01831501832 | L13: 100%: Fully comply with requirement (Out of the box function with minor re-configuration) 50%: Partially comply, will require major configuration. 0%: No compliance/require development and/or customisation. | M13: 0 | N13: 0
A14: 6 | B14: Meeting the Scope of Work Required | C14: How well has the Tenderer described how scope requirements will be met? Do they understand what needs to be done? List concerns in Comments. | D14: Load Flow Analysis | E14: Station- and network control features, including Q(U)-, cosphi(P)-, Q(P)-, and droop characteristics | F14: Indicate if the solution : - Is an Out-of-the-box functionality - Requires configuration? - Requires customisation? | I14: Critical | J14: =IF(I14='Priority Ratings'!$C$21,'Priority Ratings'!$B$21, IF(I14='Priority Ratings'!$C$22,'Priority Ratings'!$B$22,IF(I14='Priority Ratings'!$C$23,'Priority Ratings'!$B$23,IF(I14='Priority Ratings'!$C$24,'Priority Ratings'!$B$24,IF(I14='Priority Ratings'!$C$25,'Priority Ratings'!$B$25,IF(I14='Priority Ratings'!$C$26,'Priority Ratings'!$B$26,IF(I14='Priority Ratings'!$C$27,'Priority Ratings'!$B$27,"No Rating"))))))) -> 5 | K14: 0.01831501832 | L14: 100%: Fully comply with requirement (Out of the box function with minor re-configuration) 50%: Partially comply, will require major configuration. 0%: No compliance/require development and/or customisation. | M14: 0 | N14: 0
A15: 7 | B15: Meeting the Scope of Work Required | C15: How well has the Tenderer described how scope requirements will be met? Do they understand what needs to be done? List concerns in Comments. | D15: Load Flow Analysis | E15: Local and remote busbar voltage control options | F15: Indicate if the solution : - Is an Out-of-the-box functionality - Requires configuration? - Requires customisation? | I15: Show stopper | J15: =IF(I15='Priority Ratings'!$C$21,'Priority Ratings'!$B$21, IF(I15='Priority Ratings'!$C$22,'Priority Ratings'!$B$22,IF(I15='Priority Ratings'!$C$23,'Priority Ratings'!$B$23,IF(I15='Priority Ratings'!$C$24,'Priority Ratings'!$B$24,IF(I15='Priority Ratings'!$C$25,'Priority Ratings'!$B$25,IF(I15='Priority Ratings'!$C$26,'Priority Ratings'!$B$26,IF(I15='Priority Ratings'!$C$27,'Priority Ratings'!$B$27,"No Rating"))))))) -> 6 | K15: 0.02197802198 | L15: 100%: Fully comply with requirement (Out of the box function with minor re-configuration) 50%: Partially comply, will require major configuration. 0%: No compliance/require development and/or customisation. | M15: 0 | N15: 0
A16: 8 | B16: Meeting the Scope of Work Required | C16: How well has the Tenderer described how scope requirements will be met? Do they understand what needs to be done? List concerns in Comments. | D16: Load Flow Analysis | E16: Secondary and primary control, inertial response, and the ability to set the slack/reference bus for load flow analysis | F16: Indicate if the solution : - Is an Out-of-the-box functionality - Requires configuration? - Requires customisation? | I16: Show stopper | J16: =IF(I16='Priority Ratings'!$C$21,'Priority Ratings'!$B$21, IF(I16='Priority Ratings'!$C$22,'Priority Ratings'!$B$22,IF(I16='Priority Ratings'!$C$23,'Priority Ratings'!$B$23,IF(I16='Priority Ratings'!$C$24,'Priority Ratings'!$B$24,IF(I16='Priority Ratings'!$C$25,'Priority Ratings'!$B$25,IF(I16='Priority Ratings'!$C$26,'Priority Ratings'!$B$26,IF(I16='Priority Ratings'!$C$27,'Priority Ratings'!$B$27,"No Rating"))))))) -> 6 | K16: 0.02197802198 | L16: 100%: Fully comply with requirement (Out of the box function with minor re-configuration) 50%: Partially comply, will require major configuration. 0%: No compliance/require development and/or customisation. | M16: 0 | N16: 0
A17: 9 | B17: Meeting the Scope of Work Required | C17: How well has the Tenderer described how scope requirements will be met? Do they understand what needs to be done? List concerns in Comments. | D17: Load Flow Analysis | E17: Distributed slack busbar load and/or generation, including interchange schedules | F17: Indicate if the solution : - Is an Out-of-the-box functionality - Requires configuration? - Requires customisation? | I17: Critical | J17: =IF(I17='Priority Ratings'!$C$21,'Priority Ratings'!$B$21, IF(I17='Priority Ratings'!$C$22,'Priority Ratings'!$B$22,IF(I17='Priority Ratings'!$C$23,'Priority Ratings'!$B$23,IF(I17='Priority Ratings'!$C$24,'Priority Ratings'!$B$24,IF(I17='Priority Ratings'!$C$25,'Priority Ratings'!$B$25,IF(I17='Priority Ratings'!$C$26,'Priority Ratings'!$B$26,IF(I17='Priority Ratings'!$C$27,'Priority Ratings'!$B$27,"No Rating"))))))) -> 5 | K17: 0.01831501832 | L17: 100%: Fully comply with requirement (Out of the box function with minor re-configuration) 50%: Partially comply, will require major configuration. 0%: No compliance/require development and/or customisation. | M17: 0 | N17: 0
A18: 10 | B18: Meeting the Scope of Work Required | C18: How well has the Tenderer described how scope requirements will be met? Do they understand what needs to be done? List concerns in Comments. | D18: Load Flow Analysis | E18: Consideration of active and reactive power limits, including (voltagedependent) generator capability curves | F18: Indicate if the solution : - Is an Out-of-the-box functionality - Requires configuration? - Requires customisation? | I18: Show stopper | J18: =IF(I18='Priority Ratings'!$C$21,'Priority Ratings'!$B$21, IF(I18='Priority Ratings'!$C$22,'Priority Ratings'!$B$22,IF(I18='Priority Ratings'!$C$23,'Priority Ratings'!$B$23,IF(I18='Priority Ratings'!$C$24,'Priority Ratings'!$B$24,IF(I18='Priority Ratings'!$C$25,'Priority Ratings'!$B$25,IF(I18='Priority Ratings'!$C$26,'Priority Ratings'!$B$26,IF(I18='Priority Ratings'!$C$27,'Priority Ratings'!$B$27,"No Rating"))))))) -> 6 | K18: 0.02197802198 | L18: 100%: Fully comply with requirement (Out of the box function with minor re-configuration) 50%: Partially comply, will require major configuration. 0%: No compliance/require development and/or customisation. | M18: 0 | N18: 0
A19: 11 | B19: Meeting the Scope of Work Required | C19: How well has the Tenderer described how scope requirements will be met? Do they understand what needs to be done? List concerns in Comments. | D19: Load Flow Analysis | E19: Provide accurate modelling of induction machines (Motor starting function) | F19: Indicate if the solution : - Is an Out-of-the-box functionality - Requires configuration? - Requires customisation? | I19: Critical | J19: =IF(I19='Priority Ratings'!$C$21,'Priority Ratings'!$B$21, IF(I19='Priority Ratings'!$C$22,'Priority Ratings'!$B$22,IF(I19='Priority Ratings'!$C$23,'Priority Ratings'!$B$23,IF(I19='Priority Ratings'!$C$24,'Priority Ratings'!$B$24,IF(I19='Priority Ratings'!$C$25,'Priority Ratings'!$B$25,IF(I19='Priority Ratings'!$C$26,'Priority Ratings'!$B$26,IF(I19='Priority Ratings'!$C$27,'Priority Ratings'!$B$27,"No Rating"))))))) -> 5 | K19: 0.01831501832 | L19: 100%: Fully comply with requirement (Out of the box function with minor re-configuration) 50%: Partially comply, will require major configuration. 0%: No compliance/require development and/or customisation. | M19: 0 | N19: 0
A20: 12 | B20: Meeting the Scope of Work Required | C20: How well has the Tenderer described how scope requirements will be met? Do they understand what needs to be done? List concerns in Comments. | D20: Load Flow Analysis | E20: Voltage dependent load models that support constant current, constant impedance, and constant power loads with the ability to mix them together (i.e., 20% constant current, 30% constant impedance etc.) Should also be able to specify custom exponent for constant impedance (e.g., 1.5 instead of 2). | F20: Indicate if the solution : - Is an Out-of-the-box functionality - Requires configuration? - Requires customisation? | I20: Show stopper | J20: =IF(I20='Priority Ratings'!$C$21,'Priority Ratings'!$B$21, IF(I20='Priority Ratings'!$C$22,'Priority Ratings'!$B$22,IF(I20='Priority Ratings'!$C$23,'Priority Ratings'!$B$23,IF(I20='Priority Ratings'!$C$24,'Priority Ratings'!$B$24,IF(I20='Priority Ratings'!$C$25,'Priority Ratings'!$B$25,IF(I20='Priority Ratings'!$C$26,'Priority Ratings'!$B$26,IF(I20='Priority Ratings'!$C$27,'Priority Ratings'!$B$27,"No Rating"))))))) -> 6 | K20: 0.02197802198 | L20: 100%: Fully comply with requirement (Out of the box function with minor re-configuration) 50%: Partially comply, will require major configuration. 0%: No compliance/require development and/or customisation. | M20: 0 | N20: 0
A21: 13 | B21: Meeting the Scope of Work Required | C21: How well has the Tenderer described how scope requirements will be met? Do they understand what needs to be done? List concerns in Comments. | D21: Load Flow Analysis | E21: support frequency dependent load models | F21: Indicate if the solution : - Is an Out-of-the-box functionality - Requires configuration? - Requires customisation? | I21: Show stopper | J21: =IF(I21='Priority Ratings'!$C$21,'Priority Ratings'!$B$21, IF(I21='Priority Ratings'!$C$22,'Priority Ratings'!$B$22,IF(I21='Priority Ratings'!$C$23,'Priority Ratings'!$B$23,IF(I21='Priority Ratings'!$C$24,'Priority Ratings'!$B$24,IF(I21='Priority Ratings'!$C$25,'Priority Ratings'!$B$25,IF(I21='Priority Ratings'!$C$26,'Priority Ratings'!$B$26,IF(I21='Priority Ratings'!$C$27,'Priority Ratings'!$B$27,"No Rating"))))))) -> 6 | K21: 0.02197802198 | L21: 100%: Fully comply with requirement (Out of the box function with minor re-configuration) 50%: Partially comply, will require major configuration. 0%: No compliance/require development and/or customisation. | M21: 0 | N21: 0
A22: 14 | B22: Meeting the Scope of Work Required | C22: How well has the Tenderer described how scope requirements will be met? Do they understand what needs to be done? List concerns in Comments. | D22: Load Flow Analysis | E22: Support Traction load models (Train Load models) | F22: Indicate if the solution : - Is an Out-of-the-box functionality - Requires configuration? - Requires customisation? | I22: Show stopper | J22: =IF(I22='Priority Ratings'!$C$21,'Priority Ratings'!$B$21, IF(I22='Priority Ratings'!$C$22,'Priority Ratings'!$B$22,IF(I22='Priority Ratings'!$C$23,'Priority Ratings'!$B$23,IF(I22='Priority Ratings'!$C$24,'Priority Ratings'!$B$24,IF(I22='Priority Ratings'!$C$25,'Priority Ratings'!$B$25,IF(I22='Priority Ratings'!$C$26,'Priority Ratings'!$B$26,IF(I22='Priority Ratings'!$C$27,'Priority Ratings'!$B$27,"No Rating"))))))) -> 6 | K22: 0.02197802198 | L22: 100%: Fully comply with requirement (Out of the box function with minor re-configuration) 50%: Partially comply, will require major configuration. 0%: No compliance/require development and/or customisation. | M22: 0 | N22: 0
A23: 15 | B23: Meeting the Scope of Work Required | C23: How well has the Tenderer described how scope requirements will be met? Do they understand what needs to be done? List concerns in Comments. | D23: Load Flow Analysis | E23: User-definable load flow controller models | F23: Indicate if the solution : - Is an Out-of-the-box functionality - Requires configuration? - Requires customisation? | I23: Critical | J23: =IF(I23='Priority Ratings'!$C$21,'Priority Ratings'!$B$21, IF(I23='Priority Ratings'!$C$22,'Priority Ratings'!$B$22,IF(I23='Priority Ratings'!$C$23,'Priority Ratings'!$B$23,IF(I23='Priority Ratings'!$C$24,'Priority Ratings'!$B$24,IF(I23='Priority Ratings'!$C$25,'Priority Ratings'!$B$25,IF(I23='Priority Ratings'!$C$26,'Priority Ratings'!$B$26,IF(I23='Priority Ratings'!$C$27,'Priority Ratings'!$B$27,"No Rating"))))))) -> 5 | K23: 0.01831501832 | L23: 100%: Fully comply with requirement (Out of the box function with minor re-configuration) 50%: Partially comply, will require major configuration. 0%: No compliance/require development and/or customisation. | M23: 0 | N23: 0
A24: 16 | B24: Meeting the Scope of Work Required | C24: How well has the Tenderer described how scope requirements will be met? Do they understand what needs to be done? List concerns in Comments. | D24: Load Flow Analysis | E24: Simple load/generation scaling, as well as automated feeder load scaling (balanced and unbalanced) at area or aggregated Zone level | F24: Indicate if the solution : - Is an Out-of-the-box functionality - Requires configuration? - Requires customisation? | I24: Critical | J24: =IF(I24='Priority Ratings'!$C$21,'Priority Ratings'!$B$21, IF(I24='Priority Ratings'!$C$22,'Priority Ratings'!$B$22,IF(I24='Priority Ratings'!$C$23,'Priority Ratings'!$B$23,IF(I24='Priority Ratings'!$C$24,'Priority Ratings'!$B$24,IF(I24='Priority Ratings'!$C$25,'Priority Ratings'!$B$25,IF(I24='Priority Ratings'!$C$26,'Priority Ratings'!$B$26,IF(I24='Priority Ratings'!$C$27,'Priority Ratings'!$B$27,"No Rating"))))))) -> 5 | K24: 0.01831501832 | L24: 100%: Fully comply with requirement (Out of the box function with minor re-configuration) 50%: Partially comply, will require major configuration. 0%: No compliance/require development and/or customisation. | M24: 0 | N24: 0
A25: 17 | B25: Meeting the Scope of Work Required | C25: How well has the Tenderer described how scope requirements will be met? Do they understand what needs to be done? List concerns in Comments. | D25: Load Flow Analysis | E25: Consideration of temperature dependency | F25: Indicate if the solution : - Is an Out-of-the-box functionality - Requires configuration? - Requires customisation? | I25: Critical | J25: =IF(I25='Priority Ratings'!$C$21,'Priority Ratings'!$B$21, IF(I25='Priority Ratings'!$C$22,'Priority Ratings'!$B$22,IF(I25='Priority Ratings'!$C$23,'Priority Ratings'!$B$23,IF(I25='Priority Ratings'!$C$24,'Priority Ratings'!$B$24,IF(I25='Priority Ratings'!$C$25,'Priority Ratings'!$B$25,IF(I25='Priority Ratings'!$C$26,'Priority Ratings'!$B$26,IF(I25='Priority Ratings'!$C$27,'Priority Ratings'!$B$27,"No Rating"))))))) -> 5 | K25: 0.01831501832 | L25: 100%: Fully comply with requirement (Out of the box function with minor re-configuration) 50%: Partially comply, will require major configuration. 0%: No compliance/require development and/or customisation. | M25: 0 | N25: 0
A26: 18 | B26: Meeting the Scope of Work Required | C26: How well has the Tenderer described how scope requirements will be met? Do they understand what needs to be done? List concerns in Comments. | D26: Load Flow Analysis | E26: Probabilistic load flow analysis | F26: Indicate if the solution : - Is an Out-of-the-box functionality - Requires configuration? - Requires customisation? | I26: Very important | J26: =IF(I26='Priority Ratings'!$C$21,'Priority Ratings'!$B$21, IF(I26='Priority Ratings'!$C$22,'Priority Ratings'!$B$22,IF(I26='Priority Ratings'!$C$23,'Priority Ratings'!$B$23,IF(I26='Priority Ratings'!$C$24,'Priority Ratings'!$B$24,IF(I26='Priority Ratings'!$C$25,'Priority Ratings'!$B$25,IF(I26='Priority Ratings'!$C$26,'Priority Ratings'!$B$26,IF(I26='Priority Ratings'!$C$27,'Priority Ratings'!$B$27,"No Rating"))))))) -> 4 | K26: 0.01465201465 | L26: 100%: Fully comply with requirement (Out of the box function with minor re-configuration) 50%: Partially comply, will require major configuration. 0%: No compliance/require development and/or customisation. | M26: 0 | N26: 0
A27: 19 | B27: Meeting the Scope of Work Required | C27: How well has the Tenderer described how scope requirements will be met? Do they understand what needs to be done? List concerns in Comments. | D27: Short- Circuit / Fault level studies | E27: Support of IEC 60909 (including 2016 edition), IEEE 141/ANSI C37 and IEC 61363 norms and methods | F27: Indicate if the solution : - Is an Out-of-the-box functionality - Requires configuration? - Requires customisation? | I27: Show stopper | J27: =IF(I27='Priority Ratings'!$C$21,'Priority Ratings'!$B$21, IF(I27='Priority Ratings'!$C$22,'Priority Ratings'!$B$22,IF(I27='Priority Ratings'!$C$23,'Priority Ratings'!$B$23,IF(I27='Priority Ratings'!$C$24,'Priority Ratings'!$B$24,IF(I27='Priority Ratings'!$C$25,'Priority Ratings'!$B$25,IF(I27='Priority Ratings'!$C$26,'Priority Ratings'!$B$26,IF(I27='Priority Ratings'!$C$27,'Priority Ratings'!$B$27,"No Rating"))))))) -> 6 | K27: 0.02197802198 | L27: 100%: Fully comply with requirement (Out of the box function with minor re-configuration) 50%: Partially comply, will require major configuration. 0%: No compliance/require development and/or customisation. | M27: 0 | N27: 0
A28: 20 | B28: Meeting the Scope of Work Required | C28: How well has the Tenderer described how scope requirements will be met? Do they understand what needs to be done? List concerns in Comments. | D28: Short- Circuit / Fault level studies | E28: Complete superposition method, including dynamic voltage support of generators connected via power electronics and to specify that the method allows the user to calculate pre-fault voltage to be used from a load flow | F28: Indicate if the solution : - Is an Out-of-the-box functionality - Requires configuration? - Requires customisation? | I28: Critical | J28: =IF(I28='Priority Ratings'!$C$21,'Priority Ratings'!$B$21, IF(I28='Priority Ratings'!$C$22,'Priority Ratings'!$B$22,IF(I28='Priority Ratings'!$C$23,'Priority Ratings'!$B$23,IF(I28='Priority Ratings'!$C$24,'Priority Ratings'!$B$24,IF(I28='Priority Ratings'!$C$25,'Priority Ratings'!$B$25,IF(I28='Priority Ratings'!$C$26,'Priority Ratings'!$B$26,IF(I28='Priority Ratings'!$C$27,'Priority Ratings'!$B$27,"No Rating"))))))) -> 5 | K28: 0.01831501832 | L28: 100%: Fully comply with requirement (Out of the box function with minor re-configuration) 50%: Partially comply, will require major configuration. 0%: No compliance/require development and/or customisation. | M28: 0 | N28: 0
A29: 21 | B29: Meeting the Scope of Work Required | C29: How well has the Tenderer described how scope requirements will be met? Do they understand what needs to be done? List concerns in Comments. | D29: Short- Circuit / Fault level studies | E29: Ability to specify fault impedance | F29: Indicate if the solution : - Is an Out-of-the-box functionality - Requires configuration? - Requires customisation? | I29: Critical | J29: =IF(I29='Priority Ratings'!$C$21,'Priority Ratings'!$B$21, IF(I29='Priority Ratings'!$C$22,'Priority Ratings'!$B$22,IF(I29='Priority Ratings'!$C$23,'Priority Ratings'!$B$23,IF(I29='Priority Ratings'!$C$24,'Priority Ratings'!$B$24,IF(I29='Priority Ratings'!$C$25,'Priority Ratings'!$B$25,IF(I29='Priority Ratings'!$C$26,'Priority Ratings'!$B$26,IF(I29='Priority Ratings'!$C$27,'Priority Ratings'!$B$27,"No Rating"))))))) -> 5 | K29: 0.01831501832 | L29: 100%: Fully comply with requirement (Out of the box function with minor re-configuration) 50%: Partially comply, will require major configuration. 0%: No compliance/require development and/or customisation. | M29: 0 | N29: 0
A30: 22 | B30: Meeting the Scope of Work Required | C30: How well has the Tenderer described how scope requirements will be met? Do they understand what needs to be done? List concerns in Comments. | D30: Short- Circuit / Fault level studies | E30: Specify all fault types that should be supported (e.g., 3-phase balanced, 3-phase unbalanced, single phase to ground, single phase to neutral etc.) | F30: Indicate if the solution : - Is an Out-of-the-box functionality - Requires configuration? - Requires customisation? | I30: Show stopper | J30: =IF(I30='Priority Ratings'!$C$21,'Priority Ratings'!$B$21, IF(I30='Priority Ratings'!$C$22,'Priority Ratings'!$B$22,IF(I30='Priority Ratings'!$C$23,'Priority Ratings'!$B$23,IF(I30='Priority Ratings'!$C$24,'Priority Ratings'!$B$24,IF(I30='Priority Ratings'!$C$25,'Priority Ratings'!$B$25,IF(I30='Priority Ratings'!$C$26,'Priority Ratings'!$B$26,IF(I30='Priority Ratings'!$C$27,'Priority Ratings'!$B$27,"No Rating"))))))) -> 6 | K30: 0.02197802198 | L30: 100%: Fully comply with requirement (Out of the box function with minor re-configuration) 50%: Partially comply, will require major configuration. 0%: No compliance/require development and/or customisation. | M30: 0 | N30: 0
A31: 23 | B31: Meeting the Scope of Work Required | C31: How well has the Tenderer described how scope requirements will be met? Do they understand what needs to be done? List concerns in Comments. | D31: Short- Circuit / Fault level studies | E31: Calculate fault levels at all terminals and busbars or at a user's selection of terminals | F31: Indicate if the solution : - Is an Out-of-the-box functionality - Requires configuration? - Requires customisation? | I31: Critical | J31: =IF(I31='Priority Ratings'!$C$21,'Priority Ratings'!$B$21, IF(I31='Priority Ratings'!$C$22,'Priority Ratings'!$B$22,IF(I31='Priority Ratings'!$C$23,'Priority Ratings'!$B$23,IF(I31='Priority Ratings'!$C$24,'Priority Ratings'!$B$24,IF(I31='Priority Ratings'!$C$25,'Priority Ratings'!$B$25,IF(I31='Priority Ratings'!$C$26,'Priority Ratings'!$B$26,IF(I31='Priority Ratings'!$C$27,'Priority Ratings'!$B$27,"No Rating"))))))) -> 5 | K31: 0.01831501832 | L31: 100%: Fully comply with requirement (Out of the box function with minor re-configuration) 50%: Partially comply, will require major configuration. 0%: No compliance/require development and/or customisation. | M31: 0 | N31: 0
A32: 24 | B32: Meeting the Scope of Work Required | C32: How well has the Tenderer described how scope requirements will be met? Do they understand what needs to be done? List concerns in Comments. | D32: Short- Circuit / Fault level studies | E32: Fast multiple fault analysis of any kind of fault including single-phase interruption, inter-circuit faults, short circuit sweep along lines, customizable short-circuit sweep diagrams, etc. | F32: Indicate if the solution : - Is an Out-of-the-box functionality - Requires configuration? - Requires customisation? | I32: Critical | J32: =IF(I32='Priority Ratings'!$C$21,'Priority Ratings'!$B$21, IF(I32='Priority Ratings'!$C$22,'Priority Ratings'!$B$22,IF(I32='Priority Ratings'!$C$23,'Priority Ratings'!$B$23,IF(I32='Priority Ratings'!$C$24,'Priority Ratings'!$B$24,IF(I32='Priority Ratings'!$C$25,'Priority Ratings'!$B$25,IF(I32='Priority Ratings'!$C$26,'Priority Ratings'!$B$26,IF(I32='Priority Ratings'!$C$27,'Priority Ratings'!$B$27,"No Rating"))))))) -> 5 | K32: 0.01831501832 | L32: 100%: Fully comply with requirement (Out of the box function with minor re-configuration) 50%: Partially comply, will require major configuration. 0%: No compliance/require development and/or customisation. | M32: 0 | N32: 0
A33: 25 | B33: Meeting the Scope of Work Required | C33: How well has the Tenderer described how scope requirements will be met? Do they understand what needs to be done? List concerns in Comments. | D33: Comprehensive Medium Voltage/Low Voltage (MV/LV) Network Analysis | E33: Voltage profile plots for single and multiple feeders | F33: Indicate if the solution : - Is an Out-of-the-box functionality - Requires configuration? - Requires customisation? | I33: Critical | J33: =IF(I33='Priority Ratings'!$C$21,'Priority Ratings'!$B$21, IF(I33='Priority Ratings'!$C$22,'Priority Ratings'!$B$22,IF(I33='Priority Ratings'!$C$23,'Priority Ratings'!$B$23,IF(I33='Priority Ratings'!$C$24,'Priority Ratings'!$B$24,IF(I33='Priority Ratings'!$C$25,'Priority Ratings'!$B$25,IF(I33='Priority Ratings'!$C$26,'Priority Ratings'!$B$26,IF(I33='Priority Ratings'!$C$27,'Priority Ratings'!$B$27,"No Rating"))))))) -> 5 | K33: 0.01831501832 | L33: 100%: Fully comply with requirement (Out of the box function with minor re-configuration) 50%: Partially comply, will require major configuration. 0%: No compliance/require development and/or customisation. | M33: 0 | N33: 0
A34: 26 | B34: Meeting the Scope of Work Required | C34: How well has the Tenderer described how scope requirements will be met? Do they understand what needs to be done? List concerns in Comments. | D34: Comprehensive Medium Voltage/Low Voltage (MV/LV) Network Analysis | E34: Feeder definition and analysis tools incl. feeder load scaling for simple & meshed feeders. It should have the ability to scale feeders per phase and according to two criteria (The first set point looking at active power contribution specified in Amp, Mega Volt Amp MVA or Megawatts, and the second set point looking at reactive power contribution specified in Mega Volt Amps (Reactive) MVAR or cosphi) | F34: Indicate if the solution : - Is an Out-of-the-box functionality - Requires configuration? - Requires customisation? | I34: Critical | J34: =IF(I34='Priority Ratings'!$C$21,'Priority Ratings'!$B$21, IF(I34='Priority Ratings'!$C$22,'Priority Ratings'!$B$22,IF(I34='Priority Ratings'!$C$23,'Priority Ratings'!$B$23,IF(I34='Priority Ratings'!$C$24,'Priority Ratings'!$B$24,IF(I34='Priority Ratings'!$C$25,'Priority Ratings'!$B$25,IF(I34='Priority Ratings'!$C$26,'Priority Ratings'!$B$26,IF(I34='Priority Ratings'!$C$27,'Priority Ratings'!$B$27,"No Rating"))))))) -> 5 | K34: 0.01831501832 | L34: 100%: Fully comply with requirement (Out of the box function with minor re-configuration) 50%: Partially comply, will require major configuration. 0%: No compliance/require development and/or customisation. | M34: 0 | N34: 0
A35: 27 | B35: Meeting the Scope of Work Required | C35: How well has the Tenderer described how scope requirements will be met? Do they understand what needs to be done? List concerns in Comments. | D35: Comprehensive Medium Voltage/Low Voltage (MV/LV) Network Analysis | E35: Automated schematic visualization and adaptation to the feeder topology and supported by both a geospatial and single-line overview. | F35: Indicate if the solution : - Is an Out-of-the-box functionality - Requires configuration? - Requires customisation? | I35: Critical | J35: =IF(I35='Priority Ratings'!$C$21,'Priority Ratings'!$B$21, IF(I35='Priority Ratings'!$C$22,'Priority Ratings'!$B$22,IF(I35='Priority Ratings'!$C$23,'Priority Ratings'!$B$23,IF(I35='Priority Ratings'!$C$24,'Priority Ratings'!$B$24,IF(I35='Priority Ratings'!$C$25,'Priority Ratings'!$B$25,IF(I35='Priority Ratings'!$C$26,'Priority Ratings'!$B$26,IF(I35='Priority Ratings'!$C$27,'Priority Ratings'!$B$27,"No Rating"))))))) -> 5 | K35: 0.01831501832 | L35: 100%: Fully comply with requirement (Out of the box function with minor re-configuration) 50%: Partially comply, will require major configuration. 0%: No compliance/require development and/or customisation. | M35: 0 | N35: 0
A36: 28 | B36: Meeting the Scope of Work Required | C36: How well has the Tenderer described how scope requirements will be met? Do they understand what needs to be done? List concerns in Comments. | D36: Comprehensive Medium Voltage/Low Voltage (MV/LV) Network Analysis | E36: Radial feeder tools incl. voltage and phase technology change tools. | F36: Indicate if the solution : - Is an Out-of-the-box functionality - Requires configuration? - Requires customisation? | I36: Very important | J36: =IF(I36='Priority Ratings'!$C$21,'Priority Ratings'!$B$21, IF(I36='Priority Ratings'!$C$22,'Priority Ratings'!$B$22,IF(I36='Priority Ratings'!$C$23,'Priority Ratings'!$B$23,IF(I36='Priority Ratings'!$C$24,'Priority Ratings'!$B$24,IF(I36='Priority Ratings'!$C$25,'Priority Ratings'!$B$25,IF(I36='Priority Ratings'!$C$26,'Priority Ratings'!$B$26,IF(I36='Priority Ratings'!$C$27,'Priority Ratings'!$B$27,"No Rating"))))))) -> 4 | K36: 0.01465201465 | L36: 100%: Fully comply with requirement (Out of the box function with minor re-configuration) 50%: Partially comply, will require major configuration. 0%: No compliance/require development and/or customisation. | M36: 0 | N36: 0
A37: 29 | B37: Meeting the Scope of Work Required | C37: How well has the Tenderer described how scope requirements will be met? Do they understand what needs to be done? List concerns in Comments. | D37: Comprehensive Medium Voltage/Low Voltage (MV/LV) Network Analysis | E37: Backbone calculation determining the main connections between meshed feeders | F37: Indicate if the solution : - Is an Out-of-the-box functionality - Requires configuration? - Requires customisation? | I37: Very important | J37: =IF(I37='Priority Ratings'!$C$21,'Priority Ratings'!$B$21, IF(I37='Priority Ratings'!$C$22,'Priority Ratings'!$B$22,IF(I37='Priority Ratings'!$C$23,'Priority Ratings'!$B$23,IF(I37='Priority Ratings'!$C$24,'Priority Ratings'!$B$24,IF(I37='Priority Ratings'!$C$25,'Priority Ratings'!$B$25,IF(I37='Priority Ratings'!$C$26,'Priority Ratings'!$B$26,IF(I37='Priority Ratings'!$C$27,'Priority Ratings'!$B$27,"No Rating"))))))) -> 4 | K37: 0.01465201465 | L37: 100%: Fully comply with requirement (Out of the box function with minor re-configuration) 50%: Partially comply, will require major configuration. 0%: No compliance/require development and/or customisation. | M37: 0 | N37: 0
A38: 30 | B38: Meeting the Scope of Work Required | C38: How well has the Tenderer described how scope requirements will be met? Do they understand what needs to be done? List concerns in Comments. | D38: Comprehensive Medium Voltage/Low Voltage (MV/LV) Network Analysis | E38: LV network analysis functions | F38: Indicate if the solution : - Is an Out-of-the-box functionality - Requires configuration? - Requires customisation? | I38: Important | J38: =IF(I38='Priority Ratings'!$C$21,'Priority Ratings'!$B$21, IF(I38='Priority Ratings'!$C$22,'Priority Ratings'!$B$22,IF(I38='Priority Ratings'!$C$23,'Priority Ratings'!$B$23,IF(I38='Priority Ratings'!$C$24,'Priority Ratings'!$B$24,IF(I38='Priority Ratings'!$C$25,'Priority Ratings'!$B$25,IF(I38='Priority Ratings'!$C$26,'Priority Ratings'!$B$26,IF(I38='Priority Ratings'!$C$27,'Priority Ratings'!$B$27,"No Rating"))))))) -> 3 | K38: 0.01098901099 | L38: 100%: Fully comply with requirement (Out of the box function with minor re-configuration) 50%: Partially comply, will require major configuration. 0%: No compliance/require development and/or customisation. | M38: 0 | N38: 0
A39: 31 | B39: Meeting the Scope of Work Required | C39: How well has the Tenderer described how scope requirements will be met? Do they understand what needs to be done? List concerns in Comments. | D39: Comprehensive Medium Voltage/Low Voltage (MV/LV) Network Analysis | E39: Stochastic load and generation modelling | F39: Indicate if the solution : - Is an Out-of-the-box functionality - Requires configuration? - Requires customisation? | I39: Very important | J39: =IF(I39='Priority Ratings'!$C$21,'Priority Ratings'!$B$21, IF(I39='Priority Ratings'!$C$22,'Priority Ratings'!$B$22,IF(I39='Priority Ratings'!$C$23,'Priority Ratings'!$B$23,IF(I39='Priority Ratings'!$C$24,'Priority Ratings'!$B$24,IF(I39='Priority Ratings'!$C$25,'Priority Ratings'!$B$25,IF(I39='Priority Ratings'!$C$26,'Priority Ratings'!$B$26,IF(I39='Priority Ratings'!$C$27,'Priority Ratings'!$B$27,"No Rating"))))))) -> 4 | K39: 0.01465201465 | L39: 100%: Fully comply with requirement (Out of the box function with minor re-configuration) 50%: Partially comply, will require major configuration. 0%: No compliance/require development and/or customisation. | M39: 0 | N39: 0
A40: 32 | B40: Meeting the Scope of Work Required | C40: How well has the Tenderer described how scope requirements will be met? Do they understand what needs to be done? List concerns in Comments. | D40: Contingency Analysis | E40: Contingency analysis should be able to be executed using any of the following load flow methods i.e., AC balanced, AC unbalanced, DC and AC linearised etc. | F40: Indicate if the solution : - Is an Out-of-the-box functionality - Requires configuration? - Requires customisation? | I40: Show stopper | J40: =IF(I40='Priority Ratings'!$C$21,'Priority Ratings'!$B$21, IF(I40='Priority Ratings'!$C$22,'Priority Ratings'!$B$22,IF(I40='Priority Ratings'!$C$23,'Priority Ratings'!$B$23,IF(I40='Priority Ratings'!$C$24,'Priority Ratings'!$B$24,IF(I40='Priority Ratings'!$C$25,'Priority Ratings'!$B$25,IF(I40='Priority Ratings'!$C$26,'Priority Ratings'!$B$26,IF(I40='Priority Ratings'!$C$27,'Priority Ratings'!$B$27,"No Rating"))))))) -> 6 | K40: 0.02197802198 | L40: 100%: Fully comply with requirement (Out of the box function with minor re-configuration) 50%: Partially comply, will require major configuration. 0%: No compliance/require development and/or customisation. | M40: 0 | N40: 0
A41: 33 | B41: Meeting the Scope of Work Required | C41: How well has the Tenderer described how scope requirements will be met? Do they understand what needs to be done? List concerns in Comments. | D41: Contingency Analysis | E41: Fast contingency screening with recalculation of critical cases using AC method. | F41: Indicate if the solution : - Is an Out-of-the-box functionality - Requires configuration? - Requires customisation? | I41: Critical | J41: =IF(I41='Priority Ratings'!$C$21,'Priority Ratings'!$B$21, IF(I41='Priority Ratings'!$C$22,'Priority Ratings'!$B$22,IF(I41='Priority Ratings'!$C$23,'Priority Ratings'!$B$23,IF(I41='Priority Ratings'!$C$24,'Priority Ratings'!$B$24,IF(I41='Priority Ratings'!$C$25,'Priority Ratings'!$B$25,IF(I41='Priority Ratings'!$C$26,'Priority Ratings'!$B$26,IF(I41='Priority Ratings'!$C$27,'Priority Ratings'!$B$27,"No Rating"))))))) -> 5 | K41: 0.01831501832 | L41: 100%: Fully comply with requirement (Out of the box function with minor re-configuration) 50%: Partially comply, will require major configuration. 0%: No compliance/require development and/or customisation. | M41: 0 | N41: 0
A42: 34 | B42: Meeting the Scope of Work Required | C42: How well has the Tenderer described how scope requirements will be met? Do they understand what needs to be done? List concerns in Comments. | D42: Contingency Analysis | E42: Single and multiple phase consideration. | F42: Indicate if the solution : - Is an Out-of-the-box functionality - Requires configuration? - Requires customisation? | I42: Critical | J42: =IF(I42='Priority Ratings'!$C$21,'Priority Ratings'!$B$21, IF(I42='Priority Ratings'!$C$22,'Priority Ratings'!$B$22,IF(I42='Priority Ratings'!$C$23,'Priority Ratings'!$B$23,IF(I42='Priority Ratings'!$C$24,'Priority Ratings'!$B$24,IF(I42='Priority Ratings'!$C$25,'Priority Ratings'!$B$25,IF(I42='Priority Ratings'!$C$26,'Priority Ratings'!$B$26,IF(I42='Priority Ratings'!$C$27,'Priority Ratings'!$B$27,"No Rating"))))))) -> 5 | K42: 0.01831501832 | L42: 100%: Fully comply with requirement (Out of the box function with minor re-configuration) 50%: Partially comply, will require major configuration. 0%: No compliance/require development and/or customisation. | M42: 0 | N42: 0
A43: 35 | B43: Meeting the Scope of Work Required | C43: How well has the Tenderer described how scope requirements will be met? Do they understand what needs to be done? List concerns in Comments. | D43: Contingency Analysis | E43: Automatic time sweep contingency analysis over specified periods. | F43: Indicate if the solution : - Is an Out-of-the-box functionality - Requires configuration? - Requires customisation? | I43: Critical | J43: =IF(I43='Priority Ratings'!$C$21,'Priority Ratings'!$B$21, IF(I43='Priority Ratings'!$C$22,'Priority Ratings'!$B$22,IF(I43='Priority Ratings'!$C$23,'Priority Ratings'!$B$23,IF(I43='Priority Ratings'!$C$24,'Priority Ratings'!$B$24,IF(I43='Priority Ratings'!$C$25,'Priority Ratings'!$B$25,IF(I43='Priority Ratings'!$C$26,'Priority Ratings'!$B$26,IF(I43='Priority Ratings'!$C$27,'Priority Ratings'!$B$27,"No Rating"))))))) -> 5 | K43: 0.01831501832 | L43: 100%: Fully comply with requirement (Out of the box function with minor re-configuration) 50%: Partially comply, will require major configuration. 0%: No compliance/require development and/or customisation. | M43: 0 | N43: 0
A44: 36 | B44: Meeting the Scope of Work Required | C44: How well has the Tenderer described how scope requirements will be met? Do they understand what needs to be done? List concerns in Comments. | D44: Contingency Analysis | E44: Parallelisation of the CPU cores for multi-thread calculations. Support of parallelised Contingency Analysis for multiprocessor hardware. | F44: Indicate if the solution : - Is an Out-of-the-box functionality - Requires configuration? - Requires customisation? | I44: Critical | J44: =IF(I44='Priority Ratings'!$C$21,'Priority Ratings'!$B$21, IF(I44='Priority Ratings'!$C$22,'Priority Ratings'!$B$22,IF(I44='Priority Ratings'!$C$23,'Priority Ratings'!$B$23,IF(I44='Priority Ratings'!$C$24,'Priority Ratings'!$B$24,IF(I44='Priority Ratings'!$C$25,'Priority Ratings'!$B$25,IF(I44='Priority Ratings'!$C$26,'Priority Ratings'!$B$26,IF(I44='Priority Ratings'!$C$27,'Priority Ratings'!$B$27,"No Rating"))))))) -> 5 | K44: 0.01831501832 | L44: 100%: Fully comply with requirement (Out of the box function with minor re-configuration) 50%: Partially comply, will require major configuration. 0%: No compliance/require development and/or customisation. | M44: 0 | N44: 0
A45: 37 | B45: Meeting the Scope of Work Required | C45: How well has the Tenderer described how scope requirements will be met? Do they understand what needs to be done? List concerns in Comments. | D45: Contingency Analysis | E45: Enhanced Fault Case management | F45: Indicate if the solution : - Is an Out-of-the-box functionality - Requires configuration? - Requires customisation? | I45: Critical | J45: =IF(I45='Priority Ratings'!$C$21,'Priority Ratings'!$B$21, IF(I45='Priority Ratings'!$C$22,'Priority Ratings'!$B$22,IF(I45='Priority Ratings'!$C$23,'Priority Ratings'!$B$23,IF(I45='Priority Ratings'!$C$24,'Priority Ratings'!$B$24,IF(I45='Priority Ratings'!$C$25,'Priority Ratings'!$B$25,IF(I45='Priority Ratings'!$C$26,'Priority Ratings'!$B$26,IF(I45='Priority Ratings'!$C$27,'Priority Ratings'!$B$27,"No Rating"))))))) -> 5 | K45: 0.01831501832 | L45: 100%: Fully comply with requirement (Out of the box function with minor re-configuration) 50%: Partially comply, will require major configuration. 0%: No compliance/require development and/or customisation. | M45: 0 | N45: 0
A46: 38 | B46: Meeting the Scope of Work Required | C46: How well has the Tenderer described how scope requirements will be met? Do they understand what needs to be done? List concerns in Comments. | D46: Contingency Analysis | E46: Comprehensive spreadsheet reporting features | F46: Indicate if the solution : - Is an Out-of-the-box functionality - Requires configuration? - Requires customisation? | I46: Critical | J46: =IF(I46='Priority Ratings'!$C$21,'Priority Ratings'!$B$21, IF(I46='Priority Ratings'!$C$22,'Priority Ratings'!$B$22,IF(I46='Priority Ratings'!$C$23,'Priority Ratings'!$B$23,IF(I46='Priority Ratings'!$C$24,'Priority Ratings'!$B$24,IF(I46='Priority Ratings'!$C$25,'Priority Ratings'!$B$25,IF(I46='Priority Ratings'!$C$26,'Priority Ratings'!$B$26,IF(I46='Priority Ratings'!$C$27,'Priority Ratings'!$B$27,"No Rating"))))))) -> 5 | K46: 0.01831501832 | L46: 100%: Fully comply with requirement (Out of the box function with minor re-configuration) 50%: Partially comply, will require major configuration. 0%: No compliance/require development and/or customisation. | M46: 0 | N46: 0
A47: 39 | B47: Meeting the Scope of Work Required | C47: How well has the Tenderer described how scope requirements will be met? Do they understand what needs to be done? List concerns in Comments. | D47: Contingency Analysis | E47: Graphical visualization of critical cases | F47: Indicate if the solution : - Is an Out-of-the-box functionality - Requires configuration? - Requires customisation? | I47: Critical | J47: =IF(I47='Priority Ratings'!$C$21,'Priority Ratings'!$B$21, IF(I47='Priority Ratings'!$C$22,'Priority Ratings'!$B$22,IF(I47='Priority Ratings'!$C$23,'Priority Ratings'!$B$23,IF(I47='Priority Ratings'!$C$24,'Priority Ratings'!$B$24,IF(I47='Priority Ratings'!$C$25,'Priority Ratings'!$B$25,IF(I47='Priority Ratings'!$C$26,'Priority Ratings'!$B$26,IF(I47='Priority Ratings'!$C$27,'Priority Ratings'!$B$27,"No Rating"))))))) -> 5 | K47: 0.01831501832 | L47: 100%: Fully comply with requirement (Out of the box function with minor re-configuration) 50%: Partially comply, will require major configuration. 0%: No compliance/require development and/or customisation. | M47: 0 | N47: 0
A48: 40 | B48: Meeting the Scope of Work Required | C48: How well has the Tenderer described how scope requirements will be met? Do they understand what needs to be done? List concerns in Comments. | D48: Contingency Analysis | E48: Tracing and stepping over different states of individual contingency cases | F48: Indicate if the solution : - Is an Out-of-the-box functionality - Requires configuration? - Requires customisation? | I48: Critical | J48: =IF(I48='Priority Ratings'!$C$21,'Priority Ratings'!$B$21, IF(I48='Priority Ratings'!$C$22,'Priority Ratings'!$B$22,IF(I48='Priority Ratings'!$C$23,'Priority Ratings'!$B$23,IF(I48='Priority Ratings'!$C$24,'Priority Ratings'!$B$24,IF(I48='Priority Ratings'!$C$25,'Priority Ratings'!$B$25,IF(I48='Priority Ratings'!$C$26,'Priority Ratings'!$B$26,IF(I48='Priority Ratings'!$C$27,'Priority Ratings'!$B$27,"No Rating"))))))) -> 5 | K48: =J48/J$63 -> 0.01831501832 | L48: 100%: Fully comply with requirement (Out of the box function with minor re-configuration) 50%: Partially comply, will require major configuration. 0%: No compliance/require development and/or customisation. | M48: 0 | N48: 0
A49: 41 | B49: Meeting the Scope of Work Required | C49: How well has the Tenderer described how scope requirements will be met? Do they understand what needs to be done? List concerns in Comments. | D49: Contingency Analysis | E49: Tracing and stepping over different states of individual contingency cases | F49: Indicate if the solution : - Is an Out-of-the-box functionality - Requires configuration? - Requires customisation? | I49: Critical | J49: =IF(I49='Priority Ratings'!$C$21,'Priority Ratings'!$B$21, IF(I49='Priority Ratings'!$C$22,'Priority Ratings'!$B$22,IF(I49='Priority Ratings'!$C$23,'Priority Ratings'!$B$23,IF(I49='Priority Ratings'!$C$24,'Priority Ratings'!$B$24,IF(I49='Priority Ratings'!$C$25,'Priority Ratings'!$B$25,IF(I49='Priority Ratings'!$C$26,'Priority Ratings'!$B$26,IF(I49='Priority Ratings'!$C$27,'Priority Ratings'!$B$27,"No Rating"))))))) -> 5 | K49: =J49/J$63 -> 0.01831501832 | L49: 100%: Fully comply with requirement (Out of the box function with minor re-configuration) 50%: Partially comply, will require major configuration. 0%: No compliance/require development and/or customisation. | M49: 0 | N49: 0
A50: 42 | B50: Meeting the Scope of Work Required | C50: How well has the Tenderer described how scope requirements will be met? Do they understand what needs to be done? List concerns in Comments. | D50: Contingency Analysis | E50: Contingency comparison mode | F50: Indicate if the solution : - Is an Out-of-the-box functionality - Requires configuration? - Requires customisation? | I50: Critical | J50: =IF(I50='Priority Ratings'!$C$21,'Priority Ratings'!$B$21, IF(I50='Priority Ratings'!$C$22,'Priority Ratings'!$B$22,IF(I50='Priority Ratings'!$C$23,'Priority Ratings'!$B$23,IF(I50='Priority Ratings'!$C$24,'Priority Ratings'!$B$24,IF(I50='Priority Ratings'!$C$25,'Priority Ratings'!$B$25,IF(I50='Priority Ratings'!$C$26,'Priority Ratings'!$B$26,IF(I50='Priority Ratings'!$C$27,'Priority Ratings'!$B$27,"No Rating"))))))) -> 5 | K50: =J50/J$63 -> 0.01831501832 | L50: 100%: Fully comply with requirement (Out of the box function with minor re-configuration) 50%: Partially comply, will require major configuration. 0%: No compliance/require development and/or customisation. | M50: 0 | N50: 0
A51: 43 | B51: Meeting the Scope of Work Required | C51: How well has the Tenderer described how scope requirements will be met? Do they understand what needs to be done? List concerns in Comments. | D51: Contingency Analysis | E51: Reloading of results | F51: Indicate if the solution : - Is an Out-of-the-box functionality - Requires configuration? - Requires customisation? | I51: Critical | J51: =IF(I51='Priority Ratings'!$C$21,'Priority Ratings'!$B$21, IF(I51='Priority Ratings'!$C$22,'Priority Ratings'!$B$22,IF(I51='Priority Ratings'!$C$23,'Priority Ratings'!$B$23,IF(I51='Priority Ratings'!$C$24,'Priority Ratings'!$B$24,IF(I51='Priority Ratings'!$C$25,'Priority Ratings'!$B$25,IF(I51='Priority Ratings'!$C$26,'Priority Ratings'!$B$26,IF(I51='Priority Ratings'!$C$27,'Priority Ratings'!$B$27,"No Rating"))))))) -> 5 | K51: =J51/J$63 -> 0.01831501832 | L51: 100%: Fully comply with requirement (Out of the box function with minor re-configuration) 50%: Partially comply, will require major configuration. 0%: No compliance/require development and/or customisation. | M51: 0 | N51: 0
A52: 44 | B52: Meeting the Scope of Work Required | C52: How well has the Tenderer described how scope requirements will be met? Do they understand what needs to be done? List concerns in Comments. | D52: Quasi-Dynamic Simulation | E52: Medium- to long-term simulations based on steady-state analysis. | F52: Indicate if the solution : - Is an Out-of-the-box functionality - Requires configuration? - Requires customisation? | I52: Show stopper | J52: =IF(I52='Priority Ratings'!$C$21,'Priority Ratings'!$B$21, IF(I52='Priority Ratings'!$C$22,'Priority Ratings'!$B$22,IF(I52='Priority Ratings'!$C$23,'Priority Ratings'!$B$23,IF(I52='Priority Ratings'!$C$24,'Priority Ratings'!$B$24,IF(I52='Priority Ratings'!$C$25,'Priority Ratings'!$B$25,IF(I52='Priority Ratings'!$C$26,'Priority Ratings'!$B$26,IF(I52='Priority Ratings'!$C$27,'Priority Ratings'!$B$27,"No Rating"))))))) -> 6 | K52: =J52/J$63 -> 0.02197802198 | L52: 100%: Fully comply with requirement (Out of the box function with minor re-configuration) 50%: Partially comply, will require major configuration. 0%: No compliance/require development and/or customisation. | M52: 0 | N52: 0
A53: 45 | B53: Meeting the Scope of Work Required | C53: How well has the Tenderer described how scope requirements will be met? Do they understand what needs to be done? List concerns in Comments. | D53: Quasi-Dynamic Simulation | E53: Time and Time-Profile characteristics for simplified modelling of (recurrent) time series. | F53: Indicate if the solution : - Is an Out-of-the-box functionality - Requires configuration? - Requires customisation? | I53: Show stopper | J53: =IF(I53='Priority Ratings'!$C$21,'Priority Ratings'!$B$21, IF(I53='Priority Ratings'!$C$22,'Priority Ratings'!$B$22,IF(I53='Priority Ratings'!$C$23,'Priority Ratings'!$B$23,IF(I53='Priority Ratings'!$C$24,'Priority Ratings'!$B$24,IF(I53='Priority Ratings'!$C$25,'Priority Ratings'!$B$25,IF(I53='Priority Ratings'!$C$26,'Priority Ratings'!$B$26,IF(I53='Priority Ratings'!$C$27,'Priority Ratings'!$B$27,"No Rating"))))))) -> 6 | K53: 0.02197802198 | L53: 100%: Fully comply with requirement (Out of the box function with minor re-configuration) 50%: Partially comply, will require major configuration. 0%: No compliance/require development and/or customisation. | M53: 0 | N53: 0
A54: 46 | B54: Meeting the Scope of Work Required | C54: How well has the Tenderer described how scope requirements will be met? Do they understand what needs to be done? List concerns in Comments. | D54: Quasi-Dynamic Simulation | E54: Consideration of planned outages , " Network Changes ( upgrades,, additions and deletions ) and states". | F54: Indicate if the solution : - Is an Out-of-the-box functionality - Requires configuration? - Requires customisation? | I54: Show stopper | J54: =IF(I54='Priority Ratings'!$C$21,'Priority Ratings'!$B$21, IF(I54='Priority Ratings'!$C$22,'Priority Ratings'!$B$22,IF(I54='Priority Ratings'!$C$23,'Priority Ratings'!$B$23,IF(I54='Priority Ratings'!$C$24,'Priority Ratings'!$B$24,IF(I54='Priority Ratings'!$C$25,'Priority Ratings'!$B$25,IF(I54='Priority Ratings'!$C$26,'Priority Ratings'!$B$26,IF(I54='Priority Ratings'!$C$27,'Priority Ratings'!$B$27,"No Rating"))))))) -> 6 | K54: 0.02197802198 | L54: 100%: Fully comply with requirement (Out of the box function with minor re-configuration) 50%: Partially comply, will require major configuration. 0%: No compliance/require development and/or customisation. | M54: 0 | N54: 0
A55: 47 | B55: Meeting the Scope of Work Required | C55: How well has the Tenderer described how scope requirements will be met? Do they understand what needs to be done? List concerns in Comments. | D55: Quasi-Dynamic Simulation | E55: Flexible definition of simulation time range with arbitrary resolutions. | F55: Indicate if the solution : - Is an Out-of-the-box functionality - Requires configuration? - Requires customisation? | I55: Critical | J55: =IF(I55='Priority Ratings'!$C$21,'Priority Ratings'!$B$21, IF(I55='Priority Ratings'!$C$22,'Priority Ratings'!$B$22,IF(I55='Priority Ratings'!$C$23,'Priority Ratings'!$B$23,IF(I55='Priority Ratings'!$C$24,'Priority Ratings'!$B$24,IF(I55='Priority Ratings'!$C$25,'Priority Ratings'!$B$25,IF(I55='Priority Ratings'!$C$26,'Priority Ratings'!$B$26,IF(I55='Priority Ratings'!$C$27,'Priority Ratings'!$B$27,"No Rating"))))))) -> 5 | K55: 0.01831501832 | L55: 100%: Fully comply with requirement (Out of the box function with minor re-configuration) 50%: Partially comply, will require major configuration. 0%: No compliance/require development and/or customisation. | M55: 0 | N55: 0
A56: 48 | B56: Meeting the Scope of Work Required | C56: How well has the Tenderer described how scope requirements will be met? Do they understand what needs to be done? List concerns in Comments. | D56: Quasi-Dynamic Simulation | E56: Simulation plots and tabular reports including statistical analysis. | F56: Indicate if the solution : - Is an Out-of-the-box functionality - Requires configuration? - Requires customisation? | I56: Critical | J56: =IF(I56='Priority Ratings'!$C$21,'Priority Ratings'!$B$21, IF(I56='Priority Ratings'!$C$22,'Priority Ratings'!$B$22,IF(I56='Priority Ratings'!$C$23,'Priority Ratings'!$B$23,IF(I56='Priority Ratings'!$C$24,'Priority Ratings'!$B$24,IF(I56='Priority Ratings'!$C$25,'Priority Ratings'!$B$25,IF(I56='Priority Ratings'!$C$26,'Priority Ratings'!$B$26,IF(I56='Priority Ratings'!$C$27,'Priority Ratings'!$B$27,"No Rating"))))))) -> 5 | K56: 0.01831501832 | L56: 100%: Fully comply with requirement (Out of the box function with minor re-configuration) 50%: Partially comply, will require major configuration. 0%: No compliance/require development and/or customisation. | M56: 0 | N56: 0
A57: 49 | B57: Meeting the Scope of Work Required | C57: How well has the Tenderer described how scope requirements will be met? Do they understand what needs to be done? List concerns in Comments. | D57: Quasi-Dynamic Simulation | E57: Simulation language and a platform for the design of detailed user-definable models. Equipment behaviour should be able to be defined via a simulation language and building block platform for internal components and models (e.g., control system of an inverter or generator, operation of a battery system) | F57: Indicate if the solution : - Is an Out-of-the-box functionality - Requires configuration? - Requires customisation? | I57: Very important | J57: =IF(I57='Priority Ratings'!$C$21,'Priority Ratings'!$B$21, IF(I57='Priority Ratings'!$C$22,'Priority Ratings'!$B$22,IF(I57='Priority Ratings'!$C$23,'Priority Ratings'!$B$23,IF(I57='Priority Ratings'!$C$24,'Priority Ratings'!$B$24,IF(I57='Priority Ratings'!$C$25,'Priority Ratings'!$B$25,IF(I57='Priority Ratings'!$C$26,'Priority Ratings'!$B$26,IF(I57='Priority Ratings'!$C$27,'Priority Ratings'!$B$27,"No Rating"))))))) -> 4 | K57: 0.01465201465 | L57: 100%: Fully comply with requirement (Out of the box function with minor re-configuration) 50%: Partially comply, will require major configuration. 0%: No compliance/require development and/or customisation. | M57: 0 | N57: 0
A58: 50 | B58: Meeting the Scope of Work Required | C58: How well has the Tenderer described how scope requirements will be met? Do they understand what needs to be done? List concerns in Comments. | D58: Quasi-Dynamic Simulation | E58: Support of parallelised simulation on multiprocessor hardware. | F58: Indicate if the solution : - Is an Out-of-the-box functionality - Requires configuration? - Requires customisation? | I58: Critical | J58: =IF(I58='Priority Ratings'!$C$21,'Priority Ratings'!$B$21, IF(I58='Priority Ratings'!$C$22,'Priority Ratings'!$B$22,IF(I58='Priority Ratings'!$C$23,'Priority Ratings'!$B$23,IF(I58='Priority Ratings'!$C$24,'Priority Ratings'!$B$24,IF(I58='Priority Ratings'!$C$25,'Priority Ratings'!$B$25,IF(I58='Priority Ratings'!$C$26,'Priority Ratings'!$B$26,IF(I58='Priority Ratings'!$C$27,'Priority Ratings'!$B$27,"No Rating"))))))) -> 5 | K58: 0.01831501832 | L58: 100%: Fully comply with requirement (Out of the box function with minor re-configuration) 50%: Partially comply, will require major configuration. 0%: No compliance/require development and/or customisation. | M58: 0 | N58: 0
A59: 51 | B59: Meeting the Scope of Work Required | C59: How well has the Tenderer described how scope requirements will be met? Do they understand what needs to be done? List concerns in Comments. | D59: Quasi-Dynamic Simulation | E59: Reloading of results. | F59: Indicate if the solution : - Is an Out-of-the-box functionality - Requires configuration? - Requires customisation? | I59: Critical | J59: =IF(I59='Priority Ratings'!$C$21,'Priority Ratings'!$B$21, IF(I59='Priority Ratings'!$C$22,'Priority Ratings'!$B$22,IF(I59='Priority Ratings'!$C$23,'Priority Ratings'!$B$23,IF(I59='Priority Ratings'!$C$24,'Priority Ratings'!$B$24,IF(I59='Priority Ratings'!$C$25,'Priority Ratings'!$B$25,IF(I59='Priority Ratings'!$C$26,'Priority Ratings'!$B$26,IF(I59='Priority Ratings'!$C$27,'Priority Ratings'!$B$27,"No Rating"))))))) -> 5 | K59: 0.01831501832 | L59: 100%: Fully comply with requirement (Out of the box function with minor re-configuration) 50%: Partially comply, will require major configuration. 0%: No compliance/require development and/or customisation. | M59: 0 | N59: 0
A60: 52 | B60: Meeting the Scope of Work Required | C60: How well has the Tenderer described how scope requirements will be met? Do they understand what needs to be done? List concerns in Comments. | D60: Quasi-Dynamic Simulation | E60: Ability to enhance the load flow convergence by means of updating the controller objects such as tap positions in between each load flow instance. | F60: Indicate if the solution : - Is an Out-of-the-box functionality - Requires configuration? - Requires customisation? | I60: Critical | J60: =IF(I60='Priority Ratings'!$C$21,'Priority Ratings'!$B$21, IF(I60='Priority Ratings'!$C$22,'Priority Ratings'!$B$22,IF(I60='Priority Ratings'!$C$23,'Priority Ratings'!$B$23,IF(I60='Priority Ratings'!$C$24,'Priority Ratings'!$B$24,IF(I60='Priority Ratings'!$C$25,'Priority Ratings'!$B$25,IF(I60='Priority Ratings'!$C$26,'Priority Ratings'!$B$26,IF(I60='Priority Ratings'!$C$27,'Priority Ratings'!$B$27,"No Rating"))))))) -> 5 | K60: 0.01831501832 | L60: 100%: Fully comply with requirement (Out of the box function with minor re-configuration) 50%: Partially comply, will require major configuration. 0%: No compliance/require development and/or customisation. | M60: 0 | N60: 0
A61: 53 | B61: Meeting the Scope of Work Required | C61: How well has the Tenderer described how scope requirements will be met? Do they understand what needs to be done? List concerns in Comments. | D61: Quasi-Dynamic Simulation | E61: Support for balanced and unbalanced simulations. | F61: Indicate if the solution : - Is an Out-of-the-box functionality - Requires configuration? - Requires customisation? | I61: Show stopper | J61: =IF(I61='Priority Ratings'!$C$21,'Priority Ratings'!$B$21, IF(I61='Priority Ratings'!$C$22,'Priority Ratings'!$B$22,IF(I61='Priority Ratings'!$C$23,'Priority Ratings'!$B$23,IF(I61='Priority Ratings'!$C$24,'Priority Ratings'!$B$24,IF(I61='Priority Ratings'!$C$25,'Priority Ratings'!$B$25,IF(I61='Priority Ratings'!$C$26,'Priority Ratings'!$B$26,IF(I61='Priority Ratings'!$C$27,'Priority Ratings'!$B$27,"No Rating"))))))) -> 6 | K61: 0.02197802198 | L61: 100%: Fully comply with requirement (Out of the box function with minor re-configuration) 50%: Partially comply, will require major configuration. 0%: No compliance/require development and/or customisation. | M61: 0 | N61: 0
H63: Totals | J63: =SUM(J9:J61) -> 273 | K63: =SUM(K9:K61) -> 1 | N63: =SUM(N9:N61) -> 0

Sheet PSST -Network Modelling & Repre
A1: Power System Simulation Tool Functional: PSST-Network Modelling & Representation BRS5.1 BRS6.1 BRS7.1 BRS8.1
A2: CORP xxxx Tender | M2: Scoring (Sliding scale)
A3: Tenderer: | M3: 100% - Fully compliant
A4: Evaluated by: | M4: 50%-Partially compliant
M5: 0%-Non compliance
A6: Evaluation Criteria
G7: Vendor Compliance Full Compliance - Y Partial Compliance - P Non Compliance - N | H7: Vendor to indicate any applicable comments based on Compliance | I7: Priority Requirement priority as determined by Eskom | J7: Weight (agreed by evaluation team members) | L7: Score (determined by each evaluation team member during evaluation. Will be averaged for final scores) | M7: Score | O7: Comments (Internal) for scorer
A8: ID | B8: Type | C8: Criterion | D8: Functional Requirement | E8: Requirement description | F8: Evaluation Criterion / Question | G8: Vendor Compliance | H8: Comments | I8: Priority Description | J8: Priority | K8: Weighted Question | L8: Scoring | M8: Answer (0,50,100%) | N8: Weighted Answer
A9: 1 | B9: Meeting the Scope of Work Required | C9: How well has the Tenderer described how scope requirements will be met? Do they understand what needs to be done? List concerns in Comments. | D9: Power Equipment Models | E9: Large and comprehensive Equipment Type Library, fully version-controlled with regular model updates. It should have the ability to override transformer type data with measured test data (tap-dependent impedance, losses, zerosequence impedance and support aggregated source and transformer-load models. Analysis functions need to align with benchmarked IEEE requirements. | F9: Indicate if the solution : - Is an Out-of-the-box functionality - Requires configuration? - Requires customisation? | I9: Critical | J9: =IF(I9='Priority Ratings'!$C$21,'Priority Ratings'!$B$21, IF(I9='Priority Ratings'!$C$22,'Priority Ratings'!$B$22,IF(I9='Priority Ratings'!$C$23,'Priority Ratings'!$B$23,IF(I9='Priority Ratings'!$C$24,'Priority Ratings'!$B$24,IF(I9='Priority Ratings'!$C$25,'Priority Ratings'!$B$25,IF(I9='Priority Ratings'!$C$26,'Priority Ratings'!$B$26,IF(I9='Priority Ratings'!$C$27,'Priority Ratings'!$B$27,"No Rating"))))))) -> 5 | K9: =J9/J$81 -> 0.01400560224 | L9: 100%: Fully comply with requirement 50%: Partially comply will require development/ customisation 0%: No compliance | M9: 0 | N9: =K9*M9 -> 0
A10: 2 | B10: Meeting the Scope of Work Required | C10: How well has the Tenderer described how scope requirements will be met? Do they understand what needs to be done? List concerns in Comments. | D10: Power Equipment Models | E10: Various synchronous and asynchronous motor/generator models. | F10: Indicate if the solution : - Is an Out-of-the-box functionality - Requires configuration? - Requires customisation? | I10: Show stopper | J10: =IF(I10='Priority Ratings'!$C$21,'Priority Ratings'!$B$21, IF(I10='Priority Ratings'!$C$22,'Priority Ratings'!$B$22,IF(I10='Priority Ratings'!$C$23,'Priority Ratings'!$B$23,IF(I10='Priority Ratings'!$C$24,'Priority Ratings'!$B$24,IF(I10='Priority Ratings'!$C$25,'Priority Ratings'!$B$25,IF(I10='Priority Ratings'!$C$26,'Priority Ratings'!$B$26,IF(I10='Priority Ratings'!$C$27,'Priority Ratings'!$B$27,"No Rating"))))))) -> 6 | K10: 0.01680672269 | L10: 100%: Fully comply with requirement 50%: Partially comply will require development/ customisation 0%: No compliance | M10: 0 | N10: =K10*M10 -> 0
A11: 3 | B11: Meeting the Scope of Work Required | C11: How well has the Tenderer described how scope requirements will be met? Do they understand what needs to be done? List concerns in Comments. | D11: Power Equipment Models | E11: Asynchronous machine parameter identification | F11: Indicate if the solution : - Is an Out-of-the-box functionality - Requires configuration? - Requires customisation? | I11: Show stopper | J11: =IF(I11='Priority Ratings'!$C$21,'Priority Ratings'!$B$21, IF(I11='Priority Ratings'!$C$22,'Priority Ratings'!$B$22,IF(I11='Priority Ratings'!$C$23,'Priority Ratings'!$B$23,IF(I11='Priority Ratings'!$C$24,'Priority Ratings'!$B$24,IF(I11='Priority Ratings'!$C$25,'Priority Ratings'!$B$25,IF(I11='Priority Ratings'!$C$26,'Priority Ratings'!$B$26,IF(I11='Priority Ratings'!$C$27,'Priority Ratings'!$B$27,"No Rating"))))))) -> 6 | K11: 0.01680672269 | L11: 100%: Fully comply with requirement 50%: Partially comply will require development/ customisation 0%: No compliance | M11: 0 | N11: 0
A12: 4 | B12: Meeting the Scope of Work Required | C12: How well has the Tenderer described how scope requirements will be met? Do they understand what needs to be done? List concerns in Comments. | D12: Power Equipment Models | E12: Doubly fed induction machines | F12: Indicate if the solution : - Is an Out-of-the-box functionality - Requires configuration? - Requires customisation? | I12: Show stopper | J12: =IF(I12='Priority Ratings'!$C$21,'Priority Ratings'!$B$21, IF(I12='Priority Ratings'!$C$22,'Priority Ratings'!$B$22,IF(I12='Priority Ratings'!$C$23,'Priority Ratings'!$B$23,IF(I12='Priority Ratings'!$C$24,'Priority Ratings'!$B$24,IF(I12='Priority Ratings'!$C$25,'Priority Ratings'!$B$25,IF(I12='Priority Ratings'!$C$26,'Priority Ratings'!$B$26,IF(I12='Priority Ratings'!$C$27,'Priority Ratings'!$B$27,"No Rating"))))))) -> 6 | K12: 0.01680672269 | L12: 100%: Fully comply with requirement 50%: Partially comply will require development/ customisation 0%: No compliance | M12: 0 | N12: 0
A13: 5 | B13: Meeting the Scope of Work Required | C13: How well has the Tenderer described how scope requirements will be met? Do they understand what needs to be done? List concerns in Comments. | D13: Power Equipment Models | E13: Static generator for modelling wind- and Photo-Voltaic (PV-generators), fuel cells, battery energy storage systems, micro-turbines, etc. | F13: Indicate if the solution : - Is an Out-of-the-box functionality - Requires configuration? - Requires customisation? | I13: Show stopper | J13: =IF(I13='Priority Ratings'!$C$21,'Priority Ratings'!$B$21, IF(I13='Priority Ratings'!$C$22,'Priority Ratings'!$B$22,IF(I13='Priority Ratings'!$C$23,'Priority Ratings'!$B$23,IF(I13='Priority Ratings'!$C$24,'Priority Ratings'!$B$24,IF(I13='Priority Ratings'!$C$25,'Priority Ratings'!$B$25,IF(I13='Priority Ratings'!$C$26,'Priority Ratings'!$B$26,IF(I13='Priority Ratings'!$C$27,'Priority Ratings'!$B$27,"No Rating"))))))) -> 6 | K13: 0.01680672269 | L13: 100%: Fully comply with requirement 50%: Partially comply will require development/ customisation 0%: No compliance | M13: 0 | N13: 0
A14: 6 | B14: Meeting the Scope of Work Required | C14: How well has the Tenderer described how scope requirements will be met? Do they understand what needs to be done? List concerns in Comments. | D14: Power Equipment Models | E14: Photovoltaic (PV system) with integrated power calculation based on solar radiation. | F14: Indicate if the solution : - Is an Out-of-the-box functionality - Requires configuration? - Requires customisation? | I14: Very important | J14: =IF(I14='Priority Ratings'!$C$21,'Priority Ratings'!$B$21, IF(I14='Priority Ratings'!$C$22,'Priority Ratings'!$B$22,IF(I14='Priority Ratings'!$C$23,'Priority Ratings'!$B$23,IF(I14='Priority Ratings'!$C$24,'Priority Ratings'!$B$24,IF(I14='Priority Ratings'!$C$25,'Priority Ratings'!$B$25,IF(I14='Priority Ratings'!$C$26,'Priority Ratings'!$B$26,IF(I14='Priority Ratings'!$C$27,'Priority Ratings'!$B$27,"No Rating"))))))) -> 4 | K14: 0.01120448179 | L14: 100%: Fully comply with requirement 50%: Partially comply will require development/ customisation 0%: No compliance | M14: 0 | N14: 0
A15: 7 | B15: Meeting the Scope of Work Required | C15: How well has the Tenderer described how scope requirements will be met? Do they understand what needs to be done? List concerns in Comments. | D15: Power Equipment Models | E15: Non-Utility grids, AC and DC voltage and current sources. | F15: Indicate if the solution : - Is an Out-of-the-box functionality - Requires configuration? - Requires customisation? | I15: Show stopper | J15: =IF(I15='Priority Ratings'!$C$21,'Priority Ratings'!$B$21, IF(I15='Priority Ratings'!$C$22,'Priority Ratings'!$B$22,IF(I15='Priority Ratings'!$C$23,'Priority Ratings'!$B$23,IF(I15='Priority Ratings'!$C$24,'Priority Ratings'!$B$24,IF(I15='Priority Ratings'!$C$25,'Priority Ratings'!$B$25,IF(I15='Priority Ratings'!$C$26,'Priority Ratings'!$B$26,IF(I15='Priority Ratings'!$C$27,'Priority Ratings'!$B$27,"No Rating"))))))) -> 6 | K15: 0.01680672269 | L15: 100%: Fully comply with requirement 50%: Partially comply will require development/ customisation 0%: No compliance | M15: 0 | N15: 0
A16: 8 | B16: Meeting the Scope of Work Required | C16: How well has the Tenderer described how scope requirements will be met? Do they understand what needs to be done? List concerns in Comments. | D16: Power Equipment Models | E16: Simple and complex load model, special MV and LV load models, including input based on yearly energy values and load profiles. | F16: Indicate if the solution : - Is an Out-of-the-box functionality - Requires configuration? - Requires customisation? | I16: Show stopper | J16: =IF(I16='Priority Ratings'!$C$21,'Priority Ratings'!$B$21, IF(I16='Priority Ratings'!$C$22,'Priority Ratings'!$B$22,IF(I16='Priority Ratings'!$C$23,'Priority Ratings'!$B$23,IF(I16='Priority Ratings'!$C$24,'Priority Ratings'!$B$24,IF(I16='Priority Ratings'!$C$25,'Priority Ratings'!$B$25,IF(I16='Priority Ratings'!$C$26,'Priority Ratings'!$B$26,IF(I16='Priority Ratings'!$C$27,'Priority Ratings'!$B$27,"No Rating"))))))) -> 6 | K16: 0.01680672269 | L16: 100%: Fully comply with requirement 50%: Partially comply will require development/ customisation 0%: No compliance | M16: 0 | N16: 0
A17: 9 | B17: Meeting the Scope of Work Required | C17: How well has the Tenderer described how scope requirements will be met? Do they understand what needs to be done? List concerns in Comments. | D17: Power Equipment Models | E17: Network branches Overhead Line ((OHL), cable, branches, line couplings, tower geometries, cable systems, busbar trunking systems, 2-winding transformer and auto transformer, 3-winding transformer and auto transformer, 4-winding transformer and autotransformer, booster transformer, step-voltage regulator, open and closed delta regulators, reactor, series capacitor, common impedance, etc.). | F17: Indicate if the solution : - Is an Out-of-the-box functionality - Requires configuration? - Requires customisation? | I17: Show stopper | J17: =IF(I17='Priority Ratings'!$C$21,'Priority Ratings'!$B$21, IF(I17='Priority Ratings'!$C$22,'Priority Ratings'!$B$22,IF(I17='Priority Ratings'!$C$23,'Priority Ratings'!$B$23,IF(I17='Priority Ratings'!$C$24,'Priority Ratings'!$B$24,IF(I17='Priority Ratings'!$C$25,'Priority Ratings'!$B$25,IF(I17='Priority Ratings'!$C$26,'Priority Ratings'!$B$26,IF(I17='Priority Ratings'!$C$27,'Priority Ratings'!$B$27,"No Rating"))))))) -> 6 | K17: 0.01680672269 | L17: 100%: Fully comply with requirement 50%: Partially comply will require development/ customisation 0%: No compliance | M17: 0 | N17: 0
A18: 10 | B18: Meeting the Scope of Work Required | C18: How well has the Tenderer described how scope requirements will be met? Do they understand what needs to be done? List concerns in Comments. | D18: Power Equipment Models | E18: Overhead line and cable parameter calculation. | F18: Indicate if the solution : - Is an Out-of-the-box functionality - Requires configuration? - Requires customisation? | I18: Critical | J18: =IF(I18='Priority Ratings'!$C$21,'Priority Ratings'!$B$21, IF(I18='Priority Ratings'!$C$22,'Priority Ratings'!$B$22,IF(I18='Priority Ratings'!$C$23,'Priority Ratings'!$B$23,IF(I18='Priority Ratings'!$C$24,'Priority Ratings'!$B$24,IF(I18='Priority Ratings'!$C$25,'Priority Ratings'!$B$25,IF(I18='Priority Ratings'!$C$26,'Priority Ratings'!$B$26,IF(I18='Priority Ratings'!$C$27,'Priority Ratings'!$B$27,"No Rating"))))))) -> 5 | K18: 0.01400560224 | L18: 100%: Fully comply with requirement 50%: Partially comply will require development/ customisation 0%: No compliance | M18: 0 | N18: 0
A19: 11 | B19: Meeting the Scope of Work Required | C19: How well has the Tenderer described how scope requirements will be met? Do they understand what needs to be done? List concerns in Comments. | D19: Power Equipment Models | E19: Controller objects such as station & secondary controller including various control methods, transformer tap controller, virtual power plants, capability curves. | F19: Indicate if the solution : - Is an Out-of-the-box functionality - Requires configuration? - Requires customisation? | I19: Show stopper | J19: =IF(I19='Priority Ratings'!$C$21,'Priority Ratings'!$B$21, IF(I19='Priority Ratings'!$C$22,'Priority Ratings'!$B$22,IF(I19='Priority Ratings'!$C$23,'Priority Ratings'!$B$23,IF(I19='Priority Ratings'!$C$24,'Priority Ratings'!$B$24,IF(I19='Priority Ratings'!$C$25,'Priority Ratings'!$B$25,IF(I19='Priority Ratings'!$C$26,'Priority Ratings'!$B$26,IF(I19='Priority Ratings'!$C$27,'Priority Ratings'!$B$27,"No Rating"))))))) -> 6 | K19: 0.01680672269 | L19: 100%: Fully comply with requirement 50%: Partially comply will require development/ customisation 0%: No compliance | M19: 0 | N19: 0
A20: 12 | B20: Meeting the Scope of Work Required | C20: How well has the Tenderer described how scope requirements will be met? Do they understand what needs to be done? List concerns in Comments. | D20: Power Equipment Models | E20: Static var compensation (SVC), statcoms, thyristorcontrolled series compensation (TCSC), shunt/filter models, and harmonic filters (singletuned, double- tuned, high pass). | F20: Indicate if the solution : - Is an Out-of-the-box functionality - Requires configuration? - Requires customisation? | I20: Show stopper | J20: =IF(I20='Priority Ratings'!$C$21,'Priority Ratings'!$B$21, IF(I20='Priority Ratings'!$C$22,'Priority Ratings'!$B$22,IF(I20='Priority Ratings'!$C$23,'Priority Ratings'!$B$23,IF(I20='Priority Ratings'!$C$24,'Priority Ratings'!$B$24,IF(I20='Priority Ratings'!$C$25,'Priority Ratings'!$B$25,IF(I20='Priority Ratings'!$C$26,'Priority Ratings'!$B$26,IF(I20='Priority Ratings'!$C$27,'Priority Ratings'!$B$27,"No Rating"))))))) -> 6 | K20: 0.01680672269 | L20: 100%: Fully comply with requirement 50%: Partially comply will require development/ customisation 0%: No compliance | M20: 0 | N20: 0
A21: 13 | B21: Meeting the Scope of Work Required | C21: How well has the Tenderer described how scope requirements will be met? Do they understand what needs to be done? List concerns in Comments. | D21: Power Equipment Models | E21: Explicit modelling of neutral wiring. | F21: Indicate if the solution : - Is an Out-of-the-box functionality - Requires configuration? - Requires customisation? | I21: Critical | J21: =IF(I21='Priority Ratings'!$C$21,'Priority Ratings'!$B$21, IF(I21='Priority Ratings'!$C$22,'Priority Ratings'!$B$22,IF(I21='Priority Ratings'!$C$23,'Priority Ratings'!$B$23,IF(I21='Priority Ratings'!$C$24,'Priority Ratings'!$B$24,IF(I21='Priority Ratings'!$C$25,'Priority Ratings'!$B$25,IF(I21='Priority Ratings'!$C$26,'Priority Ratings'!$B$26,IF(I21='Priority Ratings'!$C$27,'Priority Ratings'!$B$27,"No Rating"))))))) -> 5 | K21: 0.01400560224 | L21: 100%: Fully comply with requirement 50%: Partially comply will require development/ customisation 0%: No compliance | M21: 0 | N21: 0
A22: 14 | B22: Meeting the Scope of Work Required | C22: How well has the Tenderer described how scope requirements will be met? Do they understand what needs to be done? List concerns in Comments. | D22: Power Equipment Models | E22: Protection devices with over 30 basic function blocks. | F22: Indicate if the solution : - Is an Out-of-the-box functionality - Requires configuration? - Requires customisation? | I22: Critical | J22: =IF(I22='Priority Ratings'!$C$21,'Priority Ratings'!$B$21, IF(I22='Priority Ratings'!$C$22,'Priority Ratings'!$B$22,IF(I22='Priority Ratings'!$C$23,'Priority Ratings'!$B$23,IF(I22='Priority Ratings'!$C$24,'Priority Ratings'!$B$24,IF(I22='Priority Ratings'!$C$25,'Priority Ratings'!$B$25,IF(I22='Priority Ratings'!$C$26,'Priority Ratings'!$B$26,IF(I22='Priority Ratings'!$C$27,'Priority Ratings'!$B$27,"No Rating"))))))) -> 5 | K22: 0.01400560224 | L22: 100%: Fully comply with requirement 50%: Partially comply will require development/ customisation 0%: No compliance | M22: 0 | N22: 0
A23: 15 | B23: Meeting the Scope of Work Required | C23: How well has the Tenderer described how scope requirements will be met? Do they understand what needs to be done? List concerns in Comments. | D23: Power Equipment Models | E23: Protection device library (static/dynamic functions). | F23: Indicate if the solution : - Is an Out-of-the-box functionality - Requires configuration? - Requires customisation? | I23: Show stopper | J23: =IF(I23='Priority Ratings'!$C$21,'Priority Ratings'!$B$21, IF(I23='Priority Ratings'!$C$22,'Priority Ratings'!$B$22,IF(I23='Priority Ratings'!$C$23,'Priority Ratings'!$B$23,IF(I23='Priority Ratings'!$C$24,'Priority Ratings'!$B$24,IF(I23='Priority Ratings'!$C$25,'Priority Ratings'!$B$25,IF(I23='Priority Ratings'!$C$26,'Priority Ratings'!$B$26,IF(I23='Priority Ratings'!$C$27,'Priority Ratings'!$B$27,"No Rating"))))))) -> 6 | K23: 0.01680672269 | L23: 100%: Fully comply with requirement 50%: Partially comply will require development/ customisation 0%: No compliance | M23: 0 | N23: 0
A24: 16 | B24: Meeting the Scope of Work Required | C24: How well has the Tenderer described how scope requirements will be met? Do they understand what needs to be done? List concerns in Comments. | D24: Power Equipment Models | E24: Fourier, harmonic and impulse current sources, Fast Fourier Transform (FFT), clock, S&H, etc. | F24: Indicate if the solution : - Is an Out-of-the-box functionality - Requires configuration? - Requires customisation? | I24: Critical | J24: =IF(I24='Priority Ratings'!$C$21,'Priority Ratings'!$B$21, IF(I24='Priority Ratings'!$C$22,'Priority Ratings'!$B$22,IF(I24='Priority Ratings'!$C$23,'Priority Ratings'!$B$23,IF(I24='Priority Ratings'!$C$24,'Priority Ratings'!$B$24,IF(I24='Priority Ratings'!$C$25,'Priority Ratings'!$B$25,IF(I24='Priority Ratings'!$C$26,'Priority Ratings'!$B$26,IF(I24='Priority Ratings'!$C$27,'Priority Ratings'!$B$27,"No Rating"))))))) -> 5 | K24: 0.01400560224 | L24: 100%: Fully comply with requirement 50%: Partially comply will require development/ customisation 0%: No compliance | M24: 0 | N24: 0
A25: 17 | B25: Meeting the Scope of Work Required | C25: How well has the Tenderer described how scope requirements will be met? Do they understand what needs to be done? List concerns in Comments. | D25: Power Equipment Models | E25: Composite models for ranch and node models, incl. template library for handling composite models. | F25: Indicate if the solution : - Is an Out-of-the-box functionality - Requires configuration? - Requires customisation? | I25: Critical | J25: =IF(I25='Priority Ratings'!$C$21,'Priority Ratings'!$B$21, IF(I25='Priority Ratings'!$C$22,'Priority Ratings'!$B$22,IF(I25='Priority Ratings'!$C$23,'Priority Ratings'!$B$23,IF(I25='Priority Ratings'!$C$24,'Priority Ratings'!$B$24,IF(I25='Priority Ratings'!$C$25,'Priority Ratings'!$B$25,IF(I25='Priority Ratings'!$C$26,'Priority Ratings'!$B$26,IF(I25='Priority Ratings'!$C$27,'Priority Ratings'!$B$27,"No Rating"))))))) -> 5 | K25: 0.01400560224 | L25: 100%: Fully comply with requirement 50%: Partially comply will require development/ customisation 0%: No compliance | M25: 0 | N25: 0
A26: 18 | B26: Meeting the Scope of Work Required | C26: How well has the Tenderer described how scope requirements will be met? Do they understand what needs to be done? List concerns in Comments. | D26: Power Equipment Models | E26: Parameter characteristics (scaling factor, vector, matrix, files) for modelling of load profiles, wind/PV infeed, temperature dependencies, etc. | F26: Indicate if the solution : - Is an Out-of-the-box functionality - Requires configuration? - Requires customisation? | I26: Show stopper | J26: =IF(I26='Priority Ratings'!$C$21,'Priority Ratings'!$B$21, IF(I26='Priority Ratings'!$C$22,'Priority Ratings'!$B$22,IF(I26='Priority Ratings'!$C$23,'Priority Ratings'!$B$23,IF(I26='Priority Ratings'!$C$24,'Priority Ratings'!$B$24,IF(I26='Priority Ratings'!$C$25,'Priority Ratings'!$B$25,IF(I26='Priority Ratings'!$C$26,'Priority Ratings'!$B$26,IF(I26='Priority Ratings'!$C$27,'Priority Ratings'!$B$27,"No Rating"))))))) -> 6 | K26: 0.01680672269 | L26: 100%: Fully comply with requirement 50%: Partially comply will require development/ customisation 0%: No compliance | M26: 0 | N26: 0
A27: 19 | B27: Meeting the Scope of Work Required | C27: How well has the Tenderer described how scope requirements will be met? Do they understand what needs to be done? List concerns in Comments. | D27: Power Equipment Models | E27: Time and Time-Profile Characteristics for simplified modelling of (recurrent) time series. | F27: Indicate if the solution : - Is an Out-of-the-box functionality - Requires configuration? - Requires customisation? | I27: Critical | J27: =IF(I27='Priority Ratings'!$C$21,'Priority Ratings'!$B$21, IF(I27='Priority Ratings'!$C$22,'Priority Ratings'!$B$22,IF(I27='Priority Ratings'!$C$23,'Priority Ratings'!$B$23,IF(I27='Priority Ratings'!$C$24,'Priority Ratings'!$B$24,IF(I27='Priority Ratings'!$C$25,'Priority Ratings'!$B$25,IF(I27='Priority Ratings'!$C$26,'Priority Ratings'!$B$26,IF(I27='Priority Ratings'!$C$27,'Priority Ratings'!$B$27,"No Rating"))))))) -> 5 | K27: 0.01400560224 | L27: 100%: Fully comply with requirement 50%: Partially comply will require development/ customisation 0%: No compliance | M27: 0 | N27: 0
A28: 20 | B28: Meeting the Scope of Work Required | C28: How well has the Tenderer described how scope requirements will be met? Do they understand what needs to be done? List concerns in Comments. | D28: Power Equipment Models | E28: Grid organization and element grouping (zones, areas, boundaries, circuits, routes, feeders, operators, owners, etc.) | F28: Indicate if the solution : - Is an Out-of-the-box functionality - Requires configuration? - Requires customisation? | I28: Critical | J28: =IF(I28='Priority Ratings'!$C$21,'Priority Ratings'!$B$21, IF(I28='Priority Ratings'!$C$22,'Priority Ratings'!$B$22,IF(I28='Priority Ratings'!$C$23,'Priority Ratings'!$B$23,IF(I28='Priority Ratings'!$C$24,'Priority Ratings'!$B$24,IF(I28='Priority Ratings'!$C$25,'Priority Ratings'!$B$25,IF(I28='Priority Ratings'!$C$26,'Priority Ratings'!$B$26,IF(I28='Priority Ratings'!$C$27,'Priority Ratings'!$B$27,"No Rating"))))))) -> 5 | K28: 0.01400560224 | L28: 100%: Fully comply with requirement 50%: Partially comply will require development/ customisation 0%: No compliance | M28: 0 | N28: 0
A29: 21 | B29: Meeting the Scope of Work Required | C29: How well has the Tenderer described how scope requirements will be met? Do they understand what needs to be done? List concerns in Comments. | D29: Network Representation | E29: Support of any kind of meshed/radial 1-, 2-, 3- and 4-wire AC and DC networks with combined AC and DC modelling for all available analysis functions. | F29: Indicate if the solution : - Is an Out-of-the-box functionality - Requires configuration? - Requires customisation? | I29: Show stopper | J29: =IF(I29='Priority Ratings'!$C$21,'Priority Ratings'!$B$21, IF(I29='Priority Ratings'!$C$22,'Priority Ratings'!$B$22,IF(I29='Priority Ratings'!$C$23,'Priority Ratings'!$B$23,IF(I29='Priority Ratings'!$C$24,'Priority Ratings'!$B$24,IF(I29='Priority Ratings'!$C$25,'Priority Ratings'!$B$25,IF(I29='Priority Ratings'!$C$26,'Priority Ratings'!$B$26,IF(I29='Priority Ratings'!$C$27,'Priority Ratings'!$B$27,"No Rating"))))))) -> 6 | K29: 0.01680672269 | L29: 100%: Fully comply with requirement 50%: Partially comply will require development/ customisation 0%: No compliance | M29: 0 | N29: 0
A30: 22 | B30: Meeting the Scope of Work Required | C30: How well has the Tenderer described how scope requirements will be met? Do they understand what needs to be done? List concerns in Comments. | D30: Network Representation | E30: Single-phase, two-phase, biphase and three-phase technology with/ without neutral. | F30: Indicate if the solution : - Is an Out-of-the-box functionality - Requires configuration? - Requires customisation? | I30: Show stopper | J30: =IF(I30='Priority Ratings'!$C$21,'Priority Ratings'!$B$21, IF(I30='Priority Ratings'!$C$22,'Priority Ratings'!$B$22,IF(I30='Priority Ratings'!$C$23,'Priority Ratings'!$B$23,IF(I30='Priority Ratings'!$C$24,'Priority Ratings'!$B$24,IF(I30='Priority Ratings'!$C$25,'Priority Ratings'!$B$25,IF(I30='Priority Ratings'!$C$26,'Priority Ratings'!$B$26,IF(I30='Priority Ratings'!$C$27,'Priority Ratings'!$B$27,"No Rating"))))))) -> 6 | K30: 0.01680672269 | L30: 100%: Fully comply with requirement 50%: Partially comply will require development/ customisation 0%: No compliance | M30: 0 | N30: 0
A31: 23 | B31: Meeting the Scope of Work Required | C31: How well has the Tenderer described how scope requirements will be met? Do they understand what needs to be done? List concerns in Comments. | D31: Network Representation | E31: Hierarchical data model including sites, substations, bays, primary and secondary equipment. | F31: Indicate if the solution : - Is an Out-of-the-box functionality - Requires configuration? - Requires customisation? | I31: Critical | J31: =IF(I31='Priority Ratings'!$C$21,'Priority Ratings'!$B$21, IF(I31='Priority Ratings'!$C$22,'Priority Ratings'!$B$22,IF(I31='Priority Ratings'!$C$23,'Priority Ratings'!$B$23,IF(I31='Priority Ratings'!$C$24,'Priority Ratings'!$B$24,IF(I31='Priority Ratings'!$C$25,'Priority Ratings'!$B$25,IF(I31='Priority Ratings'!$C$26,'Priority Ratings'!$B$26,IF(I31='Priority Ratings'!$C$27,'Priority Ratings'!$B$27,"No Rating"))))))) -> 5 | K31: 0.01400560224 | L31: 100%: Fully comply with requirement 50%: Partially comply will require development/ customisation 0%: No compliance | M31: 0 | N31: 0
A32: 24 | B32: Meeting the Scope of Work Required | C32: How well has the Tenderer described how scope requirements will be met? Do they understand what needs to be done? List concerns in Comments. | D32: Network Representation | E32: Detailed primary and secondary substation models (single/double busbars w/o tie breaker, 1- 1/2 busbar, bypass busbar), extendable for user-specific busbar configurations including protection schemes. | F32: Indicate if the solution : - Is an Out-of-the-box functionality - Requires configuration? - Requires customisation? | I32: Show stopper | J32: =IF(I32='Priority Ratings'!$C$21,'Priority Ratings'!$B$21, IF(I32='Priority Ratings'!$C$22,'Priority Ratings'!$B$22,IF(I32='Priority Ratings'!$C$23,'Priority Ratings'!$B$23,IF(I32='Priority Ratings'!$C$24,'Priority Ratings'!$B$24,IF(I32='Priority Ratings'!$C$25,'Priority Ratings'!$B$25,IF(I32='Priority Ratings'!$C$26,'Priority Ratings'!$B$26,IF(I32='Priority Ratings'!$C$27,'Priority Ratings'!$B$27,"No Rating"))))))) -> 6 | K32: 0.01680672269 | L32: 100%: Fully comply with requirement 50%: Partially comply will require development/ customisation 0%: No compliance | M32: 0 | N32: 0
A33: 25 | B33: Meeting the Scope of Work Required | C33: How well has the Tenderer described how scope requirements will be met? Do they understand what needs to be done? List concerns in Comments. | D33: Network Representation | E33: Switches and substation equipment such as Circuit Breaker (CB), fuse, disconnector, load break switch, grounding switch, Neutral Earthing Compensator/ Neutral Earthing Resistor (NEC/NER), Current Transformer (CT), Voltage Transformer (VT), Capacitive Voltage Transformer (CVT), combined (CT/VT), etc. | F33: Indicate if the solution : - Is an Out-of-the-box functionality - Requires configuration? - Requires customisation? | I33: Show stopper | J33: =IF(I33='Priority Ratings'!$C$21,'Priority Ratings'!$B$21, IF(I33='Priority Ratings'!$C$22,'Priority Ratings'!$B$22,IF(I33='Priority Ratings'!$C$23,'Priority Ratings'!$B$23,IF(I33='Priority Ratings'!$C$24,'Priority Ratings'!$B$24,IF(I33='Priority Ratings'!$C$25,'Priority Ratings'!$B$25,IF(I33='Priority Ratings'!$C$26,'Priority Ratings'!$B$26,IF(I33='Priority Ratings'!$C$27,'Priority Ratings'!$B$27,"No Rating"))))))) -> 6 | K33: 0.01680672269 | L33: 100%: Fully comply with requirement 50%: Partially comply will require development/ customisation 0%: No compliance | M33: 0 | N33: 0
A34: 26 | B34: Meeting the Scope of Work Required | C34: How well has the Tenderer described how scope requirements will be met? Do they understand what needs to be done? List concerns in Comments. | D34: Network Model Management | E34: User-friendly and powerful Data and Object Manager. | F34: Indicate if the solution : - Is an Out-of-the-box functionality - Requires configuration? - Requires customisation? | I34: Show stopper | J34: =IF(I34='Priority Ratings'!$C$21,'Priority Ratings'!$B$21, IF(I34='Priority Ratings'!$C$22,'Priority Ratings'!$B$22,IF(I34='Priority Ratings'!$C$23,'Priority Ratings'!$B$23,IF(I34='Priority Ratings'!$C$24,'Priority Ratings'!$B$24,IF(I34='Priority Ratings'!$C$25,'Priority Ratings'!$B$25,IF(I34='Priority Ratings'!$C$26,'Priority Ratings'!$B$26,IF(I34='Priority Ratings'!$C$27,'Priority Ratings'!$B$27,"No Rating"))))))) -> 6 | K34: 0.01680672269 | L34: 100%: Fully comply with requirement 50%: Partially comply will require development/ customisation 0%: No compliance | M34: 0 | N34: 0
A35: 27 | B35: Meeting the Scope of Work Required | C35: How well has the Tenderer described how scope requirements will be met? Do they understand what needs to be done? List concerns in Comments. | D35: Network Model Management | E35: A network model manager with spreadsheets, tabular views, filtering, and sorting capabilities for convenient management of network equipment data and results. | F35: Indicate if the solution : - Is an Out-of-the-box functionality - Requires configuration? - Requires customisation? | I35: Show stopper | J35: =IF(I35='Priority Ratings'!$C$21,'Priority Ratings'!$B$21, IF(I35='Priority Ratings'!$C$22,'Priority Ratings'!$B$22,IF(I35='Priority Ratings'!$C$23,'Priority Ratings'!$B$23,IF(I35='Priority Ratings'!$C$24,'Priority Ratings'!$B$24,IF(I35='Priority Ratings'!$C$25,'Priority Ratings'!$B$25,IF(I35='Priority Ratings'!$C$26,'Priority Ratings'!$B$26,IF(I35='Priority Ratings'!$C$27,'Priority Ratings'!$B$27,"No Rating"))))))) -> 6 | K35: 0.01680672269 | L35: 100%: Fully comply with requirement 50%: Partially comply will require development/ customisation 0%: No compliance | M35: 0 | N35: 0
A36: 28 | B36: Meeting the Scope of Work Required | C36: How well has the Tenderer described how scope requirements will be met? Do they understand what needs to be done? List concerns in Comments. | D36: Network Model Management | E36: Flexible grouping and filter functionality. | F36: Indicate if the solution : - Is an Out-of-the-box functionality - Requires configuration? - Requires customisation? | I36: Critical | J36: =IF(I36='Priority Ratings'!$C$21,'Priority Ratings'!$B$21, IF(I36='Priority Ratings'!$C$22,'Priority Ratings'!$B$22,IF(I36='Priority Ratings'!$C$23,'Priority Ratings'!$B$23,IF(I36='Priority Ratings'!$C$24,'Priority Ratings'!$B$24,IF(I36='Priority Ratings'!$C$25,'Priority Ratings'!$B$25,IF(I36='Priority Ratings'!$C$26,'Priority Ratings'!$B$26,IF(I36='Priority Ratings'!$C$27,'Priority Ratings'!$B$27,"No Rating"))))))) -> 5 | K36: 0.01400560224 | L36: 100%: Fully comply with requirement 50%: Partially comply will require development/ customisation 0%: No compliance | M36: 0 | N36: 0
A37: 29 | B37: Meeting the Scope of Work Required | C37: How well has the Tenderer described how scope requirements will be met? Do they understand what needs to be done? List concerns in Comments. | D37: Network Model Management | E37: Network reduction capability to replace portions of the network with equivalent sources and common impedance and the ability to reduce the network size. The capability should expand to also allow for the equivalence of load and generation models for both static, temporal, and dynamic network equivalents | F37: Indicate if the solution : - Is an Out-of-the-box functionality - Requires configuration? - Requires customisation? | I37: Show stopper | J37: =IF(I37='Priority Ratings'!$C$21,'Priority Ratings'!$B$21, IF(I37='Priority Ratings'!$C$22,'Priority Ratings'!$B$22,IF(I37='Priority Ratings'!$C$23,'Priority Ratings'!$B$23,IF(I37='Priority Ratings'!$C$24,'Priority Ratings'!$B$24,IF(I37='Priority Ratings'!$C$25,'Priority Ratings'!$B$25,IF(I37='Priority Ratings'!$C$26,'Priority Ratings'!$B$26,IF(I37='Priority Ratings'!$C$27,'Priority Ratings'!$B$27,"No Rating"))))))) -> 6 | K37: 0.01680672269 | L37: 100%: Fully comply with requirement 50%: Partially comply will require development/ customisation 0%: No compliance | M37: 0 | N37: 0
A38: 30 | B38: Meeting the Scope of Work Required | C38: How well has the Tenderer described how scope requirements will be met? Do they understand what needs to be done? List concerns in Comments. | D38: Network Model Management | E38: Grid Variations management with timestamped grid Expansion Stages. | F38: Indicate if the solution : - Is an Out-of-the-box functionality - Requires configuration? - Requires customisation? | I38: Show stopper | J38: =IF(I38='Priority Ratings'!$C$21,'Priority Ratings'!$B$21, IF(I38='Priority Ratings'!$C$22,'Priority Ratings'!$B$22,IF(I38='Priority Ratings'!$C$23,'Priority Ratings'!$B$23,IF(I38='Priority Ratings'!$C$24,'Priority Ratings'!$B$24,IF(I38='Priority Ratings'!$C$25,'Priority Ratings'!$B$25,IF(I38='Priority Ratings'!$C$26,'Priority Ratings'!$B$26,IF(I38='Priority Ratings'!$C$27,'Priority Ratings'!$B$27,"No Rating"))))))) -> 6 | K38: 0.01680672269 | L38: 100%: Fully comply with requirement 50%: Partially comply will require development/ customisation 0%: No compliance | M38: 0 | N38: 0
A39: 31 | B39: Meeting the Scope of Work Required | C39: How well has the Tenderer described how scope requirements will be met? Do they understand what needs to be done? List concerns in Comments. | D39: Network Model Management | E39: Highly flexible Study Proposal concept with definable Operation Scenarios, Variations, Grids and Triggers. | F39: Indicate if the solution : - Is an Out-of-the-box functionality - Requires configuration? - Requires customisation? | I39: Show stopper | J39: =IF(I39='Priority Ratings'!$C$21,'Priority Ratings'!$B$21, IF(I39='Priority Ratings'!$C$22,'Priority Ratings'!$B$22,IF(I39='Priority Ratings'!$C$23,'Priority Ratings'!$B$23,IF(I39='Priority Ratings'!$C$24,'Priority Ratings'!$B$24,IF(I39='Priority Ratings'!$C$25,'Priority Ratings'!$B$25,IF(I39='Priority Ratings'!$C$26,'Priority Ratings'!$B$26,IF(I39='Priority Ratings'!$C$27,'Priority Ratings'!$B$27,"No Rating"))))))) -> 6 | K39: 0.01680672269 | L39: 100%: Fully comply with requirement 50%: Partially comply will require development/ customisation 0%: No compliance | M39: 0 | N39: 0
A40: 32 | B40: Meeting the Scope of Work Required | C40: How well has the Tenderer described how scope requirements will be met? Do they understand what needs to be done? List concerns in Comments. | D40: Network Model Management | E40: Project Overview window with extended functionality for simplified management of Study Proposal configuration. | F40: Indicate if the solution : - Is an Out-of-the-box functionality - Requires configuration? - Requires customisation? | I40: Critical | J40: =IF(I40='Priority Ratings'!$C$21,'Priority Ratings'!$B$21, IF(I40='Priority Ratings'!$C$22,'Priority Ratings'!$B$22,IF(I40='Priority Ratings'!$C$23,'Priority Ratings'!$B$23,IF(I40='Priority Ratings'!$C$24,'Priority Ratings'!$B$24,IF(I40='Priority Ratings'!$C$25,'Priority Ratings'!$B$25,IF(I40='Priority Ratings'!$C$26,'Priority Ratings'!$B$26,IF(I40='Priority Ratings'!$C$27,'Priority Ratings'!$B$27,"No Rating"))))))) -> 5 | K40: 0.01400560224 | L40: 100%: Fully comply with requirement 50%: Partially comply will require development/ customisation 0%: No compliance | M40: 0 | N40: 0
A41: 33 | B41: Meeting the Scope of Work Required | C41: How well has the Tenderer described how scope requirements will be met? Do they understand what needs to be done? List concerns in Comments. | D41: Network Model Management | E41: Data (Model) Extension concept for user customization with userdefined classes and attributes. | F41: Indicate if the solution : - Is an Out-of-the-box functionality - Requires configuration? - Requires customisation? | I41: Very important | J41: =IF(I41='Priority Ratings'!$C$21,'Priority Ratings'!$B$21, IF(I41='Priority Ratings'!$C$22,'Priority Ratings'!$B$22,IF(I41='Priority Ratings'!$C$23,'Priority Ratings'!$B$23,IF(I41='Priority Ratings'!$C$24,'Priority Ratings'!$B$24,IF(I41='Priority Ratings'!$C$25,'Priority Ratings'!$B$25,IF(I41='Priority Ratings'!$C$26,'Priority Ratings'!$B$26,IF(I41='Priority Ratings'!$C$27,'Priority Ratings'!$B$27,"No Rating"))))))) -> 4 | K41: 0.01120448179 | L41: 100%: Fully comply with requirement 50%: Partially comply will require development/ customisation 0%: No compliance | M41: 0 | N41: 0
A42: 34 | B42: Meeting the Scope of Work Required | C42: How well has the Tenderer described how scope requirements will be met? Do they understand what needs to be done? List concerns in Comments. | D42: Network Model Management | E42: Flexible parameter characteristics in terms of defining characteristics e.g., time, vector and matrix, and what triggers would change the characteristic values. This should be able to be applied to all equipment types and loads e.g., line ratings for emergency and normal loads | F42: Indicate if the solution : - Is an Out-of-the-box functionality - Requires configuration? - Requires customisation? | I42: Show stopper | J42: =IF(I42='Priority Ratings'!$C$21,'Priority Ratings'!$B$21, IF(I42='Priority Ratings'!$C$22,'Priority Ratings'!$B$22,IF(I42='Priority Ratings'!$C$23,'Priority Ratings'!$B$23,IF(I42='Priority Ratings'!$C$24,'Priority Ratings'!$B$24,IF(I42='Priority Ratings'!$C$25,'Priority Ratings'!$B$25,IF(I42='Priority Ratings'!$C$26,'Priority Ratings'!$B$26,IF(I42='Priority Ratings'!$C$27,'Priority Ratings'!$B$27,"No Rating"))))))) -> 6 | K42: 0.01680672269 | L42: 100%: Fully comply with requirement 50%: Partially comply will require development/ customisation 0%: No compliance | M42: 0 | N42: 0
A43: 35 | B43: Meeting the Scope of Work Required | C43: How well has the Tenderer described how scope requirements will be met? Do they understand what needs to be done? List concerns in Comments. | D43: Network Model Management | E43: Master- and Derived Projects with Merge Tools. | F43: Indicate if the solution : - Is an Out-of-the-box functionality - Requires configuration? - Requires customisation? | I43: Very important | J43: =IF(I43='Priority Ratings'!$C$21,'Priority Ratings'!$B$21, IF(I43='Priority Ratings'!$C$22,'Priority Ratings'!$B$22,IF(I43='Priority Ratings'!$C$23,'Priority Ratings'!$B$23,IF(I43='Priority Ratings'!$C$24,'Priority Ratings'!$B$24,IF(I43='Priority Ratings'!$C$25,'Priority Ratings'!$B$25,IF(I43='Priority Ratings'!$C$26,'Priority Ratings'!$B$26,IF(I43='Priority Ratings'!$C$27,'Priority Ratings'!$B$27,"No Rating"))))))) -> 4 | K43: 0.01120448179 | L43: 100%: Fully comply with requirement 50%: Partially comply will require development/ customisation 0%: No compliance | M43: 0 | N43: 0
A44: 36 | B44: Meeting the Scope of Work Required | C44: How well has the Tenderer described how scope requirements will be met? Do they understand what needs to be done? List concerns in Comments. | D44: Network Model Management | E44: Project combination merging and project connection assistant (horizontal/vertical). | F44: Indicate if the solution : - Is an Out-of-the-box functionality - Requires configuration? - Requires customisation? | I44: Show stopper | J44: =IF(I44='Priority Ratings'!$C$21,'Priority Ratings'!$B$21, IF(I44='Priority Ratings'!$C$22,'Priority Ratings'!$B$22,IF(I44='Priority Ratings'!$C$23,'Priority Ratings'!$B$23,IF(I44='Priority Ratings'!$C$24,'Priority Ratings'!$B$24,IF(I44='Priority Ratings'!$C$25,'Priority Ratings'!$B$25,IF(I44='Priority Ratings'!$C$26,'Priority Ratings'!$B$26,IF(I44='Priority Ratings'!$C$27,'Priority Ratings'!$B$27,"No Rating"))))))) -> 6 | K44: 0.01680672269 | L44: 100%: Fully comply with requirement 50%: Partially comply will require development/ customisation 0%: No compliance | M44: 0 | N44: 0
A45: 37 | B45: Meeting the Scope of Work Required | C45: How well has the Tenderer described how scope requirements will be met? Do they understand what needs to be done? List concerns in Comments. | D45: Network Model Management | E45: Project versioning which allows full snapshots to be saved and to support rollback to previous versions. | F45: Indicate if the solution : - Is an Out-of-the-box functionality - Requires configuration? - Requires customisation? | I45: Critical | J45: =IF(I45='Priority Ratings'!$C$21,'Priority Ratings'!$B$21, IF(I45='Priority Ratings'!$C$22,'Priority Ratings'!$B$22,IF(I45='Priority Ratings'!$C$23,'Priority Ratings'!$B$23,IF(I45='Priority Ratings'!$C$24,'Priority Ratings'!$B$24,IF(I45='Priority Ratings'!$C$25,'Priority Ratings'!$B$25,IF(I45='Priority Ratings'!$C$26,'Priority Ratings'!$B$26,IF(I45='Priority Ratings'!$C$27,'Priority Ratings'!$B$27,"No Rating"))))))) -> 5 | K45: 0.01400560224 | L45: 100%: Fully comply with requirement 50%: Partially comply will require development/ customisation 0%: No compliance | M45: 0 | N45: 0
A46: 38 | B46: Meeting the Scope of Work Required | C46: How well has the Tenderer described how scope requirements will be met? Do they understand what needs to be done? List concerns in Comments. | D46: Network Model Management | E46: Database Undo and Rollback function. Update database to store reference points during assessments. | F46: Indicate if the solution : - Is an Out-of-the-box functionality - Requires configuration? - Requires customisation? | I46: Show stopper | J46: =IF(I46='Priority Ratings'!$C$21,'Priority Ratings'!$B$21, IF(I46='Priority Ratings'!$C$22,'Priority Ratings'!$B$22,IF(I46='Priority Ratings'!$C$23,'Priority Ratings'!$B$23,IF(I46='Priority Ratings'!$C$24,'Priority Ratings'!$B$24,IF(I46='Priority Ratings'!$C$25,'Priority Ratings'!$B$25,IF(I46='Priority Ratings'!$C$26,'Priority Ratings'!$B$26,IF(I46='Priority Ratings'!$C$27,'Priority Ratings'!$B$27,"No Rating"))))))) -> 6 | K46: 0.01680672269 | L46: 100%: Fully comply with requirement 50%: Partially comply will require development/ customisation 0%: No compliance | M46: 0 | N46: 0
A47: 39 | B47: Meeting the Scope of Work Required | C47: How well has the Tenderer described how scope requirements will be met? Do they understand what needs to be done? List concerns in Comments. | D47: Network Model Management | E47: Multi-User database with team working functionality and support of simultaneous user sessions. | F47: Indicate if the solution : - Is an Out-of-the-box functionality - Requires configuration? - Requires customisation? | I47: Very important | J47: =IF(I47='Priority Ratings'!$C$21,'Priority Ratings'!$B$21, IF(I47='Priority Ratings'!$C$22,'Priority Ratings'!$B$22,IF(I47='Priority Ratings'!$C$23,'Priority Ratings'!$B$23,IF(I47='Priority Ratings'!$C$24,'Priority Ratings'!$B$24,IF(I47='Priority Ratings'!$C$25,'Priority Ratings'!$B$25,IF(I47='Priority Ratings'!$C$26,'Priority Ratings'!$B$26,IF(I47='Priority Ratings'!$C$27,'Priority Ratings'!$B$27,"No Rating"))))))) -> 4 | K47: 0.01120448179 | L47: 100%: Fully comply with requirement 50%: Partially comply will require development/ customisation 0%: No compliance | M47: 0 | N47: 0
A48: 40 | B48: Meeting the Scope of Work Required | C48: How well has the Tenderer described how scope requirements will be met? Do they understand what needs to be done? List concerns in Comments. | D48: Network Model Management | E48: User accounting, data access and function access rights. | F48: Indicate if the solution : - Is an Out-of-the-box functionality - Requires configuration? - Requires customisation? | I48: Critical | J48: =IF(I48='Priority Ratings'!$C$21,'Priority Ratings'!$B$21, IF(I48='Priority Ratings'!$C$22,'Priority Ratings'!$B$22,IF(I48='Priority Ratings'!$C$23,'Priority Ratings'!$B$23,IF(I48='Priority Ratings'!$C$24,'Priority Ratings'!$B$24,IF(I48='Priority Ratings'!$C$25,'Priority Ratings'!$B$25,IF(I48='Priority Ratings'!$C$26,'Priority Ratings'!$B$26,IF(I48='Priority Ratings'!$C$27,'Priority Ratings'!$B$27,"No Rating"))))))) -> 5 | K48: 0.01400560224 | L48: 100%: Fully comply with requirement 50%: Partially comply will require development/ customisation 0%: No compliance | M48: 0 | N48: 0
A49: 41 | B49: Meeting the Scope of Work Required | C49: How well has the Tenderer described how scope requirements will be met? Do they understand what needs to be done? List concerns in Comments. | D49: Network Model Management | E49: User authentication via administration, including password policy settings, or via external authentication services, such as Lightweight Directory Access Protocol (LDAP) or Microsoft Active Directory. | F49: Indicate if the solution : - Is an Out-of-the-box functionality - Requires configuration? - Requires customisation? | I49: Very important | J49: =IF(I49='Priority Ratings'!$C$21,'Priority Ratings'!$B$21, IF(I49='Priority Ratings'!$C$22,'Priority Ratings'!$B$22,IF(I49='Priority Ratings'!$C$23,'Priority Ratings'!$B$23,IF(I49='Priority Ratings'!$C$24,'Priority Ratings'!$B$24,IF(I49='Priority Ratings'!$C$25,'Priority Ratings'!$B$25,IF(I49='Priority Ratings'!$C$26,'Priority Ratings'!$B$26,IF(I49='Priority Ratings'!$C$27,'Priority Ratings'!$B$27,"No Rating"))))))) -> 4 | K49: 0.01120448179 | L49: 100%: Fully comply with requirement 50%: Partially comply will require development/ customisation 0%: No compliance | M49: 0 | N49: 0
A50: 42 | B50: Meeting the Scope of Work Required | C50: How well has the Tenderer described how scope requirements will be met? Do they understand what needs to be done? List concerns in Comments. | D50: Network Model Management | E50: Database housekeeping mechanisms via spreadsheet view or Explorer view "editability" via graphics, export, database. | F50: Indicate if the solution : - Is an Out-of-the-box functionality - Requires configuration? - Requires customisation? | I50: Critical | J50: =IF(I50='Priority Ratings'!$C$21,'Priority Ratings'!$B$21, IF(I50='Priority Ratings'!$C$22,'Priority Ratings'!$B$22,IF(I50='Priority Ratings'!$C$23,'Priority Ratings'!$B$23,IF(I50='Priority Ratings'!$C$24,'Priority Ratings'!$B$24,IF(I50='Priority Ratings'!$C$25,'Priority Ratings'!$B$25,IF(I50='Priority Ratings'!$C$26,'Priority Ratings'!$B$26,IF(I50='Priority Ratings'!$C$27,'Priority Ratings'!$B$27,"No Rating"))))))) -> 5 | K50: 0.01400560224 | L50: 100%: Fully comply with requirement 50%: Partially comply will require development/ customisation 0%: No compliance | M50: 0 | N50: 0
A51: 43 | B51: Meeting the Scope of Work Required | C51: How well has the Tenderer described how scope requirements will be met? Do they understand what needs to be done? List concerns in Comments. | D51: Network Model Management | E51: Project archiving capability. | F51: Indicate if the solution : - Is an Out-of-the-box functionality - Requires configuration? - Requires customisation? | I51: Very important | J51: =IF(I51='Priority Ratings'!$C$21,'Priority Ratings'!$B$21, IF(I51='Priority Ratings'!$C$22,'Priority Ratings'!$B$22,IF(I51='Priority Ratings'!$C$23,'Priority Ratings'!$B$23,IF(I51='Priority Ratings'!$C$24,'Priority Ratings'!$B$24,IF(I51='Priority Ratings'!$C$25,'Priority Ratings'!$B$25,IF(I51='Priority Ratings'!$C$26,'Priority Ratings'!$B$26,IF(I51='Priority Ratings'!$C$27,'Priority Ratings'!$B$27,"No Rating"))))))) -> 4 | K51: 0.01120448179 | L51: 100%: Fully comply with requirement 50%: Partially comply will require development/ customisation 0%: No compliance | M51: 0 | N51: 0
A52: 44 | B52: Meeting the Scope of Work Required | C52: How well has the Tenderer described how scope requirements will be met? Do they understand what needs to be done? List concerns in Comments. | D52: Network Model Management | E52: Offline Mode via locally cached database and possibility for synchronization with multiuser database when connected to the network (Floating License). | F52: Indicate if the solution : - Is an Out-of-the-box functionality - Requires configuration? - Requires customisation? | I52: Show stopper | J52: =IF(I52='Priority Ratings'!$C$21,'Priority Ratings'!$B$21, IF(I52='Priority Ratings'!$C$22,'Priority Ratings'!$B$22,IF(I52='Priority Ratings'!$C$23,'Priority Ratings'!$B$23,IF(I52='Priority Ratings'!$C$24,'Priority Ratings'!$B$24,IF(I52='Priority Ratings'!$C$25,'Priority Ratings'!$B$25,IF(I52='Priority Ratings'!$C$26,'Priority Ratings'!$B$26,IF(I52='Priority Ratings'!$C$27,'Priority Ratings'!$B$27,"No Rating"))))))) -> 6 | K52: 0.01680672269 | L52: 100%: Fully comply with requirement 50%: Partially comply will require development/ customisation 0%: No compliance | M52: 0 | N52: 0
A53: 45 | B53: Meeting the Scope of Work Required | C53: How well has the Tenderer described how scope requirements will be met? Do they understand what needs to be done? List concerns in Comments. | D53: Network Model Management | E53: Flexible definition of boundaries with Boundary Definition Tool. | F53: Indicate if the solution : - Is an Out-of-the-box functionality - Requires configuration? - Requires customisation? | I53: Critical | J53: =IF(I53='Priority Ratings'!$C$21,'Priority Ratings'!$B$21, IF(I53='Priority Ratings'!$C$22,'Priority Ratings'!$B$22,IF(I53='Priority Ratings'!$C$23,'Priority Ratings'!$B$23,IF(I53='Priority Ratings'!$C$24,'Priority Ratings'!$B$24,IF(I53='Priority Ratings'!$C$25,'Priority Ratings'!$B$25,IF(I53='Priority Ratings'!$C$26,'Priority Ratings'!$B$26,IF(I53='Priority Ratings'!$C$27,'Priority Ratings'!$B$27,"No Rating"))))))) -> 5 | K53: 0.01400560224 | L53: 100%: Fully comply with requirement 50%: Partially comply will require development/ customisation 0%: No compliance | M53: 0 | N53: 0
A54: 46 | B54: Meeting the Scope of Work Required | C54: How well has the Tenderer described how scope requirements will be met? Do they understand what needs to be done? List concerns in Comments. | D54: Network Model Management | E54: Calculation of (AC or DC) load flow and short-circuit equivalent. | F54: Indicate if the solution : - Is an Out-of-the-box functionality - Requires configuration? - Requires customisation? | I54: Show stopper | J54: =IF(I54='Priority Ratings'!$C$21,'Priority Ratings'!$B$21, IF(I54='Priority Ratings'!$C$22,'Priority Ratings'!$B$22,IF(I54='Priority Ratings'!$C$23,'Priority Ratings'!$B$23,IF(I54='Priority Ratings'!$C$24,'Priority Ratings'!$B$24,IF(I54='Priority Ratings'!$C$25,'Priority Ratings'!$B$25,IF(I54='Priority Ratings'!$C$26,'Priority Ratings'!$B$26,IF(I54='Priority Ratings'!$C$27,'Priority Ratings'!$B$27,"No Rating"))))))) -> 6 | K54: 0.01680672269 | L54: 100%: Fully comply with requirement 50%: Partially comply will require development/ customisation 0%: No compliance | M54: 0 | N54: 0
A55: 47 | B55: Meeting the Scope of Work Required | C55: How well has the Tenderer described how scope requirements will be met? Do they understand what needs to be done? List concerns in Comments. | D55: Network Model Management | E55: Support of load, Ward, extended Ward and Radial, Equivalent, and Independent DIMO equivalents. | F55: Indicate if the solution : - Is an Out-of-the-box functionality - Requires configuration? - Requires customisation? | I55: Show stopper | J55: =IF(I55='Priority Ratings'!$C$21,'Priority Ratings'!$B$21, IF(I55='Priority Ratings'!$C$22,'Priority Ratings'!$B$22,IF(I55='Priority Ratings'!$C$23,'Priority Ratings'!$B$23,IF(I55='Priority Ratings'!$C$24,'Priority Ratings'!$B$24,IF(I55='Priority Ratings'!$C$25,'Priority Ratings'!$B$25,IF(I55='Priority Ratings'!$C$26,'Priority Ratings'!$B$26,IF(I55='Priority Ratings'!$C$27,'Priority Ratings'!$B$27,"No Rating"))))))) -> 6 | K55: 0.01680672269 | L55: 100%: Fully comply with requirement 50%: Partially comply will require development/ customisation 0%: No compliance | M55: 0 | N55: 0
A56: 48 | B56: Meeting the Scope of Work Required | C56: How well has the Tenderer described how scope requirements will be met? Do they understand what needs to be done? List concerns in Comments. | D56: Network Model Management | E56: Numerous options for aggregation of non-linear elements. | F56: Indicate if the solution : - Is an Out-of-the-box functionality - Requires configuration? - Requires customisation? | I56: Show stopper | J56: =IF(I56='Priority Ratings'!$C$21,'Priority Ratings'!$B$21, IF(I56='Priority Ratings'!$C$22,'Priority Ratings'!$B$22,IF(I56='Priority Ratings'!$C$23,'Priority Ratings'!$B$23,IF(I56='Priority Ratings'!$C$24,'Priority Ratings'!$B$24,IF(I56='Priority Ratings'!$C$25,'Priority Ratings'!$B$25,IF(I56='Priority Ratings'!$C$26,'Priority Ratings'!$B$26,IF(I56='Priority Ratings'!$C$27,'Priority Ratings'!$B$27,"No Rating"))))))) -> 6 | K56: 0.01680672269 | L56: 100%: Fully comply with requirement 50%: Partially comply will require development/ customisation 0%: No compliance | M56: 0 | N56: 0
A57: 49 | B57: Meeting the Scope of Work Required | C57: How well has the Tenderer described how scope requirements will be met? Do they understand what needs to be done? List concerns in Comments. | D57: Network Model Management | E57: Capturing and storing of reduction for convenient switching between original and equivalent grid analysis. | F57: Indicate if the solution : - Is an Out-of-the-box functionality - Requires configuration? - Requires customisation? | I57: Very important | J57: =IF(I57='Priority Ratings'!$C$21,'Priority Ratings'!$B$21, IF(I57='Priority Ratings'!$C$22,'Priority Ratings'!$B$22,IF(I57='Priority Ratings'!$C$23,'Priority Ratings'!$B$23,IF(I57='Priority Ratings'!$C$24,'Priority Ratings'!$B$24,IF(I57='Priority Ratings'!$C$25,'Priority Ratings'!$B$25,IF(I57='Priority Ratings'!$C$26,'Priority Ratings'!$B$26,IF(I57='Priority Ratings'!$C$27,'Priority Ratings'!$B$27,"No Rating"))))))) -> 4 | K57: 0.01120448179 | L57: 100%: Fully comply with requirement 50%: Partially comply will require development/ customisation 0%: No compliance | M57: 0 | N57: 0
A58: 50 | B58: Meeting the Scope of Work Required | C58: How well has the Tenderer described how scope requirements will be met? Do they understand what needs to be done? List concerns in Comments. | D58: Network Model Management | E58: Functionality to create and store Operation libraries: - Representing the various operational states of the network for both Network Planning and Network Operations. - Current and Future operational data stores for short, medium, and longrange planning. | F58: Indicate if the solution : - Is an Out-of-the-box functionality - Requires configuration? - Requires customisation? | I58: Show stopper | J58: =IF(I58='Priority Ratings'!$C$21,'Priority Ratings'!$B$21, IF(I58='Priority Ratings'!$C$22,'Priority Ratings'!$B$22,IF(I58='Priority Ratings'!$C$23,'Priority Ratings'!$B$23,IF(I58='Priority Ratings'!$C$24,'Priority Ratings'!$B$24,IF(I58='Priority Ratings'!$C$25,'Priority Ratings'!$B$25,IF(I58='Priority Ratings'!$C$26,'Priority Ratings'!$B$26,IF(I58='Priority Ratings'!$C$27,'Priority Ratings'!$B$27,"No Rating"))))))) -> 6 | K58: 0.01680672269 | L58: 100%: Fully comply with requirement 50%: Partially comply will require development/ customisation 0%: No compliance | M58: 0 | N58: 0
A59: 51 | B59: Meeting the Scope of Work Required | C59: How well has the Tenderer described how scope requirements will be met? Do they understand what needs to be done? List concerns in Comments. | D59: Network Diagrams and graphic and features | E59: Simplified single line diagrams for schematic and design views. | F59: Indicate if the solution : - Is an Out-of-the-box functionality - Requires configuration? - Requires customisation? | I59: Critical | J59: =IF(I59='Priority Ratings'!$C$21,'Priority Ratings'!$B$21, IF(I59='Priority Ratings'!$C$22,'Priority Ratings'!$B$22,IF(I59='Priority Ratings'!$C$23,'Priority Ratings'!$B$23,IF(I59='Priority Ratings'!$C$24,'Priority Ratings'!$B$24,IF(I59='Priority Ratings'!$C$25,'Priority Ratings'!$B$25,IF(I59='Priority Ratings'!$C$26,'Priority Ratings'!$B$26,IF(I59='Priority Ratings'!$C$27,'Priority Ratings'!$B$27,"No Rating"))))))) -> 5 | K59: 0.01400560224 | L59: 100%: Fully comply with requirement 50%: Partially comply will require development/ customisation 0%: No compliance | M59: 0 | N59: 0
A60: 52 | B60: Meeting the Scope of Work Required | C60: How well has the Tenderer described how scope requirements will be met? Do they understand what needs to be done? List concerns in Comments. | D60: Network Diagrams and graphic and features | E60: Detailed single line diagrams showing full switch & component model including primary and secondary equipment. | F60: Indicate if the solution : - Is an Out-of-the-box functionality - Requires configuration? - Requires customisation? | I60: Critical | J60: =IF(I60='Priority Ratings'!$C$21,'Priority Ratings'!$B$21, IF(I60='Priority Ratings'!$C$22,'Priority Ratings'!$B$22,IF(I60='Priority Ratings'!$C$23,'Priority Ratings'!$B$23,IF(I60='Priority Ratings'!$C$24,'Priority Ratings'!$B$24,IF(I60='Priority Ratings'!$C$25,'Priority Ratings'!$B$25,IF(I60='Priority Ratings'!$C$26,'Priority Ratings'!$B$26,IF(I60='Priority Ratings'!$C$27,'Priority Ratings'!$B$27,"No Rating"))))))) -> 5 | K60: 0.01400560224 | L60: 100%: Fully comply with requirement 50%: Partially comply will require development/ customisation 0%: No compliance | M60: 0 | N60: 0
A61: 53 | B61: Meeting the Scope of Work Required | C61: How well has the Tenderer described how scope requirements will be met? Do they understand what needs to be done? List concerns in Comments. | D61: Network Diagrams and graphic and features | E61: Ability to import/export schematics for substations and overview networks (to align with SCADA and NIS). | F61: Indicate if the solution : - Is an Out-of-the-box functionality - Requires configuration? - Requires customisation? | I61: Very important | J61: =IF(I61='Priority Ratings'!$C$21,'Priority Ratings'!$B$21, IF(I61='Priority Ratings'!$C$22,'Priority Ratings'!$B$22,IF(I61='Priority Ratings'!$C$23,'Priority Ratings'!$B$23,IF(I61='Priority Ratings'!$C$24,'Priority Ratings'!$B$24,IF(I61='Priority Ratings'!$C$25,'Priority Ratings'!$B$25,IF(I61='Priority Ratings'!$C$26,'Priority Ratings'!$B$26,IF(I61='Priority Ratings'!$C$27,'Priority Ratings'!$B$27,"No Rating"))))))) -> 4 | K61: 0.01120448179 | L61: 100%: Fully comply with requirement 50%: Partially comply will require development/ customisation 0%: No compliance | M61: 0 | N61: 0
A62: 54 | B62: Meeting the Scope of Work Required | C62: How well has the Tenderer described how scope requirements will be met? Do they understand what needs to be done? List concerns in Comments. | D62: Network Diagrams and graphic and features | E62: Ability to create userdefinable custom symbols for devices and composite graphics. | F62: Indicate if the solution : - Is an Out-of-the-box functionality - Requires configuration? - Requires customisation? | I62: Important | J62: =IF(I62='Priority Ratings'!$C$21,'Priority Ratings'!$B$21, IF(I62='Priority Ratings'!$C$22,'Priority Ratings'!$B$22,IF(I62='Priority Ratings'!$C$23,'Priority Ratings'!$B$23,IF(I62='Priority Ratings'!$C$24,'Priority Ratings'!$B$24,IF(I62='Priority Ratings'!$C$25,'Priority Ratings'!$B$25,IF(I62='Priority Ratings'!$C$26,'Priority Ratings'!$B$26,IF(I62='Priority Ratings'!$C$27,'Priority Ratings'!$B$27,"No Rating"))))))) -> 3 | K62: 0.008403361345 | L62: 100%: Fully comply with requirement 50%: Partially comply will require development/ customisation 0%: No compliance | M62: 0 | N62: 0
A63: 55 | B63: Meeting the Scope of Work Required | C63: How well has the Tenderer described how scope requirements will be met? Do they understand what needs to be done? List concerns in Comments. | D63: Network Diagrams and graphic and features | E63: Ability to draw voltage profiles for feeders. | F63: Indicate if the solution : - Is an Out-of-the-box functionality - Requires configuration? - Requires customisation? | I63: Very important | J63: =IF(I63='Priority Ratings'!$C$21,'Priority Ratings'!$B$21, IF(I63='Priority Ratings'!$C$22,'Priority Ratings'!$B$22,IF(I63='Priority Ratings'!$C$23,'Priority Ratings'!$B$23,IF(I63='Priority Ratings'!$C$24,'Priority Ratings'!$B$24,IF(I63='Priority Ratings'!$C$25,'Priority Ratings'!$B$25,IF(I63='Priority Ratings'!$C$26,'Priority Ratings'!$B$26,IF(I63='Priority Ratings'!$C$27,'Priority Ratings'!$B$27,"No Rating"))))))) -> 4 | K63: 0.01120448179 | L63: 100%: Fully comply with requirement 50%: Partially comply will require development/ customisation 0%: No compliance | M63: 0 | N63: 0
A64: 56 | B64: Meeting the Scope of Work Required | C64: How well has the Tenderer described how scope requirements will be met? Do they understand what needs to be done? List concerns in Comments. | D64: Network Diagrams and graphic and features | E64: Ability to draw fault level- distance graphs for feeder's graphical representations of substations and bays. | F64: Indicate if the solution : - Is an Out-of-the-box functionality - Requires configuration? - Requires customisation? | I64: Very important | J64: =IF(I64='Priority Ratings'!$C$21,'Priority Ratings'!$B$21, IF(I64='Priority Ratings'!$C$22,'Priority Ratings'!$B$22,IF(I64='Priority Ratings'!$C$23,'Priority Ratings'!$B$23,IF(I64='Priority Ratings'!$C$24,'Priority Ratings'!$B$24,IF(I64='Priority Ratings'!$C$25,'Priority Ratings'!$B$25,IF(I64='Priority Ratings'!$C$26,'Priority Ratings'!$B$26,IF(I64='Priority Ratings'!$C$27,'Priority Ratings'!$B$27,"No Rating"))))))) -> 4 | K64: 0.01120448179 | L64: 100%: Fully comply with requirement 50%: Partially comply will require development/ customisation 0%: No compliance | M64: 0 | N64: 0
A65: 57 | B65: Meeting the Scope of Work Required | C65: How well has the Tenderer described how scope requirements will be met? Do they understand what needs to be done? List concerns in Comments. | D65: Network Diagrams and graphic and features | E65: Intelligent Overview Diagrams supporting node & branch views. | F65: Indicate if the solution : - Is an Out-of-the-box functionality - Requires configuration? - Requires customisation? | I65: Very important | J65: =IF(I65='Priority Ratings'!$C$21,'Priority Ratings'!$B$21, IF(I65='Priority Ratings'!$C$22,'Priority Ratings'!$B$22,IF(I65='Priority Ratings'!$C$23,'Priority Ratings'!$B$23,IF(I65='Priority Ratings'!$C$24,'Priority Ratings'!$B$24,IF(I65='Priority Ratings'!$C$25,'Priority Ratings'!$B$25,IF(I65='Priority Ratings'!$C$26,'Priority Ratings'!$B$26,IF(I65='Priority Ratings'!$C$27,'Priority Ratings'!$B$27,"No Rating"))))))) -> 4 | K65: 0.01120448179 | L65: 100%: Fully comply with requirement 50%: Partially comply will require development/ customisation 0%: No compliance | M65: 0 | N65: 0
A66: 58 | B66: Meeting the Scope of Work Required | C66: How well has the Tenderer described how scope requirements will be met? Do they understand what needs to be done? List concerns in Comments. | D66: Network Diagrams and graphic and features | E66: Geographic Diagrams Global Positioning System ((GPS)-based) with background maps. | F66: Indicate if the solution : - Is an Out-of-the-box functionality - Requires configuration? - Requires customisation? | I66: Critical | J66: =IF(I66='Priority Ratings'!$C$21,'Priority Ratings'!$B$21, IF(I66='Priority Ratings'!$C$22,'Priority Ratings'!$B$22,IF(I66='Priority Ratings'!$C$23,'Priority Ratings'!$B$23,IF(I66='Priority Ratings'!$C$24,'Priority Ratings'!$B$24,IF(I66='Priority Ratings'!$C$25,'Priority Ratings'!$B$25,IF(I66='Priority Ratings'!$C$26,'Priority Ratings'!$B$26,IF(I66='Priority Ratings'!$C$27,'Priority Ratings'!$B$27,"No Rating"))))))) -> 5 | K66: 0.01400560224 | L66: 100%: Fully comply with requirement 50%: Partially comply will require development/ customisation 0%: No compliance | M66: 0 | N66: 0
A67: 59 | B67: Meeting the Scope of Work Required | C67: How well has the Tenderer described how scope requirements will be met? Do they understand what needs to be done? List concerns in Comments. | D67: Network Diagrams and graphic and features | E67: Capability to support the automatic calculation of coordinates and line lengths on the network. | F67: Indicate if the solution : - Is an Out-of-the-box functionality - Requires configuration? - Requires customisation? | I67: Critical | J67: =IF(I67='Priority Ratings'!$C$21,'Priority Ratings'!$B$21, IF(I67='Priority Ratings'!$C$22,'Priority Ratings'!$B$22,IF(I67='Priority Ratings'!$C$23,'Priority Ratings'!$B$23,IF(I67='Priority Ratings'!$C$24,'Priority Ratings'!$B$24,IF(I67='Priority Ratings'!$C$25,'Priority Ratings'!$B$25,IF(I67='Priority Ratings'!$C$26,'Priority Ratings'!$B$26,IF(I67='Priority Ratings'!$C$27,'Priority Ratings'!$B$27,"No Rating"))))))) -> 5 | K67: 0.01400560224 | L67: 100%: Fully comply with requirement 50%: Partially comply will require development/ customisation 0%: No compliance | M67: 0 | N67: 0
A68: 60 | B68: Meeting the Scope of Work Required | C68: How well has the Tenderer described how scope requirements will be met? Do they understand what needs to be done? List concerns in Comments. | D68: Network Diagrams and graphic and features | E68: Background Maps representation automated via mapping server interface (e.g., Open Street Map, Google Maps 1, Esri ArcGIS1). | F68: Indicate if the solution : - Is an Out-of-the-box functionality - Requires configuration? - Requires customisation? | I68: Very important | J68: =IF(I68='Priority Ratings'!$C$21,'Priority Ratings'!$B$21, IF(I68='Priority Ratings'!$C$22,'Priority Ratings'!$B$22,IF(I68='Priority Ratings'!$C$23,'Priority Ratings'!$B$23,IF(I68='Priority Ratings'!$C$24,'Priority Ratings'!$B$24,IF(I68='Priority Ratings'!$C$25,'Priority Ratings'!$B$25,IF(I68='Priority Ratings'!$C$26,'Priority Ratings'!$B$26,IF(I68='Priority Ratings'!$C$27,'Priority Ratings'!$B$27,"No Rating"))))))) -> 4 | K68: 0.01120448179 | L68: 100%: Fully comply with requirement 50%: Partially comply will require development/ customisation 0%: No compliance | M68: 0 | N68: 0
A69: 61 | B69: Meeting the Scope of Work Required | C69: How well has the Tenderer described how scope requirements will be met? Do they understand what needs to be done? List concerns in Comments. | D69: Network Diagrams and graphic and features | E69: Graphic search option for network elements in diagrams, including geographic search facility with the flexibility to adjust some levels and highlighting tools. | F69: Indicate if the solution : - Is an Out-of-the-box functionality - Requires configuration? - Requires customisation? | I69: Very important | J69: =IF(I69='Priority Ratings'!$C$21,'Priority Ratings'!$B$21, IF(I69='Priority Ratings'!$C$22,'Priority Ratings'!$B$22,IF(I69='Priority Ratings'!$C$23,'Priority Ratings'!$B$23,IF(I69='Priority Ratings'!$C$24,'Priority Ratings'!$B$24,IF(I69='Priority Ratings'!$C$25,'Priority Ratings'!$B$25,IF(I69='Priority Ratings'!$C$26,'Priority Ratings'!$B$26,IF(I69='Priority Ratings'!$C$27,'Priority Ratings'!$B$27,"No Rating"))))))) -> 4 | K69: 0.01120448179 | L69: 100%: Fully comply with requirement 50%: Partially comply will require development/ customisation 0%: No compliance | M69: 0 | N69: 0
A70: 62 | B70: Meeting the Scope of Work Required | C70: How well has the Tenderer described how scope requirements will be met? Do they understand what needs to be done? List concerns in Comments. | D70: Network Diagrams and graphic and features | E70: Flexible diagram layer concept with opacity settings for customizable layer combinations, including annotation layers for enriched visualization options (network diagram, maps, images, texts, plots, etc.) | F70: Indicate if the solution : - Is an Out-of-the-box functionality - Requires configuration? - Requires customisation? | I70: Very important | J70: =IF(I70='Priority Ratings'!$C$21,'Priority Ratings'!$B$21, IF(I70='Priority Ratings'!$C$22,'Priority Ratings'!$B$22,IF(I70='Priority Ratings'!$C$23,'Priority Ratings'!$B$23,IF(I70='Priority Ratings'!$C$24,'Priority Ratings'!$B$24,IF(I70='Priority Ratings'!$C$25,'Priority Ratings'!$B$25,IF(I70='Priority Ratings'!$C$26,'Priority Ratings'!$B$26,IF(I70='Priority Ratings'!$C$27,'Priority Ratings'!$B$27,"No Rating"))))))) -> 4 | K70: 0.01120448179 | L70: 100%: Fully comply with requirement 50%: Partially comply will require development/ customisation 0%: No compliance | M70: 0 | N70: 0
A71: 63 | B71: Meeting the Scope of Work Required | C71: How well has the Tenderer described how scope requirements will be met? Do they understand what needs to be done? List concerns in Comments. | D71: Network Diagrams and graphic and features | E71: Single line diagram handling across Variations and Expansion Stages. | F71: Indicate if the solution : - Is an Out-of-the-box functionality - Requires configuration? - Requires customisation? | I71: Critical | J71: =IF(I71='Priority Ratings'!$C$21,'Priority Ratings'!$B$21, IF(I71='Priority Ratings'!$C$22,'Priority Ratings'!$B$22,IF(I71='Priority Ratings'!$C$23,'Priority Ratings'!$B$23,IF(I71='Priority Ratings'!$C$24,'Priority Ratings'!$B$24,IF(I71='Priority Ratings'!$C$25,'Priority Ratings'!$B$25,IF(I71='Priority Ratings'!$C$26,'Priority Ratings'!$B$26,IF(I71='Priority Ratings'!$C$27,'Priority Ratings'!$B$27,"No Rating"))))))) -> 5 | K71: 0.01400560224 | L71: 100%: Fully comply with requirement 50%: Partially comply will require development/ customisation 0%: No compliance | M71: 0 | N71: 0
A72: 64 | B72: Meeting the Scope of Work Required | C72: How well has the Tenderer described how scope requirements will be met? Do they understand what needs to be done? List concerns in Comments. | D72: Network Diagrams and graphic and features | E72: Automated drawing of Site, Substation Diagrams, and network diagrams. | F72: Indicate if the solution : - Is an Out-of-the-box functionality - Requires configuration? - Requires customisation? | I72: Critical | J72: =IF(I72='Priority Ratings'!$C$21,'Priority Ratings'!$B$21, IF(I72='Priority Ratings'!$C$22,'Priority Ratings'!$B$22,IF(I72='Priority Ratings'!$C$23,'Priority Ratings'!$B$23,IF(I72='Priority Ratings'!$C$24,'Priority Ratings'!$B$24,IF(I72='Priority Ratings'!$C$25,'Priority Ratings'!$B$25,IF(I72='Priority Ratings'!$C$26,'Priority Ratings'!$B$26,IF(I72='Priority Ratings'!$C$27,'Priority Ratings'!$B$27,"No Rating"))))))) -> 5 | K72: 0.01400560224 | L72: 100%: Fully comply with requirement 50%: Partially comply will require development/ customisation 0%: No compliance | M72: 0 | N72: 0
A73: 65 | B73: Meeting the Scope of Work Required | C73: How well has the Tenderer described how scope requirements will be met? Do they understand what needs to be done? List concerns in Comments. | D73: Network Diagrams and graphic and features | E73: Diagram Layout Tool for auto-drawing or assisted drawing of full or partial network, feeders, protection devices (CTs, VT, relays), branches, site, and substation diagrams as well as auto-expansion of diagram. | F73: Indicate if the solution : - Is an Out-of-the-box functionality - Requires configuration? - Requires customisation? | I73: Very important | J73: =IF(I73='Priority Ratings'!$C$21,'Priority Ratings'!$B$21, IF(I73='Priority Ratings'!$C$22,'Priority Ratings'!$B$22,IF(I73='Priority Ratings'!$C$23,'Priority Ratings'!$B$23,IF(I73='Priority Ratings'!$C$24,'Priority Ratings'!$B$24,IF(I73='Priority Ratings'!$C$25,'Priority Ratings'!$B$25,IF(I73='Priority Ratings'!$C$26,'Priority Ratings'!$B$26,IF(I73='Priority Ratings'!$C$27,'Priority Ratings'!$B$27,"No Rating"))))))) -> 4 | K73: 0.01120448179 | L73: 100%: Fully comply with requirement 50%: Partially comply will require development/ customisation 0%: No compliance | M73: 0 | N73: 0
A74: 66 | B74: Meeting the Scope of Work Required | C74: How well has the Tenderer described how scope requirements will be met? Do they understand what needs to be done? List concerns in Comments. | D74: Network Diagrams and graphic and features | E74: Global template libraries (e.g., for substation configurations, Wind Turbine Generators, PV systems). | F74: Indicate if the solution : - Is an Out-of-the-box functionality - Requires configuration? - Requires customisation? | I74: Very important | J74: =IF(I74='Priority Ratings'!$C$21,'Priority Ratings'!$B$21, IF(I74='Priority Ratings'!$C$22,'Priority Ratings'!$B$22,IF(I74='Priority Ratings'!$C$23,'Priority Ratings'!$B$23,IF(I74='Priority Ratings'!$C$24,'Priority Ratings'!$B$24,IF(I74='Priority Ratings'!$C$25,'Priority Ratings'!$B$25,IF(I74='Priority Ratings'!$C$26,'Priority Ratings'!$B$26,IF(I74='Priority Ratings'!$C$27,'Priority Ratings'!$B$27,"No Rating"))))))) -> 4 | K74: 0.01120448179 | L74: 100%: Fully comply with requirement 50%: Partially comply will require development/ customisation 0%: No compliance | M74: 0 | N74: 0
A75: 67 | B75: Meeting the Scope of Work Required | C75: How well has the Tenderer described how scope requirements will be met? Do they understand what needs to be done? List concerns in Comments. | D75: Network Diagrams and graphic and features | E75: Numerous diagram colouring and result visualization modes. | F75: Indicate if the solution : - Is an Out-of-the-box functionality - Requires configuration? - Requires customisation? | I75: Very important | J75: =IF(I75='Priority Ratings'!$C$21,'Priority Ratings'!$B$21, IF(I75='Priority Ratings'!$C$22,'Priority Ratings'!$B$22,IF(I75='Priority Ratings'!$C$23,'Priority Ratings'!$B$23,IF(I75='Priority Ratings'!$C$24,'Priority Ratings'!$B$24,IF(I75='Priority Ratings'!$C$25,'Priority Ratings'!$B$25,IF(I75='Priority Ratings'!$C$26,'Priority Ratings'!$B$26,IF(I75='Priority Ratings'!$C$27,'Priority Ratings'!$B$27,"No Rating"))))))) -> 4 | K75: 0.01120448179 | L75: 100%: Fully comply with requirement 50%: Partially comply will require development/ customisation 0%: No compliance | M75: 0 | N75: 0
A76: 68 | B76: Meeting the Scope of Work Required | C76: How well has the Tenderer described how scope requirements will be met? Do they understand what needs to be done? List concerns in Comments. | D76: Network Diagrams and graphic and features | E76: Flexible Heat map background colouring scheme. | F76: Indicate if the solution : - Is an Out-of-the-box functionality - Requires configuration? - Requires customisation? | I76: Important | J76: =IF(I76='Priority Ratings'!$C$21,'Priority Ratings'!$B$21, IF(I76='Priority Ratings'!$C$22,'Priority Ratings'!$B$22,IF(I76='Priority Ratings'!$C$23,'Priority Ratings'!$B$23,IF(I76='Priority Ratings'!$C$24,'Priority Ratings'!$B$24,IF(I76='Priority Ratings'!$C$25,'Priority Ratings'!$B$25,IF(I76='Priority Ratings'!$C$26,'Priority Ratings'!$B$26,IF(I76='Priority Ratings'!$C$27,'Priority Ratings'!$B$27,"No Rating"))))))) -> 3 | K76: 0.008403361345 | L76: 100%: Fully comply with requirement 50%: Partially comply will require development/ customisation 0%: No compliance | M76: 0 | N76: 0
A77: 69 | B77: Meeting the Scope of Work Required | C77: How well has the Tenderer described how scope requirements will be met? Do they understand what needs to be done? List concerns in Comments. | D77: Network Diagrams and graphic and features | E77: Detachable Navigation Pane facility. | F77: Indicate if the solution : - Is an Out-of-the-box functionality - Requires configuration? - Requires customisation? | I77: Important | J77: =IF(I77='Priority Ratings'!$C$21,'Priority Ratings'!$B$21, IF(I77='Priority Ratings'!$C$22,'Priority Ratings'!$B$22,IF(I77='Priority Ratings'!$C$23,'Priority Ratings'!$B$23,IF(I77='Priority Ratings'!$C$24,'Priority Ratings'!$B$24,IF(I77='Priority Ratings'!$C$25,'Priority Ratings'!$B$25,IF(I77='Priority Ratings'!$C$26,'Priority Ratings'!$B$26,IF(I77='Priority Ratings'!$C$27,'Priority Ratings'!$B$27,"No Rating"))))))) -> 3 | K77: 0.008403361345 | L77: 100%: Fully comply with requirement 50%: Partially comply will require development/ customisation 0%: No compliance | M77: 0 | N77: 0
A78: 70 | B78: Meeting the Scope of Work Required | C78: How well has the Tenderer described how scope requirements will be met? Do they understand what needs to be done? List concerns in Comments. | D78: Network Diagrams and graphic and features | E78: View Bookmarks for quick navigation between zoom areas. | F78: Indicate if the solution : - Is an Out-of-the-box functionality - Requires configuration? - Requires customisation? | I78: Important | J78: =IF(I78='Priority Ratings'!$C$21,'Priority Ratings'!$B$21, IF(I78='Priority Ratings'!$C$22,'Priority Ratings'!$B$22,IF(I78='Priority Ratings'!$C$23,'Priority Ratings'!$B$23,IF(I78='Priority Ratings'!$C$24,'Priority Ratings'!$B$24,IF(I78='Priority Ratings'!$C$25,'Priority Ratings'!$B$25,IF(I78='Priority Ratings'!$C$26,'Priority Ratings'!$B$26,IF(I78='Priority Ratings'!$C$27,'Priority Ratings'!$B$27,"No Rating"))))))) -> 3 | K78: 0.008403361345 | L78: 100%: Fully comply with requirement 50%: Partially comply will require development/ customisation 0%: No compliance | M78: 0 | N78: 0
A79: 71 | B79: Meeting the Scope of Work Required | C79: How well has the Tenderer described how scope requirements will be met? Do they understand what needs to be done? List concerns in Comments. | D79: Network Diagrams and graphic and features | E79: Diagram export and printing functionality with print area definition and print previewing. | F79: Indicate if the solution : - Is an Out-of-the-box functionality - Requires configuration? - Requires customisation? | I79: Very important | J79: =IF(I79='Priority Ratings'!$C$21,'Priority Ratings'!$B$21, IF(I79='Priority Ratings'!$C$22,'Priority Ratings'!$B$22,IF(I79='Priority Ratings'!$C$23,'Priority Ratings'!$B$23,IF(I79='Priority Ratings'!$C$24,'Priority Ratings'!$B$24,IF(I79='Priority Ratings'!$C$25,'Priority Ratings'!$B$25,IF(I79='Priority Ratings'!$C$26,'Priority Ratings'!$B$26,IF(I79='Priority Ratings'!$C$27,'Priority Ratings'!$B$27,"No Rating"))))))) -> 4 | K79: 0.01120448179 | L79: 100%: Fully comply with requirement 50%: Partially comply will require development/ customisation 0%: No compliance | M79: 0 | N79: 0
H81: Totals | J81: =SUM(J9:J79) -> 357 | K81: =SUM(K9:K79) -> 1 | N81: =SUM(N9:N79) -> 0

Sheet PSST-Results and Reporting
A1: Power System Simulation Tool Functional: PSST-Results and Reporting BRS9.1
A2: CORP xxxx Tender | M2: Scoring (Sliding scale)
A3: Tenderer: | M3: 100% - Fully compliant
A4: Evaluated by: | M4: 50%-Partially compliant
M5: 0%-Non compliance
A6: Evaluation Criteria
G7: Vendor Compliance Full Compliance - Y Partial Compliance - P Non Compliance - N | H7: Vendor to indicate any applicable comments based on Compliance | I7: Priority Requirement priority as determined by Eskom | J7: Weight (agreed by evaluation team members) | L7: Score (determined by each evaluation team member during evaluation. Will be averaged for final scores) | M7: Score | O7: Comments (Internal) for scorer
A8: ID | B8: Type | C8: Criterion | D8: Functional Requirement | E8: Requirement description | F8: Evaluation Criterion / Question | G8: Vendor Compliance | H8: Comments | I8: Priority Description | J8: Priority | K8: Weighted Question | L8: Scoring | M8: Answer (0,50,100%) | N8: Weighted Answer
A9: 1 | B9: Meeting the Scope of Work Required | C9: How well has the Tenderer described how scope requirements will be met? Do they understand what needs to be done? List concerns in Comments. | D9: Results outcomes and reporting requirements | E9: Comprehensive text and interactive spreadsheet reports. | F9: Indicate if the solution : - Is an Out-of-the-box functionality - Requires configuration? - Requires customisation? | I9: Very important | J9: =IF(I9='Priority Ratings'!$C$21,'Priority Ratings'!$B$21, IF(I9='Priority Ratings'!$C$22,'Priority Ratings'!$B$22,IF(I9='Priority Ratings'!$C$23,'Priority Ratings'!$B$23,IF(I9='Priority Ratings'!$C$24,'Priority Ratings'!$B$24,IF(I9='Priority Ratings'!$C$25,'Priority Ratings'!$B$25,IF(I9='Priority Ratings'!$C$26,'Priority Ratings'!$B$26,IF(I9='Priority Ratings'!$C$27,'Priority Ratings'!$B$27,"No Rating"))))))) -> 4 | K9: =J9/J$20 -> 0.08510638298 | L9: 100%: Fully comply with requirement 50%: Partially comply will require development/ customisation 0%: No compliance | M9: 0 | N9: =K9*M9 -> 0
A10: 2 | B10: Meeting the Scope of Work Required | C10: How well has the Tenderer described how scope requirements will be met? Do they understand what needs to be done? List concerns in Comments. | D10: Results outcomes and reporting requirements | E10: Ability to export to a spreadsheet, to tabulate result views via configurable and selectable parameter and result outputs. | F10: Indicate if the solution : - Is an Out-of-the-box functionality - Requires configuration? - Requires customisation? | I10: Critical | J10: =IF(I10='Priority Ratings'!$C$21,'Priority Ratings'!$B$21, IF(I10='Priority Ratings'!$C$22,'Priority Ratings'!$B$22,IF(I10='Priority Ratings'!$C$23,'Priority Ratings'!$B$23,IF(I10='Priority Ratings'!$C$24,'Priority Ratings'!$B$24,IF(I10='Priority Ratings'!$C$25,'Priority Ratings'!$B$25,IF(I10='Priority Ratings'!$C$26,'Priority Ratings'!$B$26,IF(I10='Priority Ratings'!$C$27,'Priority Ratings'!$B$27,"No Rating"))))))) -> 5 | K10: 0.1063829787 | L10: 100%: Fully comply with requirement 50%: Partially comply will require development/ customisation 0%: No compliance | M10: 0 | N10: =K10*M10 -> 0
A11: 3 | B11: Meeting the Scope of Work Required | C11: How well has the Tenderer described how scope requirements will be met? Do they understand what needs to be done? List concerns in Comments. | D11: Results outcomes and reporting requirements | E11: Flexible reporting and result visualization on network diagrams. | F11: Indicate if the solution : - Is an Out-of-the-box functionality - Requires configuration? - Requires customisation? | I11: Critical | J11: =IF(I11='Priority Ratings'!$C$21,'Priority Ratings'!$B$21, IF(I11='Priority Ratings'!$C$22,'Priority Ratings'!$B$22,IF(I11='Priority Ratings'!$C$23,'Priority Ratings'!$B$23,IF(I11='Priority Ratings'!$C$24,'Priority Ratings'!$B$24,IF(I11='Priority Ratings'!$C$25,'Priority Ratings'!$B$25,IF(I11='Priority Ratings'!$C$26,'Priority Ratings'!$B$26,IF(I11='Priority Ratings'!$C$27,'Priority Ratings'!$B$27,"No Rating"))))))) -> 5 | K11: 0.1063829787 | L11: 100%: Fully comply with requirement 50%: Partially comply will require development/ customisation 0%: No compliance | M11: 0 | N11: 0
A12: 4 | B12: Meeting the Scope of Work Required | C12: How well has the Tenderer described how scope requirements will be met? Do they understand what needs to be done? List concerns in Comments. | D12: Results outcomes and reporting requirements | E12: Interactive output window with flexible filter functionality. | F12: Indicate if the solution : - Is an Out-of-the-box functionality - Requires configuration? - Requires customisation? | I12: Critical | J12: =IF(I12='Priority Ratings'!$C$21,'Priority Ratings'!$B$21, IF(I12='Priority Ratings'!$C$22,'Priority Ratings'!$B$22,IF(I12='Priority Ratings'!$C$23,'Priority Ratings'!$B$23,IF(I12='Priority Ratings'!$C$24,'Priority Ratings'!$B$24,IF(I12='Priority Ratings'!$C$25,'Priority Ratings'!$B$25,IF(I12='Priority Ratings'!$C$26,'Priority Ratings'!$B$26,IF(I12='Priority Ratings'!$C$27,'Priority Ratings'!$B$27,"No Rating"))))))) -> 5 | K12: 0.1063829787 | L12: 100%: Fully comply with requirement 50%: Partially comply will require development/ customisation 0%: No compliance | M12: 0 | N12: 0
A13: 5 | B13: Meeting the Scope of Work Required | C13: How well has the Tenderer described how scope requirements will be met? Do they understand what needs to be done? List concerns in Comments. | D13: Results outcomes and reporting requirements | E13: Numerous interactive plots for result visualization (differential and time- over current protection, harmonics, stability and transients, eigenvalue analysis, etc.) | F13: Indicate if the solution : - Is an Out-of-the-box functionality - Requires configuration? - Requires customisation? | I13: Critical | J13: =IF(I13='Priority Ratings'!$C$21,'Priority Ratings'!$B$21, IF(I13='Priority Ratings'!$C$22,'Priority Ratings'!$B$22,IF(I13='Priority Ratings'!$C$23,'Priority Ratings'!$B$23,IF(I13='Priority Ratings'!$C$24,'Priority Ratings'!$B$24,IF(I13='Priority Ratings'!$C$25,'Priority Ratings'!$B$25,IF(I13='Priority Ratings'!$C$26,'Priority Ratings'!$B$26,IF(I13='Priority Ratings'!$C$27,'Priority Ratings'!$B$27,"No Rating"))))))) -> 5 | K13: 0.1063829787 | L13: 100%: Fully comply with requirement 50%: Partially comply will require development/ customisation 0%: No compliance | M13: 0 | N13: 0
A14: 6 | B14: Meeting the Scope of Work Required | C14: How well has the Tenderer described how scope requirements will be met? Do they understand what needs to be done? List concerns in Comments. | D14: Results outcomes and reporting requirements | E14: Ability to store results and call upon previous results for comparative analysis. | F14: Indicate if the solution : - Is an Out-of-the-box functionality - Requires configuration? - Requires customisation? | I14: Critical | J14: =IF(I14='Priority Ratings'!$C$21,'Priority Ratings'!$B$21, IF(I14='Priority Ratings'!$C$22,'Priority Ratings'!$B$22,IF(I14='Priority Ratings'!$C$23,'Priority Ratings'!$B$23,IF(I14='Priority Ratings'!$C$24,'Priority Ratings'!$B$24,IF(I14='Priority Ratings'!$C$25,'Priority Ratings'!$B$25,IF(I14='Priority Ratings'!$C$26,'Priority Ratings'!$B$26,IF(I14='Priority Ratings'!$C$27,'Priority Ratings'!$B$27,"No Rating"))))))) -> 5 | K14: 0.1063829787 | L14: 100%: Fully comply with requirement 50%: Partially comply will require development/ customisation 0%: No compliance | M14: 0 | N14: 0
A15: 7 | B15: Meeting the Scope of Work Required | C15: How well has the Tenderer described how scope requirements will be met? Do they understand what needs to be done? List concerns in Comments. | D15: Results outcomes and reporting requirements | E15: Easy-to-use plot navigation (e.g., scaling, zooming, moving/sliding, stretching/compressing, etc.) | F15: Indicate if the solution : - Is an Out-of-the-box functionality - Requires configuration? - Requires customisation? | I15: Critical | J15: =IF(I15='Priority Ratings'!$C$21,'Priority Ratings'!$B$21, IF(I15='Priority Ratings'!$C$22,'Priority Ratings'!$B$22,IF(I15='Priority Ratings'!$C$23,'Priority Ratings'!$B$23,IF(I15='Priority Ratings'!$C$24,'Priority Ratings'!$B$24,IF(I15='Priority Ratings'!$C$25,'Priority Ratings'!$B$25,IF(I15='Priority Ratings'!$C$26,'Priority Ratings'!$B$26,IF(I15='Priority Ratings'!$C$27,'Priority Ratings'!$B$27,"No Rating"))))))) -> 5 | K15: 0.1063829787 | L15: 100%: Fully comply with requirement 50%: Partially comply will require development/ customisation 0%: No compliance | M15: 0 | N15: 0
A16: 8 | B16: Meeting the Scope of Work Required | C16: How well has the Tenderer described how scope requirements will be met? Do they understand what needs to be done? List concerns in Comments. | D16: Results outcomes and reporting requirements | E16: Dynamic colouring by means of results on all functions. | F16: Indicate if the solution : - Is an Out-of-the-box functionality - Requires configuration? - Requires customisation? | I16: Very important | J16: =IF(I16='Priority Ratings'!$C$21,'Priority Ratings'!$B$21, IF(I16='Priority Ratings'!$C$22,'Priority Ratings'!$B$22,IF(I16='Priority Ratings'!$C$23,'Priority Ratings'!$B$23,IF(I16='Priority Ratings'!$C$24,'Priority Ratings'!$B$24,IF(I16='Priority Ratings'!$C$25,'Priority Ratings'!$B$25,IF(I16='Priority Ratings'!$C$26,'Priority Ratings'!$B$26,IF(I16='Priority Ratings'!$C$27,'Priority Ratings'!$B$27,"No Rating"))))))) -> 4 | K16: 0.08510638298 | L16: 100%: Fully comply with requirement 50%: Partially comply will require development/ customisation 0%: No compliance | M16: 0 | N16: 0
A17: 9 | B17: Meeting the Scope of Work Required | C17: How well has the Tenderer described how scope requirements will be met? Do they understand what needs to be done? List concerns in Comments. | D17: Results outcomes and reporting requirements | E17: Intelligent Plots with statistics functionality. | F17: Indicate if the solution : - Is an Out-of-the-box functionality - Requires configuration? - Requires customisation? | I17: Very important | J17: =IF(I17='Priority Ratings'!$C$21,'Priority Ratings'!$B$21, IF(I17='Priority Ratings'!$C$22,'Priority Ratings'!$B$22,IF(I17='Priority Ratings'!$C$23,'Priority Ratings'!$B$23,IF(I17='Priority Ratings'!$C$24,'Priority Ratings'!$B$24,IF(I17='Priority Ratings'!$C$25,'Priority Ratings'!$B$25,IF(I17='Priority Ratings'!$C$26,'Priority Ratings'!$B$26,IF(I17='Priority Ratings'!$C$27,'Priority Ratings'!$B$27,"No Rating"))))))) -> 4 | K17: 0.08510638298 | L17: 100%: Fully comply with requirement 50%: Partially comply will require development/ customisation 0%: No compliance | M17: 0 | N17: 0
A18: 10 | B18: Meeting the Scope of Work Required | C18: How well has the Tenderer described how scope requirements will be met? Do they understand what needs to be done? List concerns in Comments. | D18: Results outcomes and reporting requirements | E18: Output window including icons, colours, tabs and filters for categorization and visualisation. | F18: Indicate if the solution : - Is an Out-of-the-box functionality - Requires configuration? - Requires customisation? | I18: Critical | J18: =IF(I18='Priority Ratings'!$C$21,'Priority Ratings'!$B$21, IF(I18='Priority Ratings'!$C$22,'Priority Ratings'!$B$22,IF(I18='Priority Ratings'!$C$23,'Priority Ratings'!$B$23,IF(I18='Priority Ratings'!$C$24,'Priority Ratings'!$B$24,IF(I18='Priority Ratings'!$C$25,'Priority Ratings'!$B$25,IF(I18='Priority Ratings'!$C$26,'Priority Ratings'!$B$26,IF(I18='Priority Ratings'!$C$27,'Priority Ratings'!$B$27,"No Rating"))))))) -> 5 | K18: 0.1063829787 | L18: 100%: Fully comply with requirement 50%: Partially comply will require development/ customisation 0%: No compliance | M18: 0 | N18: 0
H20: Totals | J20: =SUM(J9:J18) -> 47 | K20: =SUM(K9:K18) -> 1 | N20: =SUM(N9:N18) -> 0

Sheet PSST-Information Exchange
A1: Power System Simulation Tool Functional: PSST-Information Exchange BRS10.1
A2: CORP xxxx Tender | M2: Scoring (Sliding scale)
A3: Tenderer: | M3: 100% - Fully compliant
A4: Evaluated by: | M4: 50%-Partially compliant
M5: 0%-Non compliance
A6: Evaluation Criteria
G7: Vendor Compliance Full Compliance - Y Partial Compliance - P Non Compliance - N | H7: Vendor to indicate any applicable comments based on Compliance | I7: Priority Requirement priority as determined by Eskom | J7: Weight (agreed by evaluation team members) | L7: Score (determined by each evaluation team member during evaluation. Will be averaged for final scores) | M7: Score | O7: Comments (Internal) for scorer
A8: ID | B8: Type | C8: Criterion | D8: Functional Requirement | E8: Requirement description | F8: Evaluation Criterion / Question | G8: Vendor Compliance | H8: Comments | I8: Priority Description | J8: Priority | K8: Weighted Question | L8: Scoring | M8: Answer (0,50,100%) | N8: Weighted Answer
A9: 1 | B9: Meeting the Scope of Work Required | C9: How well has the Tenderer described how scope requirements will be met? Do they understand what needs to be done? List concerns in Comments. | D9: Importing and Exporting Data | E9: Support of various data conversion and interfacing options for bi-directional data exchange. | F9: Indicate if the solution : - Is an Out-of-the-box functionality - Requires configuration? - Requires customisation? | I9: Critical | J9: =IF(I9='Priority Ratings'!$C$21,'Priority Ratings'!$B$21, IF(I9='Priority Ratings'!$C$22,'Priority Ratings'!$B$22,IF(I9='Priority Ratings'!$C$23,'Priority Ratings'!$B$23,IF(I9='Priority Ratings'!$C$24,'Priority Ratings'!$B$24,IF(I9='Priority Ratings'!$C$25,'Priority Ratings'!$B$25,IF(I9='Priority Ratings'!$C$26,'Priority Ratings'!$B$26,IF(I9='Priority Ratings'!$C$27,'Priority Ratings'!$B$27,"No Rating"))))))) -> 5 | K9: =J9/J$20 -> 0.1 | L9: 100%: Fully comply with requirement (Out of the box function with minor re-configuration) 50%: Partially comply, will require major configuration. 0%: No compliance/require development and/or customisation. | M9: 0 | N9: =K9*M9 -> 0
A10: 2 | B10: Meeting the Scope of Work Required | C10: How well has the Tenderer described how scope requirements will be met? Do they understand what needs to be done? List concerns in Comments. | D10: Importing and Exporting Data | E10: Ability to import/export electrical models from other common simulation packages such as (Power Factory, Retic Master, PSSE and other PSSA Tools). | F10: Indicate if the solution : - Is an Out-of-the-box functionality - Requires configuration? - Requires customisation? | I10: Critical | J10: =IF(I10='Priority Ratings'!$C$21,'Priority Ratings'!$B$21, IF(I10='Priority Ratings'!$C$22,'Priority Ratings'!$B$22,IF(I10='Priority Ratings'!$C$23,'Priority Ratings'!$B$23,IF(I10='Priority Ratings'!$C$24,'Priority Ratings'!$B$24,IF(I10='Priority Ratings'!$C$25,'Priority Ratings'!$B$25,IF(I10='Priority Ratings'!$C$26,'Priority Ratings'!$B$26,IF(I10='Priority Ratings'!$C$27,'Priority Ratings'!$B$27,"No Rating"))))))) -> 5 | K10: 0.1 | L10: 100%: Fully comply with requirement (Out of the box function with minor re-configuration) 50%: Partially comply, will require major configuration. 0%: No compliance/require development and/or customisation. | M10: 0 | N10: =K10*M10 -> 0
A11: 3 | B11: Meeting the Scope of Work Required | C11: How well has the Tenderer described how scope requirements will be met? Do they understand what needs to be done? List concerns in Comments. | D11: Importing and Exporting Data | E11: Ability to import/export loading data (24 hour, seasonal and yearly profiles) with the ability to apply scaling factors (24 hour, seasonal and yearly) to those profiles. | F11: Indicate if the solution : - Is an Out-of-the-box functionality - Requires configuration? - Requires customisation? | I11: Critical | J11: =IF(I11='Priority Ratings'!$C$21,'Priority Ratings'!$B$21, IF(I11='Priority Ratings'!$C$22,'Priority Ratings'!$B$22,IF(I11='Priority Ratings'!$C$23,'Priority Ratings'!$B$23,IF(I11='Priority Ratings'!$C$24,'Priority Ratings'!$B$24,IF(I11='Priority Ratings'!$C$25,'Priority Ratings'!$B$25,IF(I11='Priority Ratings'!$C$26,'Priority Ratings'!$B$26,IF(I11='Priority Ratings'!$C$27,'Priority Ratings'!$B$27,"No Rating"))))))) -> 5 | K11: 0.1 | L11: 100%: Fully comply with requirement (Out of the box function with minor re-configuration) 50%: Partially comply, will require major configuration. 0%: No compliance/require development and/or customisation. | M11: 0 | N11: 0
A12: 4 | B12: Meeting the Scope of Work Required | C12: How well has the Tenderer described how scope requirements will be met? Do they understand what needs to be done? List concerns in Comments. | D12: Importing and Exporting Data | E12: Ability to import/export scripts. | F12: Indicate if the solution : - Is an Out-of-the-box functionality - Requires configuration? - Requires customisation? | I12: Show stopper | J12: =IF(I12='Priority Ratings'!$C$21,'Priority Ratings'!$B$21, IF(I12='Priority Ratings'!$C$22,'Priority Ratings'!$B$22,IF(I12='Priority Ratings'!$C$23,'Priority Ratings'!$B$23,IF(I12='Priority Ratings'!$C$24,'Priority Ratings'!$B$24,IF(I12='Priority Ratings'!$C$25,'Priority Ratings'!$B$25,IF(I12='Priority Ratings'!$C$26,'Priority Ratings'!$B$26,IF(I12='Priority Ratings'!$C$27,'Priority Ratings'!$B$27,"No Rating"))))))) -> 6 | K12: 0.12 | L12: 100%: Fully comply with requirement (Out of the box function with minor re-configuration) 50%: Partially comply, will require major configuration. 0%: No compliance/require development and/or customisation. | M12: 0 | N12: 0
A13: 5 | B13: Meeting the Scope of Work Required | C13: How well has the Tenderer described how scope requirements will be met? Do they understand what needs to be done? List concerns in Comments. | D13: Importing and Exporting Data | E13: Ability to import/export user settings and project settings. | F13: Indicate if the solution : - Is an Out-of-the-box functionality - Requires configuration? - Requires customisation? | I13: Very important | J13: =IF(I13='Priority Ratings'!$C$21,'Priority Ratings'!$B$21, IF(I13='Priority Ratings'!$C$22,'Priority Ratings'!$B$22,IF(I13='Priority Ratings'!$C$23,'Priority Ratings'!$B$23,IF(I13='Priority Ratings'!$C$24,'Priority Ratings'!$B$24,IF(I13='Priority Ratings'!$C$25,'Priority Ratings'!$B$25,IF(I13='Priority Ratings'!$C$26,'Priority Ratings'!$B$26,IF(I13='Priority Ratings'!$C$27,'Priority Ratings'!$B$27,"No Rating"))))))) -> 4 | K13: 0.08 | L13: 100%: Fully comply with requirement (Out of the box function with minor re-configuration) 50%: Partially comply, will require major configuration. 0%: No compliance/require development and/or customisation. | M13: 0 | N13: 0
A14: 6 | B14: Meeting the Scope of Work Required | C14: How well has the Tenderer described how scope requirements will be met? Do they understand what needs to be done? List concerns in Comments. | D14: Importing and Exporting Data | E14: Ability to import/export controller models. | F14: Indicate if the solution : - Is an Out-of-the-box functionality - Requires configuration? - Requires customisation? | I14: Critical | J14: =IF(I14='Priority Ratings'!$C$21,'Priority Ratings'!$B$21, IF(I14='Priority Ratings'!$C$22,'Priority Ratings'!$B$22,IF(I14='Priority Ratings'!$C$23,'Priority Ratings'!$B$23,IF(I14='Priority Ratings'!$C$24,'Priority Ratings'!$B$24,IF(I14='Priority Ratings'!$C$25,'Priority Ratings'!$B$25,IF(I14='Priority Ratings'!$C$26,'Priority Ratings'!$B$26,IF(I14='Priority Ratings'!$C$27,'Priority Ratings'!$B$27,"No Rating"))))))) -> 5 | K14: 0.1 | L14: 100%: Fully comply with requirement (Out of the box function with minor re-configuration) 50%: Partially comply, will require major configuration. 0%: No compliance/require development and/or customisation. | M14: 0 | N14: 0
A15: 7 | B15: Meeting the Scope of Work Required | C15: How well has the Tenderer described how scope requirements will be met? Do they understand what needs to be done? List concerns in Comments. | D15: Importing and Exporting Data | E15: Ability to import/export models and data from database and spreadsheets sources. | F15: Indicate if the solution : - Is an Out-of-the-box functionality - Requires configuration? - Requires customisation? | I15: Critical | J15: =IF(I15='Priority Ratings'!$C$21,'Priority Ratings'!$B$21, IF(I15='Priority Ratings'!$C$22,'Priority Ratings'!$B$22,IF(I15='Priority Ratings'!$C$23,'Priority Ratings'!$B$23,IF(I15='Priority Ratings'!$C$24,'Priority Ratings'!$B$24,IF(I15='Priority Ratings'!$C$25,'Priority Ratings'!$B$25,IF(I15='Priority Ratings'!$C$26,'Priority Ratings'!$B$26,IF(I15='Priority Ratings'!$C$27,'Priority Ratings'!$B$27,"No Rating"))))))) -> 5 | K15: 0.1 | L15: 100%: Fully comply with requirement (Out of the box function with minor re-configuration) 50%: Partially comply, will require major configuration. 0%: No compliance/require development and/or customisation. | M15: 0 | N15: 0
A16: 8 | B16: Meeting the Scope of Work Required | C16: How well has the Tenderer described how scope requirements will be met? Do they understand what needs to be done? List concerns in Comments. | D16: Importing and Exporting Data | E16: Ability import/export electrical models via database methods such as .csv, access database, xml etc. | F16: Indicate if the solution : - Is an Out-of-the-box functionality - Requires configuration? - Requires customisation? | I16: Critical | J16: =IF(I16='Priority Ratings'!$C$21,'Priority Ratings'!$B$21, IF(I16='Priority Ratings'!$C$22,'Priority Ratings'!$B$22,IF(I16='Priority Ratings'!$C$23,'Priority Ratings'!$B$23,IF(I16='Priority Ratings'!$C$24,'Priority Ratings'!$B$24,IF(I16='Priority Ratings'!$C$25,'Priority Ratings'!$B$25,IF(I16='Priority Ratings'!$C$26,'Priority Ratings'!$B$26,IF(I16='Priority Ratings'!$C$27,'Priority Ratings'!$B$27,"No Rating"))))))) -> 5 | K16: 0.1 | L16: 100%: Fully comply with requirement (Out of the box function with minor re-configuration) 50%: Partially comply, will require major configuration. 0%: No compliance/require development and/or customisation. | M16: 0 | N16: 0
A17: 9 | B17: Meeting the Scope of Work Required | C17: How well has the Tenderer described how scope requirements will be met? Do they understand what needs to be done? List concerns in Comments. | D17: Importing and Exporting Data | E17: Ability to import/export electrical models via Common Information Model (CIM) | F17: Indicate if the solution : - Is an Out-of-the-box functionality - Requires configuration? - Requires customisation? | I17: Critical | J17: =IF(I17='Priority Ratings'!$C$21,'Priority Ratings'!$B$21, IF(I17='Priority Ratings'!$C$22,'Priority Ratings'!$B$22,IF(I17='Priority Ratings'!$C$23,'Priority Ratings'!$B$23,IF(I17='Priority Ratings'!$C$24,'Priority Ratings'!$B$24,IF(I17='Priority Ratings'!$C$25,'Priority Ratings'!$B$25,IF(I17='Priority Ratings'!$C$26,'Priority Ratings'!$B$26,IF(I17='Priority Ratings'!$C$27,'Priority Ratings'!$B$27,"No Rating"))))))) -> 5 | K17: 0.1 | L17: 100%: Fully comply with requirement (Out of the box function with minor re-configuration) 50%: Partially comply, will require major configuration. 0%: No compliance/require development and/or customisation. | M17: 0 | N17: 0
A18: 10 | B18: Meeting the Scope of Work Required | C18: How well has the Tenderer described how scope requirements will be met? Do they understand what needs to be done? List concerns in Comments. | D18: Importing and Exporting Data | E18: Various interfaces for communication and data exchange with third-party systems. | F18: Indicate if the solution : - Is an Out-of-the-box functionality - Requires configuration? - Requires customisation? | I18: Critical | J18: =IF(I18='Priority Ratings'!$C$21,'Priority Ratings'!$B$21, IF(I18='Priority Ratings'!$C$22,'Priority Ratings'!$B$22,IF(I18='Priority Ratings'!$C$23,'Priority Ratings'!$B$23,IF(I18='Priority Ratings'!$C$24,'Priority Ratings'!$B$24,IF(I18='Priority Ratings'!$C$25,'Priority Ratings'!$B$25,IF(I18='Priority Ratings'!$C$26,'Priority Ratings'!$B$26,IF(I18='Priority Ratings'!$C$27,'Priority Ratings'!$B$27,"No Rating"))))))) -> 5 | K18: 0.1 | L18: 100%: Fully comply with requirement (Out of the box function with minor re-configuration) 50%: Partially comply, will require major configuration. 0%: No compliance/require development and/or customisation. | M18: 0 | N18: 0
H20: Totals | J20: =SUM(J9:J18) -> 50 | K20: =SUM(K9:K18) -> 1 | N20: =SUM(N9:N18) -> 0

Sheet PSST-Self help &Technical Ref
A1: Power System Simulation Tool Functional: PSST-Self-help and Technical References BRS11.1
A2: CORP xxxx Tender | M2: Scoring (Sliding scale)
A3: Tenderer: | M3: 100% - Fully compliant
A4: Evaluated by: | M4: 50%-Partially compliant
M5: 0%-Non compliance
A6: Evaluation Criteria
G7: Vendor Compliance Full Compliance - Y Partial Compliance - P Non Compliance - N | H7: Vendor to indicate any applicable comments based on Compliance | I7: Priority Requirement priority as determined by Eskom | J7: Weight (agreed by evaluation team members) | L7: Score (determined by each evaluation team member during evaluation. Will be averaged for final scores) | M7: Score | O7: Comments (Internal) for scorer
A8: ID | B8: Type | C8: Criterion | D8: Functional Requirement | E8: Requirement description | F8: Evaluation Criterion / Question | G8: Vendor Compliance | H8: Comments | I8: Priority Description | J8: Priority | K8: Weighted Question | L8: Scoring | M8: Answer (0,50,100%) | N8: Weighted Answer
A9: 1 | B9: Meeting the Scope of Work Required | C9: How well has the Tenderer described how scope requirements will be met? Do they understand what needs to be done? List concerns in Comments. | D9: General Software Information | E9: Comprehensive examples including linked demo videos. | F9: Indicate if the solution : - Is an Out-of-the-box functionality - Requires configuration? - Requires customisation? | I9: Very important | J9: =IF(I9='Priority Ratings'!$C$21,'Priority Ratings'!$B$21, IF(I9='Priority Ratings'!$C$22,'Priority Ratings'!$B$22,IF(I9='Priority Ratings'!$C$23,'Priority Ratings'!$B$23,IF(I9='Priority Ratings'!$C$24,'Priority Ratings'!$B$24,IF(I9='Priority Ratings'!$C$25,'Priority Ratings'!$B$25,IF(I9='Priority Ratings'!$C$26,'Priority Ratings'!$B$26,IF(I9='Priority Ratings'!$C$27,'Priority Ratings'!$B$27,"No Rating"))))))) -> 4 | K9: =J9/J$13 -> 0.2666666667 | L9: 100%: Fully comply with requirement (Out of the box function with minor re-configuration) 50%: Partially comply, will require major configuration. 0%: No compliance/require development and/or customisation. | M9: 0 | N9: =K9*M9 -> 0
A10: 2 | B10: Meeting the Scope of Work Required | C10: How well has the Tenderer described how scope requirements will be met? Do they understand what needs to be done? List concerns in Comments. | D10: General Software Information | E10: Complete, comprehensive, and well-structured User Manual with the following requirements: - Overview of functions - Examples of use - Troubleshooting - Overview of models and examples Description of each menu and object parameters. | F10: Indicate if the solution : - Is an Out-of-the-box functionality - Requires configuration? - Requires customisation? | I10: Critical | J10: =IF(I10='Priority Ratings'!$C$21,'Priority Ratings'!$B$21, IF(I10='Priority Ratings'!$C$22,'Priority Ratings'!$B$22,IF(I10='Priority Ratings'!$C$23,'Priority Ratings'!$B$23,IF(I10='Priority Ratings'!$C$24,'Priority Ratings'!$B$24,IF(I10='Priority Ratings'!$C$25,'Priority Ratings'!$B$25,IF(I10='Priority Ratings'!$C$26,'Priority Ratings'!$B$26,IF(I10='Priority Ratings'!$C$27,'Priority Ratings'!$B$27,"No Rating"))))))) -> 5 | K10: =J10/J$13 -> 0.3333333333 | L10: 100%: Fully comply with requirement (Out of the box function with minor re-configuration) 50%: Partially comply, will require major configuration. 0%: No compliance/require development and/or customisation. | M10: 0 | N10: =K10*M10 -> 0
A11: 3 | B11: Meeting the Scope of Work Required | C11: How well has the Tenderer described how scope requirements will be met? Do they understand what needs to be done? List concerns in Comments. | D11: General Software Information | E11: Detailed Technical References for all Power Equipment models. | F11: Indicate if the solution : - Is an Out-of-the-box functionality - Requires configuration? - Requires customisation? | I11: Show stopper | J11: =IF(I11='Priority Ratings'!$C$21,'Priority Ratings'!$B$21, IF(I11='Priority Ratings'!$C$22,'Priority Ratings'!$B$22,IF(I11='Priority Ratings'!$C$23,'Priority Ratings'!$B$23,IF(I11='Priority Ratings'!$C$24,'Priority Ratings'!$B$24,IF(I11='Priority Ratings'!$C$25,'Priority Ratings'!$B$25,IF(I11='Priority Ratings'!$C$26,'Priority Ratings'!$B$26,IF(I11='Priority Ratings'!$C$27,'Priority Ratings'!$B$27,"No Rating"))))))) -> 6 | K11: =J11/J$13 -> 0.4 | L11: 100%: Fully comply with requirement (Out of the box function with minor re-configuration) 50%: Partially comply, will require major configuration. 0%: No compliance/require development and/or customisation. | M11: 0 | N11: 0
H13: Totals | J13: =SUM(J9:J11) -> 15 | K13: =SUM(K9:K11) -> 1 | N13: =SUM(N9:N11) -> 0

Sheet PSST-Protection Functions & Ana
A1: Power System Simulation Tool Functional: PSST-Protection Functions & Analysis BRS14.1 BRS15.1 BRS16.1 BRS17.1
A2: CORP xxxx Tender | M2: Scoring (Sliding scale)
A3: Tenderer: | M3: 100% - Fully compliant
A4: Evaluated by: | M4: 50%-Partially compliant
M5: 0%-Non compliance
A6: Evaluation Criteria
G7: Vendor Compliance Full Compliance - Y Partial Compliance - P Non Compliance - N | H7: Vendor to indicate any applicable comments based on Compliance | I7: Priority Requirement priority as determined by Eskom | J7: Weight (agreed by evaluation team members) | L7: Score (determined by each evaluation team member during evaluation. Will be averaged for final scores) | M7: Score | O7: Comments (Internal) for scorer
A8: ID | B8: Type | C8: Criterion | D8: Functional Requirement | E8: Requirement description | F8: Evaluation Criterion / Question | G8: Vendor Compliance | H8: Comments | I8: Priority Description | J8: Priority | K8: Weighted Question | L8: Scoring | M8: Answer (0,50,100%) | N8: Weighted Answer
A9: 1 | B9: Meeting the Scope of Work Required | C9: How well has the Tenderer described how scope requirements will be met? Do they understand what needs to be done? List concerns in Comments. | D9: Protection Functions | E9: Comprehensive relay library with relay models suitable for steady-state, RMS and EMT calculations | F9: Indicate if the solution : - Is an Out-of-the-box functionality - Requires configuration? - Requires customisation? | I9: Show stopper | J9: =IF(I9='Priority Ratings'!$C$21,'Priority Ratings'!$B$21, IF(I9='Priority Ratings'!$C$22,'Priority Ratings'!$B$22,IF(I9='Priority Ratings'!$C$23,'Priority Ratings'!$B$23,IF(I9='Priority Ratings'!$C$24,'Priority Ratings'!$B$24,IF(I9='Priority Ratings'!$C$25,'Priority Ratings'!$B$25,IF(I9='Priority Ratings'!$C$26,'Priority Ratings'!$B$26,IF(I9='Priority Ratings'!$C$27,'Priority Ratings'!$B$27,"No Rating"))))))) -> 6 | K9: =J9/J$41 -> 0.03488372093 | L9: 100%: Fully comply with requirement (Out of the box function with minor re-configuration) 50%: Partially comply, will require major configuration. 0%: No compliance/require development and/or customisation. | M9: 0 | N9: =K9*M9 -> 0
A10: 2 | B10: Meeting the Scope of Work Required | C10: How well has the Tenderer described how scope requirements will be met? Do they understand what needs to be done? List concerns in Comments. | D10: Protection Functions | E10: Synchronisation with Protection Database Tools such as PSMT. Highly detailed spreadsheet reports for protection settings (overcurrent, distance, voltage, frequency protection) | F10: Indicate if the solution : - Is an Out-of-the-box functionality - Requires configuration? - Requires customisation? | I10: Show stopper | J10: =IF(I10='Priority Ratings'!$C$21,'Priority Ratings'!$B$21, IF(I10='Priority Ratings'!$C$22,'Priority Ratings'!$B$22,IF(I10='Priority Ratings'!$C$23,'Priority Ratings'!$B$23,IF(I10='Priority Ratings'!$C$24,'Priority Ratings'!$B$24,IF(I10='Priority Ratings'!$C$25,'Priority Ratings'!$B$25,IF(I10='Priority Ratings'!$C$26,'Priority Ratings'!$B$26,IF(I10='Priority Ratings'!$C$27,'Priority Ratings'!$B$27,"No Rating"))))))) -> 6 | K10: 0.03488372093 | L10: 100%: Fully comply with requirement (Out of the box function with minor re-configuration) 50%: Partially comply, will require major configuration. 0%: No compliance/require development and/or customisation. | M10: 0 | N10: =K10*M10 -> 0
A11: 3 | B11: Meeting the Scope of Work Required | C11: How well has the Tenderer described how scope requirements will be met? Do they understand what needs to be done? List concerns in Comments. | D11: Protection Functions | E11: Graphical visualisation and editing of fuses, relays, CTs and VTs including auto layout functionality | F11: Indicate if the solution : - Is an Out-of-the-box functionality - Requires configuration? - Requires customisation? | I11: Very important | J11: =IF(I11='Priority Ratings'!$C$21,'Priority Ratings'!$B$21, IF(I11='Priority Ratings'!$C$22,'Priority Ratings'!$B$22,IF(I11='Priority Ratings'!$C$23,'Priority Ratings'!$B$23,IF(I11='Priority Ratings'!$C$24,'Priority Ratings'!$B$24,IF(I11='Priority Ratings'!$C$25,'Priority Ratings'!$B$25,IF(I11='Priority Ratings'!$C$26,'Priority Ratings'!$B$26,IF(I11='Priority Ratings'!$C$27,'Priority Ratings'!$B$27,"No Rating"))))))) -> 4 | K11: 0.02325581395 | L11: 100%: Fully comply with requirement (Out of the box function with minor re-configuration) 50%: Partially comply, will require major configuration. 0%: No compliance/require development and/or customisation. | M11: 0 | N11: 0
A12: 4 | B12: Meeting the Scope of Work Required | C12: How well has the Tenderer described how scope requirements will be met? Do they understand what needs to be done? List concerns in Comments. | D12: Protection Functions | E12: Protection Audit | F12: Indicate if the solution : - Is an Out-of-the-box functionality - Requires configuration? - Requires customisation? | I12: Show stopper | J12: =IF(I12='Priority Ratings'!$C$21,'Priority Ratings'!$B$21, IF(I12='Priority Ratings'!$C$22,'Priority Ratings'!$B$22,IF(I12='Priority Ratings'!$C$23,'Priority Ratings'!$B$23,IF(I12='Priority Ratings'!$C$24,'Priority Ratings'!$B$24,IF(I12='Priority Ratings'!$C$25,'Priority Ratings'!$B$25,IF(I12='Priority Ratings'!$C$26,'Priority Ratings'!$B$26,IF(I12='Priority Ratings'!$C$27,'Priority Ratings'!$B$27,"No Rating"))))))) -> 6 | K12: 0.03488372093 | L12: 100%: Fully comply with requirement (Out of the box function with minor re-configuration) 50%: Partially comply, will require major configuration. 0%: No compliance/require development and/or customisation. | M12: 0 | N12: 0
A13: 5 | B13: Meeting the Scope of Work Required | C13: How well has the Tenderer described how scope requirements will be met? Do they understand what needs to be done? List concerns in Comments. | D13: Protection Functions | E13: Validation tool for protection settings and configurations | F13: Indicate if the solution : - Is an Out-of-the-box functionality - Requires configuration? - Requires customisation? | I13: Show stopper | J13: =IF(I13='Priority Ratings'!$C$21,'Priority Ratings'!$B$21, IF(I13='Priority Ratings'!$C$22,'Priority Ratings'!$B$22,IF(I13='Priority Ratings'!$C$23,'Priority Ratings'!$B$23,IF(I13='Priority Ratings'!$C$24,'Priority Ratings'!$B$24,IF(I13='Priority Ratings'!$C$25,'Priority Ratings'!$B$25,IF(I13='Priority Ratings'!$C$26,'Priority Ratings'!$B$26,IF(I13='Priority Ratings'!$C$27,'Priority Ratings'!$B$27,"No Rating"))))))) -> 6 | K13: 0.03488372093 | L13: 100%: Fully comply with requirement (Out of the box function with minor re-configuration) 50%: Partially comply, will require major configuration. 0%: No compliance/require development and/or customisation. | M13: 0 | N13: 0
A14: 6 | B14: Meeting the Scope of Work Required | C14: How well has the Tenderer described how scope requirements will be met? Do they understand what needs to be done? List concerns in Comments. | D14: Protection Functions | E14: Automatic determination of protection topology | F14: Indicate if the solution : - Is an Out-of-the-box functionality - Requires configuration? - Requires customisation? | I14: Very important | J14: =IF(I14='Priority Ratings'!$C$21,'Priority Ratings'!$B$21, IF(I14='Priority Ratings'!$C$22,'Priority Ratings'!$B$22,IF(I14='Priority Ratings'!$C$23,'Priority Ratings'!$B$23,IF(I14='Priority Ratings'!$C$24,'Priority Ratings'!$B$24,IF(I14='Priority Ratings'!$C$25,'Priority Ratings'!$B$25,IF(I14='Priority Ratings'!$C$26,'Priority Ratings'!$B$26,IF(I14='Priority Ratings'!$C$27,'Priority Ratings'!$B$27,"No Rating"))))))) -> 4 | K14: 0.02325581395 | L14: 100%: Fully comply with requirement (Out of the box function with minor re-configuration) 50%: Partially comply, will require major configuration. 0%: No compliance/require development and/or customisation. | M14: 0 | N14: 0
A15: 7 | B15: Meeting the Scope of Work Required | C15: How well has the Tenderer described how scope requirements will be met? Do they understand what needs to be done? List concerns in Comments. | D15: Protection Functions | E15: Automatic short-circuit calculation | F15: Indicate if the solution : - Is an Out-of-the-box functionality - Requires configuration? - Requires customisation? | I15: Critical | J15: =IF(I15='Priority Ratings'!$C$21,'Priority Ratings'!$B$21, IF(I15='Priority Ratings'!$C$22,'Priority Ratings'!$B$22,IF(I15='Priority Ratings'!$C$23,'Priority Ratings'!$B$23,IF(I15='Priority Ratings'!$C$24,'Priority Ratings'!$B$24,IF(I15='Priority Ratings'!$C$25,'Priority Ratings'!$B$25,IF(I15='Priority Ratings'!$C$26,'Priority Ratings'!$B$26,IF(I15='Priority Ratings'!$C$27,'Priority Ratings'!$B$27,"No Rating"))))))) -> 5 | K15: 0.02906976744 | L15: 100%: Fully comply with requirement (Out of the box function with minor re-configuration) 50%: Partially comply, will require major configuration. 0%: No compliance/require development and/or customisation. | M15: 0 | N15: 0
A16: 8 | B16: Meeting the Scope of Work Required | C16: How well has the Tenderer described how scope requirements will be met? Do they understand what needs to be done? List concerns in Comments. | D16: Protection Functions | E16: Provision for multiple fault location short circuit calculation | F16: Indicate if the solution : - Is an Out-of-the-box functionality - Requires configuration? - Requires customisation? | I16: Show stopper | J16: =IF(I16='Priority Ratings'!$C$21,'Priority Ratings'!$B$21, IF(I16='Priority Ratings'!$C$22,'Priority Ratings'!$B$22,IF(I16='Priority Ratings'!$C$23,'Priority Ratings'!$B$23,IF(I16='Priority Ratings'!$C$24,'Priority Ratings'!$B$24,IF(I16='Priority Ratings'!$C$25,'Priority Ratings'!$B$25,IF(I16='Priority Ratings'!$C$26,'Priority Ratings'!$B$26,IF(I16='Priority Ratings'!$C$27,'Priority Ratings'!$B$27,"No Rating"))))))) -> 6 | K16: 0.03488372093 | L16: 100%: Fully comply with requirement (Out of the box function with minor re-configuration) 50%: Partially comply, will require major configuration. 0%: No compliance/require development and/or customisation. | M16: 0 | N16: 0
A17: 9 | B17: Meeting the Scope of Work Required | C17: How well has the Tenderer described how scope requirements will be met? Do they understand what needs to be done? List concerns in Comments. | D17: Protection Functions | E17: Multiple predefined reports with auto-identification of critical protection | F17: Indicate if the solution : - Is an Out-of-the-box functionality - Requires configuration? - Requires customisation? | I17: Critical | J17: =IF(I17='Priority Ratings'!$C$21,'Priority Ratings'!$B$21, IF(I17='Priority Ratings'!$C$22,'Priority Ratings'!$B$22,IF(I17='Priority Ratings'!$C$23,'Priority Ratings'!$B$23,IF(I17='Priority Ratings'!$C$24,'Priority Ratings'!$B$24,IF(I17='Priority Ratings'!$C$25,'Priority Ratings'!$B$25,IF(I17='Priority Ratings'!$C$26,'Priority Ratings'!$B$26,IF(I17='Priority Ratings'!$C$27,'Priority Ratings'!$B$27,"No Rating"))))))) -> 5 | K17: 0.02906976744 | L17: 100%: Fully comply with requirement (Out of the box function with minor re-configuration) 50%: Partially comply, will require major configuration. 0%: No compliance/require development and/or customisation. | M17: 0 | N17: 0
A18: 10 | B18: Meeting the Scope of Work Required | C18: How well has the Tenderer described how scope requirements will be met? Do they understand what needs to be done? List concerns in Comments. | D18: Protection Functions | E18: settings (device coordination, device tripping times, fault clearing times) | F18: Indicate if the solution : - Is an Out-of-the-box functionality - Requires configuration? - Requires customisation? | I18: Show stopper | J18: =IF(I18='Priority Ratings'!$C$21,'Priority Ratings'!$B$21, IF(I18='Priority Ratings'!$C$22,'Priority Ratings'!$B$22,IF(I18='Priority Ratings'!$C$23,'Priority Ratings'!$B$23,IF(I18='Priority Ratings'!$C$24,'Priority Ratings'!$B$24,IF(I18='Priority Ratings'!$C$25,'Priority Ratings'!$B$25,IF(I18='Priority Ratings'!$C$26,'Priority Ratings'!$B$26,IF(I18='Priority Ratings'!$C$27,'Priority Ratings'!$B$27,"No Rating"))))))) -> 6 | K18: 0.03488372093 | L18: 100%: Fully comply with requirement (Out of the box function with minor re-configuration) 50%: Partially comply, will require major configuration. 0%: No compliance/require development and/or customisation. | M18: 0 | N18: 0
A19: 11 | B19: Meeting the Scope of Work Required | C19: How well has the Tenderer described how scope requirements will be met? Do they understand what needs to be done? List concerns in Comments. | D19: Protection Functions | E19: Short-Circuit Trace functionality for steady-state simulation of fault clearance and relay responses | F19: Indicate if the solution : - Is an Out-of-the-box functionality - Requires configuration? - Requires customisation? | I19: Show stopper | J19: =IF(I19='Priority Ratings'!$C$21,'Priority Ratings'!$B$21, IF(I19='Priority Ratings'!$C$22,'Priority Ratings'!$B$22,IF(I19='Priority Ratings'!$C$23,'Priority Ratings'!$B$23,IF(I19='Priority Ratings'!$C$24,'Priority Ratings'!$B$24,IF(I19='Priority Ratings'!$C$25,'Priority Ratings'!$B$25,IF(I19='Priority Ratings'!$C$26,'Priority Ratings'!$B$26,IF(I19='Priority Ratings'!$C$27,'Priority Ratings'!$B$27,"No Rating"))))))) -> 6 | K19: 0.03488372093 | L19: 100%: Fully comply with requirement (Out of the box function with minor re-configuration) 50%: Partially comply, will require major configuration. 0%: No compliance/require development and/or customisation. | M19: 0 | N19: 0
A20: 12 | B20: Meeting the Scope of Work Required | C20: How well has the Tenderer described how scope requirements will be met? Do they understand what needs to be done? List concerns in Comments. | D20: Time Overcurrent Protection | E20: Overcurrent-time diagram with drag & drop functionality including autogenerated graphical legend | F20: Indicate if the solution : - Is an Out-of-the-box functionality - Requires configuration? - Requires customisation? | I20: Show stopper | J20: =IF(I20='Priority Ratings'!$C$21,'Priority Ratings'!$B$21, IF(I20='Priority Ratings'!$C$22,'Priority Ratings'!$B$22,IF(I20='Priority Ratings'!$C$23,'Priority Ratings'!$B$23,IF(I20='Priority Ratings'!$C$24,'Priority Ratings'!$B$24,IF(I20='Priority Ratings'!$C$25,'Priority Ratings'!$B$25,IF(I20='Priority Ratings'!$C$26,'Priority Ratings'!$B$26,IF(I20='Priority Ratings'!$C$27,'Priority Ratings'!$B$27,"No Rating"))))))) -> 6 | K20: 0.03488372093 | L20: 100%: Fully comply with requirement (Out of the box function with minor re-configuration) 50%: Partially comply, will require major configuration. 0%: No compliance/require development and/or customisation. | M20: 0 | N20: 0
A21: 13 | B21: Meeting the Scope of Work Required | C21: How well has the Tenderer described how scope requirements will be met? Do they understand what needs to be done? List concerns in Comments. | D21: Time Overcurrent Protection | E21: Cable and transformer damage curves | F21: Indicate if the solution : - Is an Out-of-the-box functionality - Requires configuration? - Requires customisation? | I21: Critical | J21: =IF(I21='Priority Ratings'!$C$21,'Priority Ratings'!$B$21, IF(I21='Priority Ratings'!$C$22,'Priority Ratings'!$B$22,IF(I21='Priority Ratings'!$C$23,'Priority Ratings'!$B$23,IF(I21='Priority Ratings'!$C$24,'Priority Ratings'!$B$24,IF(I21='Priority Ratings'!$C$25,'Priority Ratings'!$B$25,IF(I21='Priority Ratings'!$C$26,'Priority Ratings'!$B$26,IF(I21='Priority Ratings'!$C$27,'Priority Ratings'!$B$27,"No Rating"))))))) -> 5 | K21: 0.02906976744 | L21: 100%: Fully comply with requirement (Out of the box function with minor re-configuration) 50%: Partially comply, will require major configuration. 0%: No compliance/require development and/or customisation. | M21: 0 | N21: 0
A22: 14 | B22: Meeting the Scope of Work Required | C22: How well has the Tenderer described how scope requirements will be met? Do they understand what needs to be done? List concerns in Comments. | D22: Time Overcurrent Protection | E22: Motor starting curves | F22: Indicate if the solution : - Is an Out-of-the-box functionality - Requires configuration? - Requires customisation? | I22: Show stopper | J22: =IF(I22='Priority Ratings'!$C$21,'Priority Ratings'!$B$21, IF(I22='Priority Ratings'!$C$22,'Priority Ratings'!$B$22,IF(I22='Priority Ratings'!$C$23,'Priority Ratings'!$B$23,IF(I22='Priority Ratings'!$C$24,'Priority Ratings'!$B$24,IF(I22='Priority Ratings'!$C$25,'Priority Ratings'!$B$25,IF(I22='Priority Ratings'!$C$26,'Priority Ratings'!$B$26,IF(I22='Priority Ratings'!$C$27,'Priority Ratings'!$B$27,"No Rating"))))))) -> 6 | K22: 0.03488372093 | L22: 100%: Fully comply with requirement (Out of the box function with minor re-configuration) 50%: Partially comply, will require major configuration. 0%: No compliance/require development and/or customisation. | M22: 0 | N22: 0
A23: 15 | B23: Meeting the Scope of Work Required | C23: How well has the Tenderer described how scope requirements will be met? Do they understand what needs to be done? List concerns in Comments. | D23: Time Overcurrent Protection | E23: Automatic display of measured currents | F23: Indicate if the solution : - Is an Out-of-the-box functionality - Requires configuration? - Requires customisation? | I23: Show stopper | J23: =IF(I23='Priority Ratings'!$C$21,'Priority Ratings'!$B$21, IF(I23='Priority Ratings'!$C$22,'Priority Ratings'!$B$22,IF(I23='Priority Ratings'!$C$23,'Priority Ratings'!$B$23,IF(I23='Priority Ratings'!$C$24,'Priority Ratings'!$B$24,IF(I23='Priority Ratings'!$C$25,'Priority Ratings'!$B$25,IF(I23='Priority Ratings'!$C$26,'Priority Ratings'!$B$26,IF(I23='Priority Ratings'!$C$27,'Priority Ratings'!$B$27,"No Rating"))))))) -> 6 | K23: 0.03488372093 | L23: 100%: Fully comply with requirement (Out of the box function with minor re-configuration) 50%: Partially comply, will require major configuration. 0%: No compliance/require development and/or customisation. | M23: 0 | N23: 0
A24: 16 | B24: Meeting the Scope of Work Required | C24: How well has the Tenderer described how scope requirements will be met? Do they understand what needs to be done? List concerns in Comments. | D24: Time Overcurrent Protection | E24: Steady-state response validation | F24: Indicate if the solution : - Is an Out-of-the-box functionality - Requires configuration? - Requires customisation? | I24: Very important | J24: =IF(I24='Priority Ratings'!$C$21,'Priority Ratings'!$B$21, IF(I24='Priority Ratings'!$C$22,'Priority Ratings'!$B$22,IF(I24='Priority Ratings'!$C$23,'Priority Ratings'!$B$23,IF(I24='Priority Ratings'!$C$24,'Priority Ratings'!$B$24,IF(I24='Priority Ratings'!$C$25,'Priority Ratings'!$B$25,IF(I24='Priority Ratings'!$C$26,'Priority Ratings'!$B$26,IF(I24='Priority Ratings'!$C$27,'Priority Ratings'!$B$27,"No Rating"))))))) -> 4 | K24: 0.02325581395 | L24: 100%: Fully comply with requirement (Out of the box function with minor re-configuration) 50%: Partially comply, will require major configuration. 0%: No compliance/require development and/or customisation. | M24: 0 | N24: 0
A25: 17 | B25: Meeting the Scope of Work Required | C25: How well has the Tenderer described how scope requirements will be met? Do they understand what needs to be done? List concerns in Comments. | D25: Time Overcurrent Protection | E25: Steady state short-circuit simulation with tracing of individual steps | F25: Indicate if the solution : - Is an Out-of-the-box functionality - Requires configuration? - Requires customisation? | I25: Critical | J25: =IF(I25='Priority Ratings'!$C$21,'Priority Ratings'!$B$21, IF(I25='Priority Ratings'!$C$22,'Priority Ratings'!$B$22,IF(I25='Priority Ratings'!$C$23,'Priority Ratings'!$B$23,IF(I25='Priority Ratings'!$C$24,'Priority Ratings'!$B$24,IF(I25='Priority Ratings'!$C$25,'Priority Ratings'!$B$25,IF(I25='Priority Ratings'!$C$26,'Priority Ratings'!$B$26,IF(I25='Priority Ratings'!$C$27,'Priority Ratings'!$B$27,"No Rating"))))))) -> 5 | K25: 0.02906976744 | L25: 100%: Fully comply with requirement (Out of the box function with minor re-configuration) 50%: Partially comply, will require major configuration. 0%: No compliance/require development and/or customisation. | M25: 0 | N25: 0
A26: 18 | B26: Meeting the Scope of Work Required | C26: How well has the Tenderer described how scope requirements will be met? Do they understand what needs to be done? List concerns in Comments. | D26: Time Overcurrent Protection | E26: Steady-state tripping times for transient or sub-transient current/voltage values | F26: Indicate if the solution : - Is an Out-of-the-box functionality - Requires configuration? - Requires customisation? | I26: Show stopper | J26: =IF(I26='Priority Ratings'!$C$21,'Priority Ratings'!$B$21, IF(I26='Priority Ratings'!$C$22,'Priority Ratings'!$B$22,IF(I26='Priority Ratings'!$C$23,'Priority Ratings'!$B$23,IF(I26='Priority Ratings'!$C$24,'Priority Ratings'!$B$24,IF(I26='Priority Ratings'!$C$25,'Priority Ratings'!$B$25,IF(I26='Priority Ratings'!$C$26,'Priority Ratings'!$B$26,IF(I26='Priority Ratings'!$C$27,'Priority Ratings'!$B$27,"No Rating"))))))) -> 6 | K26: 0.03488372093 | L26: 100%: Fully comply with requirement (Out of the box function with minor re-configuration) 50%: Partially comply, will require major configuration. 0%: No compliance/require development and/or customisation. | M26: 0 | N26: 0
A27: 19 | B27: Meeting the Scope of Work Required | C27: How well has the Tenderer described how scope requirements will be met? Do they understand what needs to be done? List concerns in Comments. | D27: Time Overcurrent Protection | E27: Transient response validations (requires Stability Analysis functions (RMS) or Electromagnetic Transients functions (EMT) | F27: Indicate if the solution : - Is an Out-of-the-box functionality - Requires configuration? - Requires customisation? | I27: Show stopper | J27: =IF(I27='Priority Ratings'!$C$21,'Priority Ratings'!$B$21, IF(I27='Priority Ratings'!$C$22,'Priority Ratings'!$B$22,IF(I27='Priority Ratings'!$C$23,'Priority Ratings'!$B$23,IF(I27='Priority Ratings'!$C$24,'Priority Ratings'!$B$24,IF(I27='Priority Ratings'!$C$25,'Priority Ratings'!$B$25,IF(I27='Priority Ratings'!$C$26,'Priority Ratings'!$B$26,IF(I27='Priority Ratings'!$C$27,'Priority Ratings'!$B$27,"No Rating"))))))) -> 6 | K27: 0.03488372093 | L27: 100%: Fully comply with requirement (Out of the box function with minor re-configuration) 50%: Partially comply, will require major configuration. 0%: No compliance/require development and/or customisation. | M27: 0 | N27: 0
A28: 20 | B28: Meeting the Scope of Work Required | C28: How well has the Tenderer described how scope requirements will be met? Do they understand what needs to be done? List concerns in Comments. | D28: Time Overcurrent Protection | E28: Protection Graphic Assistant: - Customisable short-circuit sweep diagrams including visualization of protection settings | F28: Indicate if the solution : - Is an Out-of-the-box functionality - Requires configuration? - Requires customisation? | I28: Show stopper | J28: =IF(I28='Priority Ratings'!$C$21,'Priority Ratings'!$B$21, IF(I28='Priority Ratings'!$C$22,'Priority Ratings'!$B$22,IF(I28='Priority Ratings'!$C$23,'Priority Ratings'!$B$23,IF(I28='Priority Ratings'!$C$24,'Priority Ratings'!$B$24,IF(I28='Priority Ratings'!$C$25,'Priority Ratings'!$B$25,IF(I28='Priority Ratings'!$C$26,'Priority Ratings'!$B$26,IF(I28='Priority Ratings'!$C$27,'Priority Ratings'!$B$27,"No Rating"))))))) -> 6 | K28: 0.03488372093 | L28: 100%: Fully comply with requirement (Out of the box function with minor re-configuration) 50%: Partially comply, will require major configuration. 0%: No compliance/require development and/or customisation. | M28: 0 | N28: 0
A29: 21 | B29: Meeting the Scope of Work Required | C29: How well has the Tenderer described how scope requirements will be met? Do they understand what needs to be done? List concerns in Comments. | D29: Time Overcurrent Protection | E29: Protection Model Features: - Fuses and low-voltage circuit breakers - Positive-, negative-, zero-sequence inverse and definite time characteristics - Thermal overload characteristics - Directional elements supporting cross-, selfand memory polarising, Wattmetric method - Differential unit with harmonic blocking for multiple harmonic orders - Generic and detailed manufacturer-specific recloser units - Signal transmission between relays, intertripping, inter-blocking schemes - Detailed CT, VT, combined CT/VT NEW, and CVT models including saturation - Over-, under-voltage inverse and definite time characteristics - Programmable logic unit - Over-, under-frequency and df/dt inverse and definite time characteristics - Any other unique features | F29: Indicate if the solution : - Is an Out-of-the-box functionality - Requires configuration? - Requires customisation? | I29: Show stopper | J29: =IF(I29='Priority Ratings'!$C$21,'Priority Ratings'!$B$21, IF(I29='Priority Ratings'!$C$22,'Priority Ratings'!$B$22,IF(I29='Priority Ratings'!$C$23,'Priority Ratings'!$B$23,IF(I29='Priority Ratings'!$C$24,'Priority Ratings'!$B$24,IF(I29='Priority Ratings'!$C$25,'Priority Ratings'!$B$25,IF(I29='Priority Ratings'!$C$26,'Priority Ratings'!$B$26,IF(I29='Priority Ratings'!$C$27,'Priority Ratings'!$B$27,"No Rating"))))))) -> 6 | K29: 0.03488372093 | L29: 100%: Fully comply with requirement (Out of the box function with minor re-configuration) 50%: Partially comply, will require major configuration. 0%: No compliance/require development and/or customisation. | M29: 0 | N29: 0
A30: 22 | B30: Meeting the Scope of Work Required | C30: How well has the Tenderer described how scope requirements will be met? Do they understand what needs to be done? List concerns in Comments. | D30: Distance Protection | E30: P-Q diagrams and R-X diagrams with support of the display of measured impedance trace | F30: Indicate if the solution : - Is an Out-of-the-box functionality - Requires configuration? - Requires customisation? | I30: Show stopper | J30: =IF(I30='Priority Ratings'!$C$21,'Priority Ratings'!$B$21, IF(I30='Priority Ratings'!$C$22,'Priority Ratings'!$B$22,IF(I30='Priority Ratings'!$C$23,'Priority Ratings'!$B$23,IF(I30='Priority Ratings'!$C$24,'Priority Ratings'!$B$24,IF(I30='Priority Ratings'!$C$25,'Priority Ratings'!$B$25,IF(I30='Priority Ratings'!$C$26,'Priority Ratings'!$B$26,IF(I30='Priority Ratings'!$C$27,'Priority Ratings'!$B$27,"No Rating"))))))) -> 6 | K30: 0.03488372093 | L30: 100%: Fully comply with requirement (Out of the box function with minor re-configuration) 50%: Partially comply, will require major configuration. 0%: No compliance/require development and/or customisation. | M30: 0 | N30: 0
A31: 23 | B31: Meeting the Scope of Work Required | C31: How well has the Tenderer described how scope requirements will be met? Do they understand what needs to be done? List concerns in Comments. | D31: Distance Protection | E31: Time-distance diagrams, with metric or calculated display of zone reach in forward and reverse direction | F31: Indicate if the solution : - Is an Out-of-the-box functionality - Requires configuration? - Requires customisation? | I31: Show stopper | J31: =IF(I31='Priority Ratings'!$C$21,'Priority Ratings'!$B$21, IF(I31='Priority Ratings'!$C$22,'Priority Ratings'!$B$22,IF(I31='Priority Ratings'!$C$23,'Priority Ratings'!$B$23,IF(I31='Priority Ratings'!$C$24,'Priority Ratings'!$B$24,IF(I31='Priority Ratings'!$C$25,'Priority Ratings'!$B$25,IF(I31='Priority Ratings'!$C$26,'Priority Ratings'!$B$26,IF(I31='Priority Ratings'!$C$27,'Priority Ratings'!$B$27,"No Rating"))))))) -> 6 | K31: 0.03488372093 | L31: 100%: Fully comply with requirement (Out of the box function with minor re-configuration) 50%: Partially comply, will require major configuration. 0%: No compliance/require development and/or customisation. | M31: 0 | N31: 0
A32: 24 | B32: Meeting the Scope of Work Required | C32: How well has the Tenderer described how scope requirements will be met? Do they understand what needs to be done? List concerns in Comments. | D32: Distance Protection | E32: Protection Graphic Assistant: - Reach of protection zones colourings in diagrams | F32: Indicate if the solution : - Is an Out-of-the-box functionality - Requires configuration? - Requires customisation? | I32: Show stopper | J32: =IF(I32='Priority Ratings'!$C$21,'Priority Ratings'!$B$21, IF(I32='Priority Ratings'!$C$22,'Priority Ratings'!$B$22,IF(I32='Priority Ratings'!$C$23,'Priority Ratings'!$B$23,IF(I32='Priority Ratings'!$C$24,'Priority Ratings'!$B$24,IF(I32='Priority Ratings'!$C$25,'Priority Ratings'!$B$25,IF(I32='Priority Ratings'!$C$26,'Priority Ratings'!$B$26,IF(I32='Priority Ratings'!$C$27,'Priority Ratings'!$B$27,"No Rating"))))))) -> 6 | K32: 0.03488372093 | L32: 100%: Fully comply with requirement (Out of the box function with minor re-configuration) 50%: Partially comply, will require major configuration. 0%: No compliance/require development and/or customisation. | M32: 0 | N32: 0
A33: 25 | B33: Meeting the Scope of Work Required | C33: How well has the Tenderer described how scope requirements will be met? Do they understand what needs to be done? List concerns in Comments. | D33: Distance Protection | E33: Protection Coordination Assistant: - Automatic calculation of protection settings Support of various coordination methods and setting rules | F33: Indicate if the solution : - Is an Out-of-the-box functionality - Requires configuration? - Requires customisation? | I33: Show stopper | J33: =IF(I33='Priority Ratings'!$C$21,'Priority Ratings'!$B$21, IF(I33='Priority Ratings'!$C$22,'Priority Ratings'!$B$22,IF(I33='Priority Ratings'!$C$23,'Priority Ratings'!$B$23,IF(I33='Priority Ratings'!$C$24,'Priority Ratings'!$B$24,IF(I33='Priority Ratings'!$C$25,'Priority Ratings'!$B$25,IF(I33='Priority Ratings'!$C$26,'Priority Ratings'!$B$26,IF(I33='Priority Ratings'!$C$27,'Priority Ratings'!$B$27,"No Rating"))))))) -> 6 | K33: 0.03488372093 | L33: 100%: Fully comply with requirement (Out of the box function with minor re-configuration) 50%: Partially comply, will require major configuration. 0%: No compliance/require development and/or customisation. | M33: 0 | N33: 0
A34: 26 | B34: Meeting the Scope of Work Required | C34: How well has the Tenderer described how scope requirements will be met? Do they understand what needs to be done? List concerns in Comments. | D34: Distance Protection | E34: Generic and detailed manufacturer-specific Mho, polygonal distance zones and distance starting units: Out of step detection and power swing blocking unit | F34: Indicate if the solution : - Is an Out-of-the-box functionality - Requires configuration? - Requires customisation? | I34: Show stopper | J34: =IF(I34='Priority Ratings'!$C$21,'Priority Ratings'!$B$21, IF(I34='Priority Ratings'!$C$22,'Priority Ratings'!$B$22,IF(I34='Priority Ratings'!$C$23,'Priority Ratings'!$B$23,IF(I34='Priority Ratings'!$C$24,'Priority Ratings'!$B$24,IF(I34='Priority Ratings'!$C$25,'Priority Ratings'!$B$25,IF(I34='Priority Ratings'!$C$26,'Priority Ratings'!$B$26,IF(I34='Priority Ratings'!$C$27,'Priority Ratings'!$B$27,"No Rating"))))))) -> 6 | K34: 0.03488372093 | L34: 100%: Fully comply with requirement (Out of the box function with minor re-configuration) 50%: Partially comply, will require major configuration. 0%: No compliance/require development and/or customisation. | M34: 0 | N34: 0
A35: 27 | B35: Meeting the Scope of Work Required | C35: How well has the Tenderer described how scope requirements will be met? Do they understand what needs to be done? List concerns in Comments. | D35: Arc Flash Analysis | E35: Arc-Flash calculation in accordance with IEEE-1584 2002, NFPA 70E-2012 and BGI/GUV-I 5188 | F35: Indicate if the solution : - Is an Out-of-the-box functionality - Requires configuration? - Requires customisation? | I35: Show stopper | J35: =IF(I35='Priority Ratings'!$C$21,'Priority Ratings'!$B$21, IF(I35='Priority Ratings'!$C$22,'Priority Ratings'!$B$22,IF(I35='Priority Ratings'!$C$23,'Priority Ratings'!$B$23,IF(I35='Priority Ratings'!$C$24,'Priority Ratings'!$B$24,IF(I35='Priority Ratings'!$C$25,'Priority Ratings'!$B$25,IF(I35='Priority Ratings'!$C$26,'Priority Ratings'!$B$26,IF(I35='Priority Ratings'!$C$27,'Priority Ratings'!$B$27,"No Rating"))))))) -> 6 | K35: 0.03488372093 | L35: 100%: Fully comply with requirement (Out of the box function with minor re-configuration) 50%: Partially comply, will require major configuration. 0%: No compliance/require development and/or customisation. | M35: 0 | N35: 0
A36: 28 | B36: Meeting the Scope of Work Required | C36: How well has the Tenderer described how scope requirements will be met? Do they understand what needs to be done? List concerns in Comments. | D36: Arc Flash Analysis | E36: Incident Energy, Flash-Protection Boundary and PPE Category on the single line diagram | F36: Indicate if the solution : - Is an Out-of-the-box functionality - Requires configuration? - Requires customisation? | I36: Show stopper | J36: =IF(I36='Priority Ratings'!$C$21,'Priority Ratings'!$B$21, IF(I36='Priority Ratings'!$C$22,'Priority Ratings'!$B$22,IF(I36='Priority Ratings'!$C$23,'Priority Ratings'!$B$23,IF(I36='Priority Ratings'!$C$24,'Priority Ratings'!$B$24,IF(I36='Priority Ratings'!$C$25,'Priority Ratings'!$B$25,IF(I36='Priority Ratings'!$C$26,'Priority Ratings'!$B$26,IF(I36='Priority Ratings'!$C$27,'Priority Ratings'!$B$27,"No Rating"))))))) -> 6 | K36: 0.03488372093 | L36: 100%: Fully comply with requirement (Out of the box function with minor re-configuration) 50%: Partially comply, will require major configuration. 0%: No compliance/require development and/or customisation. | M36: 0 | N36: 0
A37: 29 | B37: Meeting the Scope of Work Required | C37: How well has the Tenderer described how scope requirements will be met? Do they understand what needs to be done? List concerns in Comments. | D37: Arc Flash Analysis | E37: Automated preparation of Arc-Flash labels via MS Spreadsheet/Word | F37: Indicate if the solution : - Is an Out-of-the-box functionality - Requires configuration? - Requires customisation? | I37: Very important | J37: =IF(I37='Priority Ratings'!$C$21,'Priority Ratings'!$B$21, IF(I37='Priority Ratings'!$C$22,'Priority Ratings'!$B$22,IF(I37='Priority Ratings'!$C$23,'Priority Ratings'!$B$23,IF(I37='Priority Ratings'!$C$24,'Priority Ratings'!$B$24,IF(I37='Priority Ratings'!$C$25,'Priority Ratings'!$B$25,IF(I37='Priority Ratings'!$C$26,'Priority Ratings'!$B$26,IF(I37='Priority Ratings'!$C$27,'Priority Ratings'!$B$27,"No Rating"))))))) -> 4 | K37: 0.02325581395 | L37: 100%: Fully comply with requirement (Out of the box function with minor re-configuration) 50%: Partially comply, will require major configuration. 0%: No compliance/require development and/or customisation. | M37: 0 | N37: 0
A38: 30 | B38: Meeting the Scope of Work Required | C38: How well has the Tenderer described how scope requirements will be met? Do they understand what needs to be done? List concerns in Comments. | D38: Arc Flash Analysis | E38: Automatic protection-based fault clearing time determination | F38: Indicate if the solution : - Is an Out-of-the-box functionality - Requires configuration? - Requires customisation? | I38: Critical | J38: =IF(I38='Priority Ratings'!$C$21,'Priority Ratings'!$B$21, IF(I38='Priority Ratings'!$C$22,'Priority Ratings'!$B$22,IF(I38='Priority Ratings'!$C$23,'Priority Ratings'!$B$23,IF(I38='Priority Ratings'!$C$24,'Priority Ratings'!$B$24,IF(I38='Priority Ratings'!$C$25,'Priority Ratings'!$B$25,IF(I38='Priority Ratings'!$C$26,'Priority Ratings'!$B$26,IF(I38='Priority Ratings'!$C$27,'Priority Ratings'!$B$27,"No Rating"))))))) -> 5 | K38: 0.02906976744 | L38: 100%: Fully comply with requirement (Out of the box function with minor re-configuration) 50%: Partially comply, will require major configuration. 0%: No compliance/require development and/or customisation. | M38: 0 | N38: 0
A39: 31 | B39: Meeting the Scope of Work Required | C39: How well has the Tenderer described how scope requirements will be met? Do they understand what needs to be done? List concerns in Comments. | D39: Arc Flash Analysis | E39: Calculation of arcing-current energy | F39: Indicate if the solution : - Is an Out-of-the-box functionality - Requires configuration? - Requires customisation? | I39: Critical | J39: =IF(I39='Priority Ratings'!$C$21,'Priority Ratings'!$B$21, IF(I39='Priority Ratings'!$C$22,'Priority Ratings'!$B$22,IF(I39='Priority Ratings'!$C$23,'Priority Ratings'!$B$23,IF(I39='Priority Ratings'!$C$24,'Priority Ratings'!$B$24,IF(I39='Priority Ratings'!$C$25,'Priority Ratings'!$B$25,IF(I39='Priority Ratings'!$C$26,'Priority Ratings'!$B$26,IF(I39='Priority Ratings'!$C$27,'Priority Ratings'!$B$27,"No Rating"))))))) -> 5 | K39: 0.02906976744 | L39: 100%: Fully comply with requirement (Out of the box function with minor re-configuration) 50%: Partially comply, will require major configuration. 0%: No compliance/require development and/or customisation. | M39: 0 | N39: 0
H41: Totals | J41: =SUM(J9:J39) -> 172 | K41: =SUM(K9:K39) -> 1 | N41: =SUM(N9:N39) -> 0

Sheet PSST-Power Quality& Harmonic An
A1: Power System Simulation Tool Functional: PSST-Power Quality and Harmonic Analysis BRS18.1 BRS19.1 BRS20.1 BRS21.1
A2: CORP xxxx Tender | M2: Scoring (Sliding scale)
A3: Tenderer: | M3: 100% - Fully compliant
A4: Evaluated by: | M4: 50%-Partially compliant
M5: 0%-Non compliance
A6: Evaluation Criteria
G7: Vendor Compliance Full Compliance - Y Partial Compliance - P Non Compliance - N | H7: Vendor to indicate any applicable comments based on Compliance | I7: Priority Requirement priority as determined by Eskom | J7: Weight (agreed by evaluation team members) | L7: Score (determined by each evaluation team member during evaluation. Will be averaged for final scores) | M7: Score | O7: Comments (Internal) for scorer
A8: ID | B8: Type | C8: Criterion | D8: Functional Requirement | E8: Requirement description | F8: Evaluation Criterion / Question | G8: Vendor Compliance | H8: Comments | I8: Priority Description | J8: Priority | K8: Weighted Question | L8: Scoring | M8: Answer (0,50,100%) | N8: Weighted Answer
A9: 1 | B9: Meeting the Scope of Work Required | C9: How well has the Tenderer described how scope requirements will be met? Do they understand what needs to be done? List concerns in Comments. | D9: Harmonic Load Flow | E9: Harmonic voltage and current indices (IEC 61000- 3-6, BDEW 2008) | F9: Indicate if the solution : - Is an Out-of-the-box functionality - Requires configuration? - Requires customisation? | I9: Show stopper | J9: =IF(I9='Priority Ratings'!$C$21,'Priority Ratings'!$B$21, IF(I9='Priority Ratings'!$C$22,'Priority Ratings'!$B$22,IF(I9='Priority Ratings'!$C$23,'Priority Ratings'!$B$23,IF(I9='Priority Ratings'!$C$24,'Priority Ratings'!$B$24,IF(I9='Priority Ratings'!$C$25,'Priority Ratings'!$B$25,IF(I9='Priority Ratings'!$C$26,'Priority Ratings'!$B$26,IF(I9='Priority Ratings'!$C$27,'Priority Ratings'!$B$27,"No Rating"))))))) -> 6 | K9: =J9/J$30 -> 0.05128205128 | L9: 100%: Fully comply with requirement (Out of the box function with minor re-configuration) 50%: Partially comply, will require major configuration. 0%: No compliance/require development and/or customisation. | M9: 0 | N9: =K9*M9 -> 0
A10: 2 | B10: Meeting the Scope of Work Required | C10: How well has the Tenderer described how scope requirements will be met? Do they understand what needs to be done? List concerns in Comments. | D10: Harmonic Load Flow | E10: Balanced (positive sequence) and unbalanced (multiphase) model | F10: Indicate if the solution : - Is an Out-of-the-box functionality - Requires configuration? - Requires customisation? | I10: Show stopper | J10: =IF(I10='Priority Ratings'!$C$21,'Priority Ratings'!$B$21, IF(I10='Priority Ratings'!$C$22,'Priority Ratings'!$B$22,IF(I10='Priority Ratings'!$C$23,'Priority Ratings'!$B$23,IF(I10='Priority Ratings'!$C$24,'Priority Ratings'!$B$24,IF(I10='Priority Ratings'!$C$25,'Priority Ratings'!$B$25,IF(I10='Priority Ratings'!$C$26,'Priority Ratings'!$B$26,IF(I10='Priority Ratings'!$C$27,'Priority Ratings'!$B$27,"No Rating"))))))) -> 6 | K10: =J10/J$30 -> 0.05128205128 | L10: 100%: Fully comply with requirement (Out of the box function with minor re-configuration) 50%: Partially comply, will require major configuration. 0%: No compliance/require development and/or customisation. | M10: 0 | N10: 0
A11: 3 | B11: Meeting the Scope of Work Required | C11: How well has the Tenderer described how scope requirements will be met? Do they understand what needs to be done? List concerns in Comments. | D11: Harmonic Load Flow | E11: Unbalanced harmonic sources | F11: Indicate if the solution : - Is an Out-of-the-box functionality - Requires configuration? - Requires customisation? | I11: Show stopper | J11: =IF(I11='Priority Ratings'!$C$21,'Priority Ratings'!$B$21, IF(I11='Priority Ratings'!$C$22,'Priority Ratings'!$B$22,IF(I11='Priority Ratings'!$C$23,'Priority Ratings'!$B$23,IF(I11='Priority Ratings'!$C$24,'Priority Ratings'!$B$24,IF(I11='Priority Ratings'!$C$25,'Priority Ratings'!$B$25,IF(I11='Priority Ratings'!$C$26,'Priority Ratings'!$B$26,IF(I11='Priority Ratings'!$C$27,'Priority Ratings'!$B$27,"No Rating"))))))) -> 6 | K11: =J11/J$30 -> 0.05128205128 | L11: 100%: Fully comply with requirement (Out of the box function with minor re-configuration) 50%: Partially comply, will require major configuration. 0%: No compliance/require development and/or customisation. | M11: 0 | N11: 0
A12: 4 | B12: Meeting the Scope of Work Required | C12: How well has the Tenderer described how scope requirements will be met? Do they understand what needs to be done? List concerns in Comments. | D12: Harmonic Load Flow | E12: Non-characteristic and interharmonics | F12: Indicate if the solution : - Is an Out-of-the-box functionality - Requires configuration? - Requires customisation? | I12: Very important | J12: =IF(I12='Priority Ratings'!$C$21,'Priority Ratings'!$B$21, IF(I12='Priority Ratings'!$C$22,'Priority Ratings'!$B$22,IF(I12='Priority Ratings'!$C$23,'Priority Ratings'!$B$23,IF(I12='Priority Ratings'!$C$24,'Priority Ratings'!$B$24,IF(I12='Priority Ratings'!$C$25,'Priority Ratings'!$B$25,IF(I12='Priority Ratings'!$C$26,'Priority Ratings'!$B$26,IF(I12='Priority Ratings'!$C$27,'Priority Ratings'!$B$27,"No Rating"))))))) -> 4 | K12: =J12/J$30 -> 0.03418803419 | L12: 100%: Fully comply with requirement (Out of the box function with minor re-configuration) 50%: Partially comply, will require major configuration. 0%: No compliance/require development and/or customisation. | M12: 0 | N12: 0
A13: 5 | B13: Meeting the Scope of Work Required | C13: How well has the Tenderer described how scope requirements will be met? Do they understand what needs to be done? List concerns in Comments. | D13: Harmonic Load Flow | E13: Multiple harmonic injections: current and voltage sources, thyristor rectifiers | F13: Indicate if the solution : - Is an Out-of-the-box functionality - Requires configuration? - Requires customisation? | I13: Show stopper | J13: =IF(I13='Priority Ratings'!$C$21,'Priority Ratings'!$B$21, IF(I13='Priority Ratings'!$C$22,'Priority Ratings'!$B$22,IF(I13='Priority Ratings'!$C$23,'Priority Ratings'!$B$23,IF(I13='Priority Ratings'!$C$24,'Priority Ratings'!$B$24,IF(I13='Priority Ratings'!$C$25,'Priority Ratings'!$B$25,IF(I13='Priority Ratings'!$C$26,'Priority Ratings'!$B$26,IF(I13='Priority Ratings'!$C$27,'Priority Ratings'!$B$27,"No Rating"))))))) -> 6 | K13: =J13/J$30 -> 0.05128205128 | L13: 100%: Fully comply with requirement (Out of the box function with minor re-configuration) 50%: Partially comply, will require major configuration. 0%: No compliance/require development and/or customisation. | M13: 0 | N13: 0
A14: 6 | B14: Meeting the Scope of Work Required | C14: How well has the Tenderer described how scope requirements will be met? Do they understand what needs to be done? List concerns in Comments. | D14: Harmonic Load Flow | E14: PWM-converters, Static Var System, non-linear loads, Norton equivalents | F14: Indicate if the solution : - Is an Out-of-the-box functionality - Requires configuration? - Requires customisation? | I14: Show stopper | J14: =IF(I14='Priority Ratings'!$C$21,'Priority Ratings'!$B$21, IF(I14='Priority Ratings'!$C$22,'Priority Ratings'!$B$22,IF(I14='Priority Ratings'!$C$23,'Priority Ratings'!$B$23,IF(I14='Priority Ratings'!$C$24,'Priority Ratings'!$B$24,IF(I14='Priority Ratings'!$C$25,'Priority Ratings'!$B$25,IF(I14='Priority Ratings'!$C$26,'Priority Ratings'!$B$26,IF(I14='Priority Ratings'!$C$27,'Priority Ratings'!$B$27,"No Rating"))))))) -> 6 | K14: 0.05128205128 | L14: 100%: Fully comply with requirement (Out of the box function with minor re-configuration) 50%: Partially comply, will require major configuration. 0%: No compliance/require development and/or customisation. | M14: 0 | N14: 0
A15: 7 | B15: Meeting the Scope of Work Required | C15: How well has the Tenderer described how scope requirements will be met? Do they understand what needs to be done? List concerns in Comments. | D15: Harmonic Load Flow | E15: Background distortion frequency-dependent R and L values | F15: Indicate if the solution : - Is an Out-of-the-box functionality - Requires configuration? - Requires customisation? | I15: Show stopper | J15: =IF(I15='Priority Ratings'!$C$21,'Priority Ratings'!$B$21, IF(I15='Priority Ratings'!$C$22,'Priority Ratings'!$B$22,IF(I15='Priority Ratings'!$C$23,'Priority Ratings'!$B$23,IF(I15='Priority Ratings'!$C$24,'Priority Ratings'!$B$24,IF(I15='Priority Ratings'!$C$25,'Priority Ratings'!$B$25,IF(I15='Priority Ratings'!$C$26,'Priority Ratings'!$B$26,IF(I15='Priority Ratings'!$C$27,'Priority Ratings'!$B$27,"No Rating"))))))) -> 6 | K15: 0.05128205128 | L15: 100%: Fully comply with requirement (Out of the box function with minor re-configuration) 50%: Partially comply, will require major configuration. 0%: No compliance/require development and/or customisation. | M15: 0 | N15: 0
A16: 8 | B16: Meeting the Scope of Work Required | C16: How well has the Tenderer described how scope requirements will be met? Do they understand what needs to be done? List concerns in Comments. | D16: Harmonic Load Flow | E16: Various harmonic distortion indices such as: - Total Harmonic Distortion - Harmonic Distortion - Harmonic Factor - Total Harmonic Factor - Total Arithmetic Distortion - Telephone Influence Factor mx, - Total RMS currents and voltages, loadings, and losses (Defined according to IEEE and DIN/IEC standards) | F16: Indicate if the solution : - Is an Out-of-the-box functionality - Requires configuration? - Requires customisation? | I16: Show stopper | J16: =IF(I16='Priority Ratings'!$C$21,'Priority Ratings'!$B$21, IF(I16='Priority Ratings'!$C$22,'Priority Ratings'!$B$22,IF(I16='Priority Ratings'!$C$23,'Priority Ratings'!$B$23,IF(I16='Priority Ratings'!$C$24,'Priority Ratings'!$B$24,IF(I16='Priority Ratings'!$C$25,'Priority Ratings'!$B$25,IF(I16='Priority Ratings'!$C$26,'Priority Ratings'!$B$26,IF(I16='Priority Ratings'!$C$27,'Priority Ratings'!$B$27,"No Rating"))))))) -> 6 | K16: 0.05128205128 | L16: 100%: Fully comply with requirement (Out of the box function with minor re-configuration) 50%: Partially comply, will require major configuration. 0%: No compliance/require development and/or customisation. | M16: 0 | N16: 0
A17: 9 | B17: Meeting the Scope of Work Required | C17: How well has the Tenderer described how scope requirements will be met? Do they understand what needs to be done? List concerns in Comments. | D17: Harmonic Load Flow | E17: Harmonic distortion waveform plots with predefined distortion limits according to international standards, | F17: Indicate if the solution : - Is an Out-of-the-box functionality - Requires configuration? - Requires customisation? | I17: Show stopper | J17: =IF(I17='Priority Ratings'!$C$21,'Priority Ratings'!$B$21, IF(I17='Priority Ratings'!$C$22,'Priority Ratings'!$B$22,IF(I17='Priority Ratings'!$C$23,'Priority Ratings'!$B$23,IF(I17='Priority Ratings'!$C$24,'Priority Ratings'!$B$24,IF(I17='Priority Ratings'!$C$25,'Priority Ratings'!$B$25,IF(I17='Priority Ratings'!$C$26,'Priority Ratings'!$B$26,IF(I17='Priority Ratings'!$C$27,'Priority Ratings'!$B$27,"No Rating"))))))) -> 6 | K17: 0.05128205128 | L17: 100%: Fully comply with requirement (Out of the box function with minor re-configuration) 50%: Partially comply, will require major configuration. 0%: No compliance/require development and/or customisation. | M17: 0 | N17: 0
A18: 10 | B18: Meeting the Scope of Work Required | C18: How well has the Tenderer described how scope requirements will be met? Do they understand what needs to be done? List concerns in Comments. | D18: Harmonic Load Flow | E18: Calculation of K-Factors and Loss Factors for 2-winding transformers (UL1562, EN 50464-3 (replaces BS 7821), EN 50541-2, IEEEC.57.110-1998) | F18: Indicate if the solution : - Is an Out-of-the-box functionality - Requires configuration? - Requires customisation? | I18: Critical | J18: =IF(I18='Priority Ratings'!$C$21,'Priority Ratings'!$B$21, IF(I18='Priority Ratings'!$C$22,'Priority Ratings'!$B$22,IF(I18='Priority Ratings'!$C$23,'Priority Ratings'!$B$23,IF(I18='Priority Ratings'!$C$24,'Priority Ratings'!$B$24,IF(I18='Priority Ratings'!$C$25,'Priority Ratings'!$B$25,IF(I18='Priority Ratings'!$C$26,'Priority Ratings'!$B$26,IF(I18='Priority Ratings'!$C$27,'Priority Ratings'!$B$27,"No Rating"))))))) -> 5 | K18: 0.04273504274 | L18: 100%: Fully comply with requirement (Out of the box function with minor re-configuration) 50%: Partially comply, will require major configuration. 0%: No compliance/require development and/or customisation. | M18: 0 | N18: 0
A19: 11 | B19: Meeting the Scope of Work Required | C19: How well has the Tenderer described how scope requirements will be met? Do they understand what needs to be done? List concerns in Comments. | D19: Flicker Analysis | E19: Flicker Assessment in line with (IEC 61400-21): - Short- and long-term flicker disturbance factors for continuous and switching operations - Relative voltage changes | F19: Indicate if the solution : - Is an Out-of-the-box functionality - Requires configuration? - Requires customisation? | I19: Show stopper | J19: =IF(I19='Priority Ratings'!$C$21,'Priority Ratings'!$B$21, IF(I19='Priority Ratings'!$C$22,'Priority Ratings'!$B$22,IF(I19='Priority Ratings'!$C$23,'Priority Ratings'!$B$23,IF(I19='Priority Ratings'!$C$24,'Priority Ratings'!$B$24,IF(I19='Priority Ratings'!$C$25,'Priority Ratings'!$B$25,IF(I19='Priority Ratings'!$C$26,'Priority Ratings'!$B$26,IF(I19='Priority Ratings'!$C$27,'Priority Ratings'!$B$27,"No Rating"))))))) -> 6 | K19: =J19/J$30 -> 0.05128205128 | L19: 100%: Fully comply with requirement (Out of the box function with minor re-configuration) 50%: Partially comply, will require major configuration. 0%: No compliance/require development and/or customisation. | M19: 0 | N19: 0
A20: 12 | B20: Meeting the Scope of Work Required | C20: How well has the Tenderer described how scope requirements will be met? Do they understand what needs to be done? List concerns in Comments. | D20: Flicker Analysis | E20: Flicker-meter in line with (IEC 61000-4-15): EMT or RMS signals Support of multiple file formats such as COMTRADE, CSV, userdefined, etc. | F20: Indicate if the solution : - Is an Out-of-the-box functionality - Requires configuration? - Requires customisation? | I20: Show stopper | J20: =IF(I20='Priority Ratings'!$C$21,'Priority Ratings'!$B$21, IF(I20='Priority Ratings'!$C$22,'Priority Ratings'!$B$22,IF(I20='Priority Ratings'!$C$23,'Priority Ratings'!$B$23,IF(I20='Priority Ratings'!$C$24,'Priority Ratings'!$B$24,IF(I20='Priority Ratings'!$C$25,'Priority Ratings'!$B$25,IF(I20='Priority Ratings'!$C$26,'Priority Ratings'!$B$26,IF(I20='Priority Ratings'!$C$27,'Priority Ratings'!$B$27,"No Rating"))))))) -> 6 | K20: 0.05128205128 | L20: 100%: Fully comply with requirement (Out of the box function with minor re-configuration) 50%: Partially comply, will require major configuration. 0%: No compliance/require development and/or customisation. | M20: 0 | N20: 0
A21: 13 | B21: Meeting the Scope of Work Required | C21: How well has the Tenderer described how scope requirements will be met? Do they understand what needs to be done? List concerns in Comments. | D21: Frequency Sweep | E21: Automatic step size adaption or constant step size | F21: Indicate if the solution : - Is an Out-of-the-box functionality - Requires configuration? - Requires customisation? | I21: Show stopper | J21: =IF(I21='Priority Ratings'!$C$21,'Priority Ratings'!$B$21, IF(I21='Priority Ratings'!$C$22,'Priority Ratings'!$B$22,IF(I21='Priority Ratings'!$C$23,'Priority Ratings'!$B$23,IF(I21='Priority Ratings'!$C$24,'Priority Ratings'!$B$24,IF(I21='Priority Ratings'!$C$25,'Priority Ratings'!$B$25,IF(I21='Priority Ratings'!$C$26,'Priority Ratings'!$B$26,IF(I21='Priority Ratings'!$C$27,'Priority Ratings'!$B$27,"No Rating"))))))) -> 6 | K21: 0.05128205128 | L21: 100%: Fully comply with requirement (Out of the box function with minor re-configuration) 50%: Partially comply, will require major configuration. 0%: No compliance/require development and/or customisation. | M21: 0 | N21: 0
A22: 14 | B22: Meeting the Scope of Work Required | C22: How well has the Tenderer described how scope requirements will be met? Do they understand what needs to be done? List concerns in Comments. | D22: Frequency Sweep | E22: Balanced (positive sequence) and unbalanced network model | F22: Indicate if the solution : - Is an Out-of-the-box functionality - Requires configuration? - Requires customisation? | I22: Show stopper | J22: =IF(I22='Priority Ratings'!$C$21,'Priority Ratings'!$B$21, IF(I22='Priority Ratings'!$C$22,'Priority Ratings'!$B$22,IF(I22='Priority Ratings'!$C$23,'Priority Ratings'!$B$23,IF(I22='Priority Ratings'!$C$24,'Priority Ratings'!$B$24,IF(I22='Priority Ratings'!$C$25,'Priority Ratings'!$B$25,IF(I22='Priority Ratings'!$C$26,'Priority Ratings'!$B$26,IF(I22='Priority Ratings'!$C$27,'Priority Ratings'!$B$27,"No Rating"))))))) -> 6 | K22: 0.05128205128 | L22: 100%: Fully comply with requirement (Out of the box function with minor re-configuration) 50%: Partially comply, will require major configuration. 0%: No compliance/require development and/or customisation. | M22: 0 | N22: 0
A23: 15 | B23: Meeting the Scope of Work Required | C23: How well has the Tenderer described how scope requirements will be met? Do they understand what needs to be done? List concerns in Comments. | D23: Frequency Sweep | E23: Self and mutual impedances/admittances (phase and sequence components) | F23: Indicate if the solution : - Is an Out-of-the-box functionality - Requires configuration? - Requires customisation? | I23: Show stopper | J23: =IF(I23='Priority Ratings'!$C$21,'Priority Ratings'!$B$21, IF(I23='Priority Ratings'!$C$22,'Priority Ratings'!$B$22,IF(I23='Priority Ratings'!$C$23,'Priority Ratings'!$B$23,IF(I23='Priority Ratings'!$C$24,'Priority Ratings'!$B$24,IF(I23='Priority Ratings'!$C$25,'Priority Ratings'!$B$25,IF(I23='Priority Ratings'!$C$26,'Priority Ratings'!$B$26,IF(I23='Priority Ratings'!$C$27,'Priority Ratings'!$B$27,"No Rating"))))))) -> 6 | K23: 0.05128205128 | L23: 100%: Fully comply with requirement (Out of the box function with minor re-configuration) 50%: Partially comply, will require major configuration. 0%: No compliance/require development and/or customisation. | M23: 0 | N23: 0
A24: 16 | B24: Meeting the Scope of Work Required | C24: How well has the Tenderer described how scope requirements will be met? Do they understand what needs to be done? List concerns in Comments. | D24: Frequency Sweep | E24: Frequency-dependent R and L values and line/ cable models | F24: Indicate if the solution : - Is an Out-of-the-box functionality - Requires configuration? - Requires customisation? | I24: Show stopper | J24: =IF(I24='Priority Ratings'!$C$21,'Priority Ratings'!$B$21, IF(I24='Priority Ratings'!$C$22,'Priority Ratings'!$B$22,IF(I24='Priority Ratings'!$C$23,'Priority Ratings'!$B$23,IF(I24='Priority Ratings'!$C$24,'Priority Ratings'!$B$24,IF(I24='Priority Ratings'!$C$25,'Priority Ratings'!$B$25,IF(I24='Priority Ratings'!$C$26,'Priority Ratings'!$B$26,IF(I24='Priority Ratings'!$C$27,'Priority Ratings'!$B$27,"No Rating"))))))) -> 6 | K24: 0.05128205128 | L24: 100%: Fully comply with requirement (Out of the box function with minor re-configuration) 50%: Partially comply, will require major configuration. 0%: No compliance/require development and/or customisation. | M24: 0 | N24: 0
A25: 17 | B25: Meeting the Scope of Work Required | C25: How well has the Tenderer described how scope requirements will be met? Do they understand what needs to be done? List concerns in Comments. | D25: Frequency Sweep | E25: Spectral density of voltage amplitude/angle | F25: Indicate if the solution : - Is an Out-of-the-box functionality - Requires configuration? - Requires customisation? | I25: Show stopper | J25: =IF(I25='Priority Ratings'!$C$21,'Priority Ratings'!$B$21, IF(I25='Priority Ratings'!$C$22,'Priority Ratings'!$B$22,IF(I25='Priority Ratings'!$C$23,'Priority Ratings'!$B$23,IF(I25='Priority Ratings'!$C$24,'Priority Ratings'!$B$24,IF(I25='Priority Ratings'!$C$25,'Priority Ratings'!$B$25,IF(I25='Priority Ratings'!$C$26,'Priority Ratings'!$B$26,IF(I25='Priority Ratings'!$C$27,'Priority Ratings'!$B$27,"No Rating"))))))) -> 6 | K25: 0.05128205128 | L25: 100%: Fully comply with requirement (Out of the box function with minor re-configuration) 50%: Partially comply, will require major configuration. 0%: No compliance/require development and/or customisation. | M25: 0 | N25: 0
A26: 18 | B26: Meeting the Scope of Work Required | C26: How well has the Tenderer described how scope requirements will be met? Do they understand what needs to be done? List concerns in Comments. | D26: Filter Analysis | E26: Various filter models | F26: Indicate if the solution : - Is an Out-of-the-box functionality - Requires configuration? - Requires customisation? | I26: Show stopper | J26: =IF(I26='Priority Ratings'!$C$21,'Priority Ratings'!$B$21, IF(I26='Priority Ratings'!$C$22,'Priority Ratings'!$B$22,IF(I26='Priority Ratings'!$C$23,'Priority Ratings'!$B$23,IF(I26='Priority Ratings'!$C$24,'Priority Ratings'!$B$24,IF(I26='Priority Ratings'!$C$25,'Priority Ratings'!$B$25,IF(I26='Priority Ratings'!$C$26,'Priority Ratings'!$B$26,IF(I26='Priority Ratings'!$C$27,'Priority Ratings'!$B$27,"No Rating"))))))) -> 6 | K26: 0.05128205128 | L26: 100%: Fully comply with requirement (Out of the box function with minor re-configuration) 50%: Partially comply, will require major configuration. 0%: No compliance/require development and/or customisation. | M26: 0 | N26: 0
A27: 19 | B27: Meeting the Scope of Work Required | C27: How well has the Tenderer described how scope requirements will be met? Do they understand what needs to be done? List concerns in Comments. | D27: Filter Analysis | E27: Design and layout parameters | F27: Indicate if the solution : - Is an Out-of-the-box functionality - Requires configuration? - Requires customisation? | I27: Show stopper | J27: =IF(I27='Priority Ratings'!$C$21,'Priority Ratings'!$B$21, IF(I27='Priority Ratings'!$C$22,'Priority Ratings'!$B$22,IF(I27='Priority Ratings'!$C$23,'Priority Ratings'!$B$23,IF(I27='Priority Ratings'!$C$24,'Priority Ratings'!$B$24,IF(I27='Priority Ratings'!$C$25,'Priority Ratings'!$B$25,IF(I27='Priority Ratings'!$C$26,'Priority Ratings'!$B$26,IF(I27='Priority Ratings'!$C$27,'Priority Ratings'!$B$27,"No Rating"))))))) -> 6 | K27: 0.05128205128 | L27: 100%: Fully comply with requirement (Out of the box function with minor re-configuration) 50%: Partially comply, will require major configuration. 0%: No compliance/require development and/or customisation. | M27: 0 | N27: 0
A28: 20 | B28: Meeting the Scope of Work Required | C28: How well has the Tenderer described how scope requirements will be met? Do they understand what needs to be done? List concerns in Comments. | D28: Filter Analysis | E28: Filter sizing and verification reports | F28: Indicate if the solution : - Is an Out-of-the-box functionality - Requires configuration? - Requires customisation? | I28: Show stopper | J28: =IF(I28='Priority Ratings'!$C$21,'Priority Ratings'!$B$21, IF(I28='Priority Ratings'!$C$22,'Priority Ratings'!$B$22,IF(I28='Priority Ratings'!$C$23,'Priority Ratings'!$B$23,IF(I28='Priority Ratings'!$C$24,'Priority Ratings'!$B$24,IF(I28='Priority Ratings'!$C$25,'Priority Ratings'!$B$25,IF(I28='Priority Ratings'!$C$26,'Priority Ratings'!$B$26,IF(I28='Priority Ratings'!$C$27,'Priority Ratings'!$B$27,"No Rating"))))))) -> 6 | K28: 0.05128205128 | L28: 100%: Fully comply with requirement (Out of the box function with minor re-configuration) 50%: Partially comply, will require major configuration. 0%: No compliance/require development and/or customisation. | M28: 0 | N28: 0
H30: Totals | J30: =SUM(J9:J28) -> 117 | K30: =SUM(K9:K28) -> 1 | N30: =SUM(N9:N28) -> 0

Sheet PSST-Additional Power Systems A
A1: Power System Simulation Tool Functionality BRS22.1 BRS23.1 BRS24.1 BRS25.1 BRS26.1 BRS27. BRS28. BRS29.1
A2: CORP xxxx Tender | M2: Scoring (Sliding scale)
A3: Tenderer: | M3: 100% - Fully compliant
A4: Evaluated by: | M4: 50%-Partially compliant
M5: 0%-Non compliance
A6: Evaluation Criteria
G7: Vendor Compliance Full Compliance - Y Partial Compliance - P Non Compliance - N | H7: Vendor to indicate any applicable comments based on Compliance | I7: Priority Requirement priority as determined by Eskom | J7: Weight (agreed by evaluation team members) | L7: Score (determined by each evaluation team member during evaluation. Will be averaged for final scores) | M7: Score | O7: Comments (Internal) for scorer
A8: ID | B8: Type | C8: Criterion | D8: Functional Requirement | E8: Requirement description | F8: Evaluation Criterion / Question | G8: Vendor Compliance | H8: Comments | I8: Priority Description | J8: Priority | K8: Weighted Question | L8: Scoring | M8: Answer (0,50,100%) | N8: Weighted Answer
A9: 1 | B9: Meeting the Scope of Work Required | C9: How well has the Tenderer described how scope requirements will be met? Do they understand what needs to be done? List concerns in Comments. | D9: PV Curves Calculation | E9: Voltage stability assessment by determination of critical point of voltage instability | F9: Indicate if the solution : - Is an Out-of-the-box functionality - Requires configuration? - Requires customisation? | I9: Very important | J9: =IF(I9='Priority Ratings'!$C$21,'Priority Ratings'!$B$21, IF(I9='Priority Ratings'!$C$22,'Priority Ratings'!$B$22,IF(I9='Priority Ratings'!$C$23,'Priority Ratings'!$B$23,IF(I9='Priority Ratings'!$C$24,'Priority Ratings'!$B$24,IF(I9='Priority Ratings'!$C$25,'Priority Ratings'!$B$25,IF(I9='Priority Ratings'!$C$26,'Priority Ratings'!$B$26,IF(I9='Priority Ratings'!$C$27,'Priority Ratings'!$B$27,"No Rating"))))))) -> 4 | K9: =J9/J$54 -> 0.01716738197 | L9: 100%: Fully comply with requirement (Out of the box function with minor re-configuration) 50%: Partially comply, will require major configuration. 0%: No compliance/require development and/or customisation. | M9: 0 | N9: =K9*M9 -> 0
A10: 2 | B10: Meeting the Scope of Work Required | C10: How well has the Tenderer described how scope requirements will be met? Do they understand what needs to be done? List concerns in Comments. | D10: PV Curves Calculation | E10: Support contingency analysis, i.e., detection of "Limiting Contingency" | F10: Indicate if the solution : - Is an Out-of-the-box functionality - Requires configuration? - Requires customisation? | I10: Very important | J10: =IF(I10='Priority Ratings'!$C$21,'Priority Ratings'!$B$21, IF(I10='Priority Ratings'!$C$22,'Priority Ratings'!$B$22,IF(I10='Priority Ratings'!$C$23,'Priority Ratings'!$B$23,IF(I10='Priority Ratings'!$C$24,'Priority Ratings'!$B$24,IF(I10='Priority Ratings'!$C$25,'Priority Ratings'!$B$25,IF(I10='Priority Ratings'!$C$26,'Priority Ratings'!$B$26,IF(I10='Priority Ratings'!$C$27,'Priority Ratings'!$B$27,"No Rating"))))))) -> 4 | K10: 0.01716738197 | L10: 100%: Fully comply with requirement (Out of the box function with minor re-configuration) 50%: Partially comply, will require major configuration. 0%: No compliance/require development and/or customisation. | M10: 0 | N10: 0
A11: 3 | B11: Meeting the Scope of Work Required | C11: How well has the Tenderer described how scope requirements will be met? Do they understand what needs to be done? List concerns in Comments. | D11: Transfer capacity analysis | E11: The user should be able to determine the maximum transfer capacity between two regions or between two sets of generators and/or loads, by scaling generation and or load until a limit isreached | F11: Indicate if the solution : - Is an Out-of-the-box functionality - Requires configuration? - Requires customisation? | I11: Critical | J11: =IF(I11='Priority Ratings'!$C$21,'Priority Ratings'!$B$21, IF(I11='Priority Ratings'!$C$22,'Priority Ratings'!$B$22,IF(I11='Priority Ratings'!$C$23,'Priority Ratings'!$B$23,IF(I11='Priority Ratings'!$C$24,'Priority Ratings'!$B$24,IF(I11='Priority Ratings'!$C$25,'Priority Ratings'!$B$25,IF(I11='Priority Ratings'!$C$26,'Priority Ratings'!$B$26,IF(I11='Priority Ratings'!$C$27,'Priority Ratings'!$B$27,"No Rating"))))))) -> 5 | K11: 0.02145922747 | L11: 100%: Fully comply with requirement (Out of the box function with minor re-configuration) 50%: Partially comply, will require major configuration. 0%: No compliance/require development and/or customisation. | M11: 0 | N11: 0
A12: 4 | B12: Meeting the Scope of Work Required | C12: How well has the Tenderer described how scope requirements will be met? Do they understand what needs to be done? List concerns in Comments. | D12: Transfer capacity analysis | E12: The tool must allow contingency at the limiting point or prior to the limiting point | F12: Indicate if the solution : - Is an Out-of-the-box functionality - Requires configuration? - Requires customisation? | I12: Critical | J12: =IF(I12='Priority Ratings'!$C$21,'Priority Ratings'!$B$21, IF(I12='Priority Ratings'!$C$22,'Priority Ratings'!$B$22,IF(I12='Priority Ratings'!$C$23,'Priority Ratings'!$B$23,IF(I12='Priority Ratings'!$C$24,'Priority Ratings'!$B$24,IF(I12='Priority Ratings'!$C$25,'Priority Ratings'!$B$25,IF(I12='Priority Ratings'!$C$26,'Priority Ratings'!$B$26,IF(I12='Priority Ratings'!$C$27,'Priority Ratings'!$B$27,"No Rating"))))))) -> 5 | K12: 0.02145922747 | L12: 100%: Fully comply with requirement (Out of the box function with minor re-configuration) 50%: Partially comply, will require major configuration. 0%: No compliance/require development and/or customisation. | M12: 0 | N12: 0
A13: 5 | B13: Meeting the Scope of Work Required | C13: How well has the Tenderer described how scope requirements will be met? Do they understand what needs to be done? List concerns in Comments. | D13: Transfer capacity analysis | E13: The constraints should be voltage; thermal; reactive power as well as active power | F13: Indicate if the solution : - Is an Out-of-the-box functionality - Requires configuration? - Requires customisation? | I13: Critical | J13: =IF(I13='Priority Ratings'!$C$21,'Priority Ratings'!$B$21, IF(I13='Priority Ratings'!$C$22,'Priority Ratings'!$B$22,IF(I13='Priority Ratings'!$C$23,'Priority Ratings'!$B$23,IF(I13='Priority Ratings'!$C$24,'Priority Ratings'!$B$24,IF(I13='Priority Ratings'!$C$25,'Priority Ratings'!$B$25,IF(I13='Priority Ratings'!$C$26,'Priority Ratings'!$B$26,IF(I13='Priority Ratings'!$C$27,'Priority Ratings'!$B$27,"No Rating"))))))) -> 5 | K13: 0.02145922747 | L13: 100%: Fully comply with requirement (Out of the box function with minor re-configuration) 50%: Partially comply, will require major configuration. 0%: No compliance/require development and/or customisation. | M13: 0 | N13: 0
A14: 6 | B14: Meeting the Scope of Work Required | C14: How well has the Tenderer described how scope requirements will be met? Do they understand what needs to be done? List concerns in Comments. | D14: Transfer capacity analysis | E14: Limit reports should be an output showing limiting phenomena area and or affected equipment | F14: Indicate if the solution : - Is an Out-of-the-box functionality - Requires configuration? - Requires customisation? | I14: Critical | J14: =IF(I14='Priority Ratings'!$C$21,'Priority Ratings'!$B$21, IF(I14='Priority Ratings'!$C$22,'Priority Ratings'!$B$22,IF(I14='Priority Ratings'!$C$23,'Priority Ratings'!$B$23,IF(I14='Priority Ratings'!$C$24,'Priority Ratings'!$B$24,IF(I14='Priority Ratings'!$C$25,'Priority Ratings'!$B$25,IF(I14='Priority Ratings'!$C$26,'Priority Ratings'!$B$26,IF(I14='Priority Ratings'!$C$27,'Priority Ratings'!$B$27,"No Rating"))))))) -> 5 | K14: 0.02145922747 | L14: 100%: Fully comply with requirement (Out of the box function with minor re-configuration) 50%: Partially comply, will require major configuration. 0%: No compliance/require development and/or customisation. | M14: 0 | N14: 0
A15: 7 | B15: Meeting the Scope of Work Required | C15: How well has the Tenderer described how scope requirements will be met? Do they understand what needs to be done? List concerns in Comments. | D15: QV Curves Calculation | E15: Voltage stability limit assessment by evaluating the bus voltage change with regards to variation of injected reactive power. | F15: Indicate if the solution : - Is an Out-of-the-box functionality - Requires configuration? - Requires customisation? | I15: Critical | J15: =IF(I15='Priority Ratings'!$C$21,'Priority Ratings'!$B$21, IF(I15='Priority Ratings'!$C$22,'Priority Ratings'!$B$22,IF(I15='Priority Ratings'!$C$23,'Priority Ratings'!$B$23,IF(I15='Priority Ratings'!$C$24,'Priority Ratings'!$B$24,IF(I15='Priority Ratings'!$C$25,'Priority Ratings'!$B$25,IF(I15='Priority Ratings'!$C$26,'Priority Ratings'!$B$26,IF(I15='Priority Ratings'!$C$27,'Priority Ratings'!$B$27,"No Rating"))))))) -> 5 | K15: 0.02145922747 | L15: 100%: Fully comply with requirement (Out of the box function with minor re-configuration) 50%: Partially comply, will require major configuration. 0%: No compliance/require development and/or customisation. | M15: 0 | N15: 0
A16: 8 | B16: Meeting the Scope of Work Required | C16: How well has the Tenderer described how scope requirements will be met? Do they understand what needs to be done? List concerns in Comments. | D16: QV Curves Calculation | E16: Evaluating of stable operating points for various system loading scenarios, including contingencies | F16: Indicate if the solution : - Is an Out-of-the-box functionality - Requires configuration? - Requires customisation? | I16: Very important | J16: =IF(I16='Priority Ratings'!$C$21,'Priority Ratings'!$B$21, IF(I16='Priority Ratings'!$C$22,'Priority Ratings'!$B$22,IF(I16='Priority Ratings'!$C$23,'Priority Ratings'!$B$23,IF(I16='Priority Ratings'!$C$24,'Priority Ratings'!$B$24,IF(I16='Priority Ratings'!$C$25,'Priority Ratings'!$B$25,IF(I16='Priority Ratings'!$C$26,'Priority Ratings'!$B$26,IF(I16='Priority Ratings'!$C$27,'Priority Ratings'!$B$27,"No Rating"))))))) -> 4 | K16: 0.01716738197 | L16: 100%: Fully comply with requirement (Out of the box function with minor re-configuration) 50%: Partially comply, will require major configuration. 0%: No compliance/require development and/or customisation. | M16: 0 | N16: 0
A17: 9 | B17: Meeting the Scope of Work Required | C17: How well has the Tenderer described how scope requirements will be met? Do they understand what needs to be done? List concerns in Comments. | D17: QV Curves Calculation | E17: Determination of reactive power compensation by superposition of capacitor characteristics in QV plots | F17: Indicate if the solution : - Is an Out-of-the-box functionality - Requires configuration? - Requires customisation? | I17: Very important | J17: =IF(I17='Priority Ratings'!$C$21,'Priority Ratings'!$B$21, IF(I17='Priority Ratings'!$C$22,'Priority Ratings'!$B$22,IF(I17='Priority Ratings'!$C$23,'Priority Ratings'!$B$23,IF(I17='Priority Ratings'!$C$24,'Priority Ratings'!$B$24,IF(I17='Priority Ratings'!$C$25,'Priority Ratings'!$B$25,IF(I17='Priority Ratings'!$C$26,'Priority Ratings'!$B$26,IF(I17='Priority Ratings'!$C$27,'Priority Ratings'!$B$27,"No Rating"))))))) -> 4 | K17: 0.01716738197 | L17: 100%: Fully comply with requirement (Out of the box function with minor re-configuration) 50%: Partially comply, will require major configuration. 0%: No compliance/require development and/or customisation. | M17: 0 | N17: 0
A18: 10 | B18: Meeting the Scope of Work Required | C18: How well has the Tenderer described how scope requirements will be met? Do they understand what needs to be done? List concerns in Comments. | D18: Tie Open Point Optimisation | E18: Optimisation of tie open point positions subject to loss minimisation, improvement of system reliability, or minimisation of switching actions | F18: Indicate if the solution : - Is an Out-of-the-box functionality - Requires configuration? - Requires customisation? | I18: Critical | J18: =IF(I18='Priority Ratings'!$C$21,'Priority Ratings'!$B$21, IF(I18='Priority Ratings'!$C$22,'Priority Ratings'!$B$22,IF(I18='Priority Ratings'!$C$23,'Priority Ratings'!$B$23,IF(I18='Priority Ratings'!$C$24,'Priority Ratings'!$B$24,IF(I18='Priority Ratings'!$C$25,'Priority Ratings'!$B$25,IF(I18='Priority Ratings'!$C$26,'Priority Ratings'!$B$26,IF(I18='Priority Ratings'!$C$27,'Priority Ratings'!$B$27,"No Rating"))))))) -> 5 | K18: 0.02145922747 | L18: 100%: Fully comply with requirement (Out of the box function with minor re-configuration) 50%: Partially comply, will require major configuration. 0%: No compliance/require development and/or customisation. | M18: 0 | N18: 0
A19: 11 | B19: Meeting the Scope of Work Required | C19: How well has the Tenderer described how scope requirements will be met? Do they understand what needs to be done? List concerns in Comments. | D19: Tie Open Point Optimisation | E19: Support of balanced/unbalanced systems | F19: Indicate if the solution : - Is an Out-of-the-box functionality - Requires configuration? - Requires customisation? | I19: Critical | J19: =IF(I19='Priority Ratings'!$C$21,'Priority Ratings'!$B$21, IF(I19='Priority Ratings'!$C$22,'Priority Ratings'!$B$22,IF(I19='Priority Ratings'!$C$23,'Priority Ratings'!$B$23,IF(I19='Priority Ratings'!$C$24,'Priority Ratings'!$B$24,IF(I19='Priority Ratings'!$C$25,'Priority Ratings'!$B$25,IF(I19='Priority Ratings'!$C$26,'Priority Ratings'!$B$26,IF(I19='Priority Ratings'!$C$27,'Priority Ratings'!$B$27,"No Rating"))))))) -> 5 | K19: 0.02145922747 | L19: 100%: Fully comply with requirement (Out of the box function with minor re-configuration) 50%: Partially comply, will require major configuration. 0%: No compliance/require development and/or customisation. | M19: 0 | N19: 0
A20: 12 | B20: Meeting the Scope of Work Required | C20: How well has the Tenderer described how scope requirements will be met? Do they understand what needs to be done? List concerns in Comments. | D20: Tie Open Point Optimisation | E20: Branch and boundary flow limits NEW, absolute voltage, and voltage drop/rise constraints | F20: Indicate if the solution : - Is an Out-of-the-box functionality - Requires configuration? - Requires customisation? | I20: Very important | J20: =IF(I20='Priority Ratings'!$C$21,'Priority Ratings'!$B$21, IF(I20='Priority Ratings'!$C$22,'Priority Ratings'!$B$22,IF(I20='Priority Ratings'!$C$23,'Priority Ratings'!$B$23,IF(I20='Priority Ratings'!$C$24,'Priority Ratings'!$B$24,IF(I20='Priority Ratings'!$C$25,'Priority Ratings'!$B$25,IF(I20='Priority Ratings'!$C$26,'Priority Ratings'!$B$26,IF(I20='Priority Ratings'!$C$27,'Priority Ratings'!$B$27,"No Rating"))))))) -> 4 | K20: 0.01716738197 | L20: 100%: Fully comply with requirement (Out of the box function with minor re-configuration) 50%: Partially comply, will require major configuration. 0%: No compliance/require development and/or customisation. | M20: 0 | N20: 0
A21: 13 | B21: Meeting the Scope of Work Required | C21: How well has the Tenderer described how scope requirements will be met? Do they understand what needs to be done? List concerns in Comments. | D21: Tie Open Point Optimisation | E21: Enhanced reporting features and graphical visualisation, including automatic identification of tie open points | F21: Indicate if the solution : - Is an Out-of-the-box functionality - Requires configuration? - Requires customisation? | I21: Very important | J21: =IF(I21='Priority Ratings'!$C$21,'Priority Ratings'!$B$21, IF(I21='Priority Ratings'!$C$22,'Priority Ratings'!$B$22,IF(I21='Priority Ratings'!$C$23,'Priority Ratings'!$B$23,IF(I21='Priority Ratings'!$C$24,'Priority Ratings'!$B$24,IF(I21='Priority Ratings'!$C$25,'Priority Ratings'!$B$25,IF(I21='Priority Ratings'!$C$26,'Priority Ratings'!$B$26,IF(I21='Priority Ratings'!$C$27,'Priority Ratings'!$B$27,"No Rating"))))))) -> 4 | K21: 0.01716738197 | L21: 100%: Fully comply with requirement (Out of the box function with minor re-configuration) 50%: Partially comply, will require major configuration. 0%: No compliance/require development and/or customisation. | M21: 0 | N21: 0
A22: 14 | B22: Meeting the Scope of Work Required | C22: How well has the Tenderer described how scope requirements will be met? Do they understand what needs to be done? List concerns in Comments. | D22: Tie Open Point Optimisation | E22: Various methodologies, such as mesh exploration heuristic, genetic algorithms, and simulated annealing | F22: Indicate if the solution : - Is an Out-of-the-box functionality - Requires configuration? - Requires customisation? | I22: Critical | J22: =IF(I22='Priority Ratings'!$C$21,'Priority Ratings'!$B$21, IF(I22='Priority Ratings'!$C$22,'Priority Ratings'!$B$22,IF(I22='Priority Ratings'!$C$23,'Priority Ratings'!$B$23,IF(I22='Priority Ratings'!$C$24,'Priority Ratings'!$B$24,IF(I22='Priority Ratings'!$C$25,'Priority Ratings'!$B$25,IF(I22='Priority Ratings'!$C$26,'Priority Ratings'!$B$26,IF(I22='Priority Ratings'!$C$27,'Priority Ratings'!$B$27,"No Rating"))))))) -> 5 | K22: 0.02145922747 | L22: 100%: Fully comply with requirement (Out of the box function with minor re-configuration) 50%: Partially comply, will require major configuration. 0%: No compliance/require development and/or customisation. | M22: 0 | N22: 0
A23: 15 | B23: Meeting the Scope of Work Required | C23: How well has the Tenderer described how scope requirements will be met? Do they understand what needs to be done? List concerns in Comments. | D23: Tie Open Point Optimisation | E23: Storing of optimized states of network in different versions of the casefile to allow quick toggling between before and after states of network and allow for comparison of states and results | F23: Indicate if the solution : - Is an Out-of-the-box functionality - Requires configuration? - Requires customisation? | I23: Show stopper | J23: =IF(I23='Priority Ratings'!$C$21,'Priority Ratings'!$B$21, IF(I23='Priority Ratings'!$C$22,'Priority Ratings'!$B$22,IF(I23='Priority Ratings'!$C$23,'Priority Ratings'!$B$23,IF(I23='Priority Ratings'!$C$24,'Priority Ratings'!$B$24,IF(I23='Priority Ratings'!$C$25,'Priority Ratings'!$B$25,IF(I23='Priority Ratings'!$C$26,'Priority Ratings'!$B$26,IF(I23='Priority Ratings'!$C$27,'Priority Ratings'!$B$27,"No Rating"))))))) -> 6 | K23: 0.02575107296 | L23: 100%: Fully comply with requirement (Out of the box function with minor re-configuration) 50%: Partially comply, will require major configuration. 0%: No compliance/require development and/or customisation. | M23: 0 | N23: 0
A24: 16 | B24: Meeting the Scope of Work Required | C24: How well has the Tenderer described how scope requirements will be met? Do they understand what needs to be done? List concerns in Comments. | D24: Voltage Profile optimisation | E24: Verification and optimisation mode | F24: Indicate if the solution : - Is an Out-of-the-box functionality - Requires configuration? - Requires customisation? | I24: Show stopper | J24: =IF(I24='Priority Ratings'!$C$21,'Priority Ratings'!$B$21, IF(I24='Priority Ratings'!$C$22,'Priority Ratings'!$B$22,IF(I24='Priority Ratings'!$C$23,'Priority Ratings'!$B$23,IF(I24='Priority Ratings'!$C$24,'Priority Ratings'!$B$24,IF(I24='Priority Ratings'!$C$25,'Priority Ratings'!$B$25,IF(I24='Priority Ratings'!$C$26,'Priority Ratings'!$B$26,IF(I24='Priority Ratings'!$C$27,'Priority Ratings'!$B$27,"No Rating"))))))) -> 6 | K24: 0.02575107296 | L24: 100%: Fully comply with requirement (Out of the box function with minor re-configuration) 50%: Partially comply, will require major configuration. 0%: No compliance/require development and/or customisation. | M24: 0 | N24: 0
A25: 17 | B25: Meeting the Scope of Work Required | C25: How well has the Tenderer described how scope requirements will be met? Do they understand what needs to be done? List concerns in Comments. | D25: Voltage Profile optimisation | E25: Voltage profile optimisation for bi-directional power flows in systems with a high level of distributed generation | F25: Indicate if the solution : - Is an Out-of-the-box functionality - Requires configuration? - Requires customisation? | I25: Show stopper | J25: =IF(I25='Priority Ratings'!$C$21,'Priority Ratings'!$B$21, IF(I25='Priority Ratings'!$C$22,'Priority Ratings'!$B$22,IF(I25='Priority Ratings'!$C$23,'Priority Ratings'!$B$23,IF(I25='Priority Ratings'!$C$24,'Priority Ratings'!$B$24,IF(I25='Priority Ratings'!$C$25,'Priority Ratings'!$B$25,IF(I25='Priority Ratings'!$C$26,'Priority Ratings'!$B$26,IF(I25='Priority Ratings'!$C$27,'Priority Ratings'!$B$27,"No Rating"))))))) -> 6 | K25: 0.02575107296 | L25: 100%: Fully comply with requirement (Out of the box function with minor re-configuration) 50%: Partially comply, will require major configuration. 0%: No compliance/require development and/or customisation. | M25: 0 | N25: 0
A26: 18 | B26: Meeting the Scope of Work Required | C26: How well has the Tenderer described how scope requirements will be met? Do they understand what needs to be done? List concerns in Comments. | D26: Voltage Profile optimisation | E26: Determination of optimal distribution transformer tap positions for production and consumption cases (simultaneous or independent) | F26: Indicate if the solution : - Is an Out-of-the-box functionality - Requires configuration? - Requires customisation? | I26: Show stopper | J26: =IF(I26='Priority Ratings'!$C$21,'Priority Ratings'!$B$21, IF(I26='Priority Ratings'!$C$22,'Priority Ratings'!$B$22,IF(I26='Priority Ratings'!$C$23,'Priority Ratings'!$B$23,IF(I26='Priority Ratings'!$C$24,'Priority Ratings'!$B$24,IF(I26='Priority Ratings'!$C$25,'Priority Ratings'!$B$25,IF(I26='Priority Ratings'!$C$26,'Priority Ratings'!$B$26,IF(I26='Priority Ratings'!$C$27,'Priority Ratings'!$B$27,"No Rating"))))))) -> 6 | K26: 0.02575107296 | L26: 100%: Fully comply with requirement (Out of the box function with minor re-configuration) 50%: Partially comply, will require major configuration. 0%: No compliance/require development and/or customisation. | M26: 0 | N26: 0
A27: 19 | B27: Meeting the Scope of Work Required | C27: How well has the Tenderer described how scope requirements will be met? Do they understand what needs to be done? List concerns in Comments. | D27: Voltage Profile optimisation | E27: Combined consideration of MV and LV feeder voltage profiles with enhanced plotting features | F27: Indicate if the solution : - Is an Out-of-the-box functionality - Requires configuration? - Requires customisation? | I27: Show stopper | J27: =IF(I27='Priority Ratings'!$C$21,'Priority Ratings'!$B$21, IF(I27='Priority Ratings'!$C$22,'Priority Ratings'!$B$22,IF(I27='Priority Ratings'!$C$23,'Priority Ratings'!$B$23,IF(I27='Priority Ratings'!$C$24,'Priority Ratings'!$B$24,IF(I27='Priority Ratings'!$C$25,'Priority Ratings'!$B$25,IF(I27='Priority Ratings'!$C$26,'Priority Ratings'!$B$26,IF(I27='Priority Ratings'!$C$27,'Priority Ratings'!$B$27,"No Rating"))))))) -> 6 | K27: 0.02575107296 | L27: 100%: Fully comply with requirement (Out of the box function with minor re-configuration) 50%: Partially comply, will require major configuration. 0%: No compliance/require development and/or customisation. | M27: 0 | N27: 0
A28: 20 | B28: Meeting the Scope of Work Required | C28: How well has the Tenderer described how scope requirements will be met? Do they understand what needs to be done? List concerns in Comments. | D28: Phase Balance Optimisation | E28: Automatic reconnection of loads, generators, and/or branch elements to achieve minimal power unbalance | F28: Indicate if the solution : - Is an Out-of-the-box functionality - Requires configuration? - Requires customisation? | I28: Show stopper | J28: =IF(I28='Priority Ratings'!$C$21,'Priority Ratings'!$B$21, IF(I28='Priority Ratings'!$C$22,'Priority Ratings'!$B$22,IF(I28='Priority Ratings'!$C$23,'Priority Ratings'!$B$23,IF(I28='Priority Ratings'!$C$24,'Priority Ratings'!$B$24,IF(I28='Priority Ratings'!$C$25,'Priority Ratings'!$B$25,IF(I28='Priority Ratings'!$C$26,'Priority Ratings'!$B$26,IF(I28='Priority Ratings'!$C$27,'Priority Ratings'!$B$27,"No Rating"))))))) -> 6 | K28: 0.02575107296 | L28: 100%: Fully comply with requirement (Out of the box function with minor re-configuration) 50%: Partially comply, will require major configuration. 0%: No compliance/require development and/or customisation. | M28: 0 | N28: 0
A29: 21 | B29: Meeting the Scope of Work Required | C29: How well has the Tenderer described how scope requirements will be met? Do they understand what needs to be done? List concerns in Comments. | D29: Phase Balance Optimisation | E29: Minimisation of unbalance at feeding point or average unbalance in feeder | F29: Indicate if the solution : - Is an Out-of-the-box functionality - Requires configuration? - Requires customisation? | I29: Show stopper | J29: =IF(I29='Priority Ratings'!$C$21,'Priority Ratings'!$B$21, IF(I29='Priority Ratings'!$C$22,'Priority Ratings'!$B$22,IF(I29='Priority Ratings'!$C$23,'Priority Ratings'!$B$23,IF(I29='Priority Ratings'!$C$24,'Priority Ratings'!$B$24,IF(I29='Priority Ratings'!$C$25,'Priority Ratings'!$B$25,IF(I29='Priority Ratings'!$C$26,'Priority Ratings'!$B$26,IF(I29='Priority Ratings'!$C$27,'Priority Ratings'!$B$27,"No Rating"))))))) -> 6 | K29: 0.02575107296 | L29: 100%: Fully comply with requirement (Out of the box function with minor re-configuration) 50%: Partially comply, will require major configuration. 0%: No compliance/require development and/or customisation. | M29: 0 | N29: 0
A30: 22 | B30: Meeting the Scope of Work Required | C30: How well has the Tenderer described how scope requirements will be met? Do they understand what needs to be done? List concerns in Comments. | D30: Phase Balance Optimisation | E30: High flexibility to also allow for partial reconfiguration | F30: Indicate if the solution : - Is an Out-of-the-box functionality - Requires configuration? - Requires customisation? | I30: Show stopper | J30: =IF(I30='Priority Ratings'!$C$21,'Priority Ratings'!$B$21, IF(I30='Priority Ratings'!$C$22,'Priority Ratings'!$B$22,IF(I30='Priority Ratings'!$C$23,'Priority Ratings'!$B$23,IF(I30='Priority Ratings'!$C$24,'Priority Ratings'!$B$24,IF(I30='Priority Ratings'!$C$25,'Priority Ratings'!$B$25,IF(I30='Priority Ratings'!$C$26,'Priority Ratings'!$B$26,IF(I30='Priority Ratings'!$C$27,'Priority Ratings'!$B$27,"No Rating"))))))) -> 6 | K30: 0.02575107296 | L30: 100%: Fully comply with requirement (Out of the box function with minor re-configuration) 50%: Partially comply, will require major configuration. 0%: No compliance/require development and/or customisation. | M30: 0 | N30: 0
A31: 23 | B31: Meeting the Scope of Work Required | C31: How well has the Tenderer described how scope requirements will be met? Do they understand what needs to be done? List concerns in Comments. | D31: Phase Balance Optimisation | E31: Capturing of results via ariations for convenient toggling of original and optimised phase connections | F31: Indicate if the solution : - Is an Out-of-the-box functionality - Requires configuration? - Requires customisation? | I31: Critical | J31: =IF(I31='Priority Ratings'!$C$21,'Priority Ratings'!$B$21, IF(I31='Priority Ratings'!$C$22,'Priority Ratings'!$B$22,IF(I31='Priority Ratings'!$C$23,'Priority Ratings'!$B$23,IF(I31='Priority Ratings'!$C$24,'Priority Ratings'!$B$24,IF(I31='Priority Ratings'!$C$25,'Priority Ratings'!$B$25,IF(I31='Priority Ratings'!$C$26,'Priority Ratings'!$B$26,IF(I31='Priority Ratings'!$C$27,'Priority Ratings'!$B$27,"No Rating"))))))) -> 5 | K31: 0.02145922747 | L31: 100%: Fully comply with requirement (Out of the box function with minor re-configuration) 50%: Partially comply, will require major configuration. 0%: No compliance/require development and/or customisation. | M31: 0 | N31: 0
A32: 24 | B32: Meeting the Scope of Work Required | C32: How well has the Tenderer described how scope requirements will be met? Do they understand what needs to be done? List concerns in Comments. | D32: Phase Balance Optimisation | E32: Various methodologies, such as standard heuristics, genetic algorithms, and simulated annealing | F32: Indicate if the solution : - Is an Out-of-the-box functionality - Requires configuration? - Requires customisation? | I32: Critical | J32: =IF(I32='Priority Ratings'!$C$21,'Priority Ratings'!$B$21, IF(I32='Priority Ratings'!$C$22,'Priority Ratings'!$B$22,IF(I32='Priority Ratings'!$C$23,'Priority Ratings'!$B$23,IF(I32='Priority Ratings'!$C$24,'Priority Ratings'!$B$24,IF(I32='Priority Ratings'!$C$25,'Priority Ratings'!$B$25,IF(I32='Priority Ratings'!$C$26,'Priority Ratings'!$B$26,IF(I32='Priority Ratings'!$C$27,'Priority Ratings'!$B$27,"No Rating"))))))) -> 5 | K32: 0.02145922747 | L32: 100%: Fully comply with requirement (Out of the box function with minor re-configuration) 50%: Partially comply, will require major configuration. 0%: No compliance/require development and/or customisation. | M32: 0 | N32: 0
A33: 25 | B33: Meeting the Scope of Work Required | C33: How well has the Tenderer described how scope requirements will be met? Do they understand what needs to be done? List concerns in Comments. | D33: Optimal Capacitor Placement | E33: Determination of optimal locations, types, phase technology and sizes of capacitors | F33: Indicate if the solution : - Is an Out-of-the-box functionality - Requires configuration? - Requires customisation? | I33: Very important | J33: =IF(I33='Priority Ratings'!$C$21,'Priority Ratings'!$B$21, IF(I33='Priority Ratings'!$C$22,'Priority Ratings'!$B$22,IF(I33='Priority Ratings'!$C$23,'Priority Ratings'!$B$23,IF(I33='Priority Ratings'!$C$24,'Priority Ratings'!$B$24,IF(I33='Priority Ratings'!$C$25,'Priority Ratings'!$B$25,IF(I33='Priority Ratings'!$C$26,'Priority Ratings'!$B$26,IF(I33='Priority Ratings'!$C$27,'Priority Ratings'!$B$27,"No Rating"))))))) -> 4 | K33: 0.01716738197 | L33: 100%: Fully comply with requirement (Out of the box function with minor re-configuration) 50%: Partially comply, will require major configuration. 0%: No compliance/require development and/or customisation. | M33: 0 | N33: 0
A34: 26 | B34: Meeting the Scope of Work Required | C34: How well has the Tenderer described how scope requirements will be met? Do they understand what needs to be done? List concerns in Comments. | D34: Optimal Capacitor Placement | E34: Economic assessment considering costs of losses against installation costs under predefined voltage constraints | F34: Indicate if the solution : - Is an Out-of-the-box functionality - Requires configuration? - Requires customisation? | I34: Very important | J34: =IF(I34='Priority Ratings'!$C$21,'Priority Ratings'!$B$21, IF(I34='Priority Ratings'!$C$22,'Priority Ratings'!$B$22,IF(I34='Priority Ratings'!$C$23,'Priority Ratings'!$B$23,IF(I34='Priority Ratings'!$C$24,'Priority Ratings'!$B$24,IF(I34='Priority Ratings'!$C$25,'Priority Ratings'!$B$25,IF(I34='Priority Ratings'!$C$26,'Priority Ratings'!$B$26,IF(I34='Priority Ratings'!$C$27,'Priority Ratings'!$B$27,"No Rating"))))))) -> 4 | K34: 0.01716738197 | L34: 100%: Fully comply with requirement (Out of the box function with minor re-configuration) 50%: Partially comply, will require major configuration. 0%: No compliance/require development and/or customisation. | M34: 0 | N34: 0
A35: 27 | B35: Meeting the Scope of Work Required | C35: How well has the Tenderer described how scope requirements will be met? Do they understand what needs to be done? List concerns in Comments. | D35: Optimal Capacitor Placement | E35: Support of load variation via characteristics | F35: Indicate if the solution : - Is an Out-of-the-box functionality - Requires configuration? - Requires customisation? | I35: Critical | J35: =IF(I35='Priority Ratings'!$C$21,'Priority Ratings'!$B$21, IF(I35='Priority Ratings'!$C$22,'Priority Ratings'!$B$22,IF(I35='Priority Ratings'!$C$23,'Priority Ratings'!$B$23,IF(I35='Priority Ratings'!$C$24,'Priority Ratings'!$B$24,IF(I35='Priority Ratings'!$C$25,'Priority Ratings'!$B$25,IF(I35='Priority Ratings'!$C$26,'Priority Ratings'!$B$26,IF(I35='Priority Ratings'!$C$27,'Priority Ratings'!$B$27,"No Rating"))))))) -> 5 | K35: 0.02145922747 | L35: 100%: Fully comply with requirement (Out of the box function with minor re-configuration) 50%: Partially comply, will require major configuration. 0%: No compliance/require development and/or customisation. | M35: 0 | N35: 0
A36: 28 | B36: Meeting the Scope of Work Required | C36: How well has the Tenderer described how scope requirements will be met? Do they understand what needs to be done? List concerns in Comments. | D36: Hosting Capacity Analysis | E36: Accurate Modelling: The hosting capacity analysis tool should have the ability to accurately resolve for detailed electrical network models that include but not limited to distribution transformers, voltage regulators, capacitors, and other grid components. | F36: Indicate if the solution : - Is an Out-of-the-box functionality - Requires configuration? - Requires customisation? | I36: Show stopper | J36: =IF(I36='Priority Ratings'!$C$21,'Priority Ratings'!$B$21, IF(I36='Priority Ratings'!$C$22,'Priority Ratings'!$B$22,IF(I36='Priority Ratings'!$C$23,'Priority Ratings'!$B$23,IF(I36='Priority Ratings'!$C$24,'Priority Ratings'!$B$24,IF(I36='Priority Ratings'!$C$25,'Priority Ratings'!$B$25,IF(I36='Priority Ratings'!$C$26,'Priority Ratings'!$B$26,IF(I36='Priority Ratings'!$C$27,'Priority Ratings'!$B$27,"No Rating"))))))) -> 6 | K36: 0.02575107296 | L36: 100%: Fully comply with requirement (Out of the box function with minor re-configuration) 50%: Partially comply, will require major configuration. 0%: No compliance/require development and/or customisation. | M36: 0 | N36: 0
A37: 29 | B37: Meeting the Scope of Work Required | C37: How well has the Tenderer described how scope requirements will be met? Do they understand what needs to be done? List concerns in Comments. | D37: Hosting Capacity Analysis | E37: Load Characterization: The tool should have the capability to characterize the load on the grid, including the variability and the uncertainty of the load. This information should be used to accurately predict the available capacity of the grid. | F37: Indicate if the solution : - Is an Out-of-the-box functionality - Requires configuration? - Requires customisation? | I37: Show stopper | J37: =IF(I37='Priority Ratings'!$C$21,'Priority Ratings'!$B$21, IF(I37='Priority Ratings'!$C$22,'Priority Ratings'!$B$22,IF(I37='Priority Ratings'!$C$23,'Priority Ratings'!$B$23,IF(I37='Priority Ratings'!$C$24,'Priority Ratings'!$B$24,IF(I37='Priority Ratings'!$C$25,'Priority Ratings'!$B$25,IF(I37='Priority Ratings'!$C$26,'Priority Ratings'!$B$26,IF(I37='Priority Ratings'!$C$27,'Priority Ratings'!$B$27,"No Rating"))))))) -> 6 | K37: 0.02575107296 | L37: 100%: Fully comply with requirement (Out of the box function with minor re-configuration) 50%: Partially comply, will require major configuration. 0%: No compliance/require development and/or customisation. | M37: 0 | N37: 0
A38: 30 | B38: Meeting the Scope of Work Required | C38: How well has the Tenderer described how scope requirements will be met? Do they understand what needs to be done? List concerns in Comments. | D38: Hosting Capacity Analysis | E38: Solar PV Modelling: The tool should have the capability to accurately model and take into consideration in the hosting capacity algorithms the output of solar PV systems, including factors such as shading, orientation, irradiation, and weather patterns. | F38: Indicate if the solution : - Is an Out-of-the-box functionality - Requires configuration? - Requires customisation? | I38: Show stopper | J38: =IF(I38='Priority Ratings'!$C$21,'Priority Ratings'!$B$21, IF(I38='Priority Ratings'!$C$22,'Priority Ratings'!$B$22,IF(I38='Priority Ratings'!$C$23,'Priority Ratings'!$B$23,IF(I38='Priority Ratings'!$C$24,'Priority Ratings'!$B$24,IF(I38='Priority Ratings'!$C$25,'Priority Ratings'!$B$25,IF(I38='Priority Ratings'!$C$26,'Priority Ratings'!$B$26,IF(I38='Priority Ratings'!$C$27,'Priority Ratings'!$B$27,"No Rating"))))))) -> 6 | K38: 0.02575107296 | L38: 100%: Fully comply with requirement (Out of the box function with minor re-configuration) 50%: Partially comply, will require major configuration. 0%: No compliance/require development and/or customisation. | M38: 0 | N38: 0
A39: 31 | B39: Meeting the Scope of Work Required | C39: How well has the Tenderer described how scope requirements will be met? Do they understand what needs to be done? List concerns in Comments. | D39: Hosting Capacity Analysis | E39: Wind Power Modelling: The tool should have the capability to accurately model and take into consideration in the hosting capacity algorithms the output of wind power systems, including factors such as wind speed, wind direction, and terrain. | F39: Indicate if the solution : - Is an Out-of-the-box functionality - Requires configuration? - Requires customisation? | I39: Show stopper | J39: =IF(I39='Priority Ratings'!$C$21,'Priority Ratings'!$B$21, IF(I39='Priority Ratings'!$C$22,'Priority Ratings'!$B$22,IF(I39='Priority Ratings'!$C$23,'Priority Ratings'!$B$23,IF(I39='Priority Ratings'!$C$24,'Priority Ratings'!$B$24,IF(I39='Priority Ratings'!$C$25,'Priority Ratings'!$B$25,IF(I39='Priority Ratings'!$C$26,'Priority Ratings'!$B$26,IF(I39='Priority Ratings'!$C$27,'Priority Ratings'!$B$27,"No Rating"))))))) -> 6 | K39: 0.02575107296 | L39: 100%: Fully comply with requirement (Out of the box function with minor re-configuration) 50%: Partially comply, will require major configuration. 0%: No compliance/require development and/or customisation. | M39: 0 | N39: 0
A40: 32 | B40: Meeting the Scope of Work Required | C40: How well has the Tenderer described how scope requirements will be met? Do they understand what needs to be done? List concerns in Comments. | D40: Hosting Capacity Analysis | E40: Distributed Energy Resource (DER) Integration: The tool should have the capability to accurately model and integrate DERs into the grid, including but not limited to solar PV, wind power, energy storage systems, and electric vehicles. | F40: Indicate if the solution : - Is an Out-of-the-box functionality - Requires configuration? - Requires customisation? | I40: Show stopper | J40: =IF(I40='Priority Ratings'!$C$21,'Priority Ratings'!$B$21, IF(I40='Priority Ratings'!$C$22,'Priority Ratings'!$B$22,IF(I40='Priority Ratings'!$C$23,'Priority Ratings'!$B$23,IF(I40='Priority Ratings'!$C$24,'Priority Ratings'!$B$24,IF(I40='Priority Ratings'!$C$25,'Priority Ratings'!$B$25,IF(I40='Priority Ratings'!$C$26,'Priority Ratings'!$B$26,IF(I40='Priority Ratings'!$C$27,'Priority Ratings'!$B$27,"No Rating"))))))) -> 6 | K40: 0.02575107296 | L40: 100%: Fully comply with requirement (Out of the box function with minor re-configuration) 50%: Partially comply, will require major configuration. 0%: No compliance/require development and/or customisation. | M40: 0 | N40: 0
A41: 33 | B41: Meeting the Scope of Work Required | C41: How well has the Tenderer described how scope requirements will be met? Do they understand what needs to be done? List concerns in Comments. | D41: Hosting Capacity Analysis | E41: Capacity Assessment: The tool should have the capability to perform a comprehensive hosting capacity analysis, which includes identifying the maximum amount of DER / Load that can be accommodated on the grid. | F41: Indicate if the solution : - Is an Out-of-the-box functionality - Requires configuration? - Requires customisation? | I41: Show stopper | J41: =IF(I41='Priority Ratings'!$C$21,'Priority Ratings'!$B$21, IF(I41='Priority Ratings'!$C$22,'Priority Ratings'!$B$22,IF(I41='Priority Ratings'!$C$23,'Priority Ratings'!$B$23,IF(I41='Priority Ratings'!$C$24,'Priority Ratings'!$B$24,IF(I41='Priority Ratings'!$C$25,'Priority Ratings'!$B$25,IF(I41='Priority Ratings'!$C$26,'Priority Ratings'!$B$26,IF(I41='Priority Ratings'!$C$27,'Priority Ratings'!$B$27,"No Rating"))))))) -> 6 | K41: 0.02575107296 | L41: 100%: Fully comply with requirement (Out of the box function with minor re-configuration) 50%: Partially comply, will require major configuration. 0%: No compliance/require development and/or customisation. | M41: 0 | N41: 0
A42: 34 | B42: Meeting the Scope of Work Required | C42: How well has the Tenderer described how scope requirements will be met? Do they understand what needs to be done? List concerns in Comments. | D42: Hosting Capacity Analysis | E42: Identification of Constraints: The tool should be able to identify the constraints on the grid that limit the hosting capacity of DERs, such as voltage violations, thermal overload, or protection coordination issues. | F42: Indicate if the solution : - Is an Out-of-the-box functionality - Requires configuration? - Requires customisation? | I42: Show stopper | J42: =IF(I42='Priority Ratings'!$C$21,'Priority Ratings'!$B$21, IF(I42='Priority Ratings'!$C$22,'Priority Ratings'!$B$22,IF(I42='Priority Ratings'!$C$23,'Priority Ratings'!$B$23,IF(I42='Priority Ratings'!$C$24,'Priority Ratings'!$B$24,IF(I42='Priority Ratings'!$C$25,'Priority Ratings'!$B$25,IF(I42='Priority Ratings'!$C$26,'Priority Ratings'!$B$26,IF(I42='Priority Ratings'!$C$27,'Priority Ratings'!$B$27,"No Rating"))))))) -> 6 | K42: 0.02575107296 | L42: 100%: Fully comply with requirement (Out of the box function with minor re-configuration) 50%: Partially comply, will require major configuration. 0%: No compliance/require development and/or customisation. | M42: 0 | N42: 0
A43: 35 | B43: Meeting the Scope of Work Required | C43: How well has the Tenderer described how scope requirements will be met? Do they understand what needs to be done? List concerns in Comments. | D43: Hosting Capacity Analysis | E43: Recommendations for Grid Upgrades: The tool should be able to recommend grid upgrades that can improve the hosting capacity of the grid, such as transformer upgrades, capacitor installations, or reconductoring of distribution lines. | F43: Indicate if the solution : - Is an Out-of-the-box functionality - Requires configuration? - Requires customisation? | I43: Show stopper | J43: =IF(I43='Priority Ratings'!$C$21,'Priority Ratings'!$B$21, IF(I43='Priority Ratings'!$C$22,'Priority Ratings'!$B$22,IF(I43='Priority Ratings'!$C$23,'Priority Ratings'!$B$23,IF(I43='Priority Ratings'!$C$24,'Priority Ratings'!$B$24,IF(I43='Priority Ratings'!$C$25,'Priority Ratings'!$B$25,IF(I43='Priority Ratings'!$C$26,'Priority Ratings'!$B$26,IF(I43='Priority Ratings'!$C$27,'Priority Ratings'!$B$27,"No Rating"))))))) -> 6 | K43: 0.02575107296 | L43: 100%: Fully comply with requirement (Out of the box function with minor re-configuration) 50%: Partially comply, will require major configuration. 0%: No compliance/require development and/or customisation. | M43: 0 | N43: 0
A44: 36 | B44: Meeting the Scope of Work Required | C44: How well has the Tenderer described how scope requirements will be met? Do they understand what needs to be done? List concerns in Comments. | D44: Hosting Capacity Analysis | E44: Recommendations for DER Configuration: The tool should be able to recommend the optimal configuration of DERs that can maximize the hosting capacity of the grid, such as the placement and size of solar PV systems or energy storage systems. | F44: Indicate if the solution : - Is an Out-of-the-box functionality - Requires configuration? - Requires customisation? | I44: Show stopper | J44: =IF(I44='Priority Ratings'!$C$21,'Priority Ratings'!$B$21, IF(I44='Priority Ratings'!$C$22,'Priority Ratings'!$B$22,IF(I44='Priority Ratings'!$C$23,'Priority Ratings'!$B$23,IF(I44='Priority Ratings'!$C$24,'Priority Ratings'!$B$24,IF(I44='Priority Ratings'!$C$25,'Priority Ratings'!$B$25,IF(I44='Priority Ratings'!$C$26,'Priority Ratings'!$B$26,IF(I44='Priority Ratings'!$C$27,'Priority Ratings'!$B$27,"No Rating"))))))) -> 6 | K44: 0.02575107296 | L44: 100%: Fully comply with requirement (Out of the box function with minor re-configuration) 50%: Partially comply, will require major configuration. 0%: No compliance/require development and/or customisation. | M44: 0 | N44: 0
A45: 37 | B45: Meeting the Scope of Work Required | C45: How well has the Tenderer described how scope requirements will be met? Do they understand what needs to be done? List concerns in Comments. | D45: Hosting Capacity Analysis | E45: Simulation of Mitigation Measures: The tool should be able to simulate the impact of mitigation measures, such as grid upgrades or DER configuration changes or including Energy Storage, on the hosting capacity of the grid. | F45: Indicate if the solution : - Is an Out-of-the-box functionality - Requires configuration? - Requires customisation? | I45: Show stopper | J45: =IF(I45='Priority Ratings'!$C$21,'Priority Ratings'!$B$21, IF(I45='Priority Ratings'!$C$22,'Priority Ratings'!$B$22,IF(I45='Priority Ratings'!$C$23,'Priority Ratings'!$B$23,IF(I45='Priority Ratings'!$C$24,'Priority Ratings'!$B$24,IF(I45='Priority Ratings'!$C$25,'Priority Ratings'!$B$25,IF(I45='Priority Ratings'!$C$26,'Priority Ratings'!$B$26,IF(I45='Priority Ratings'!$C$27,'Priority Ratings'!$B$27,"No Rating"))))))) -> 6 | K45: 0.02575107296 | L45: 100%: Fully comply with requirement (Out of the box function with minor re-configuration) 50%: Partially comply, will require major configuration. 0%: No compliance/require development and/or customisation. | M45: 0 | N45: 0
A46: 38 | B46: Meeting the Scope of Work Required | C46: How well has the Tenderer described how scope requirements will be met? Do they understand what needs to be done? List concerns in Comments. | D46: Hosting Capacity Analysis | E46: Automatic Control Algorithms: The tool should be able to recommend or implement automatic control algorithms that can help to mitigate the impact of DERs on the grid, such as voltage regulation or reactive power control. | F46: Indicate if the solution : - Is an Out-of-the-box functionality - Requires configuration? - Requires customisation? | I46: Show stopper | J46: =IF(I46='Priority Ratings'!$C$21,'Priority Ratings'!$B$21, IF(I46='Priority Ratings'!$C$22,'Priority Ratings'!$B$22,IF(I46='Priority Ratings'!$C$23,'Priority Ratings'!$B$23,IF(I46='Priority Ratings'!$C$24,'Priority Ratings'!$B$24,IF(I46='Priority Ratings'!$C$25,'Priority Ratings'!$B$25,IF(I46='Priority Ratings'!$C$26,'Priority Ratings'!$B$26,IF(I46='Priority Ratings'!$C$27,'Priority Ratings'!$B$27,"No Rating"))))))) -> 6 | K46: 0.02575107296 | L46: 100%: Fully comply with requirement (Out of the box function with minor re-configuration) 50%: Partially comply, will require major configuration. 0%: No compliance/require development and/or customisation. | M46: 0 | N46: 0
